Workbook

Sheet 実数
B1: AD | X1: AC | AT1: CO | BP1: GO | CL1: OR | DH1: NE | ED1: GR | EZ1: ED | FV1: LG | GR1: 地域型・都道府県型 | HN1: 汎用 | IJ1: 合計
A2: 年/月 | B2: 全ドメイン名数 | D2: 全ドメイン名の中でのSPF設定数 | F2: 全ドメイン名の中でのDMARC設定数 | X2: 全ドメイン名数 | Z2: 全ドメイン名の中でのSPF設定数 | AB2: 全ドメイン名の中でのDMARC設定数 | AT2: 全ドメイン名数 | AV2: 全ドメイン名の中でのSPF設定数 | AX2: 全ドメイン名の中でのDMARC設定数 | BP2: 全ドメイン名数 | BR2: 全ドメイン名の中でのSPF設定数 | BT2: 全ドメイン名の中でのDMARC設定数 | CL2: 全ドメイン名数 | CN2: 全ドメイン名の中でのSPF設定数 | CP2: 全ドメイン名の中でのDMARC設定数 | DH2: 全ドメイン名数 | DJ2: 全ドメイン名の中でのSPF設定数 | DL2: 全ドメイン名の中でのDMARC設定数 | ED2: 全ドメイン名数 | EF2: 全ドメイン名の中でのSPF設定数 | EH2: 全ドメイン名の中でのDMARC設定数 | EZ2: 全ドメイン名数 | FB2: 全ドメイン名の中でのSPF設定数 | FD2: 全ドメイン名の中でのDMARC設定数 | FV2: 全ドメイン名数 | FX2: 全ドメイン名の中でのSPF設定数 | FZ2: 全ドメイン名の中でのDMARC設定数 | GR2: 全ドメイン名数 | GT2: 全ドメイン名の中でのSPF設定数 | GV2: 全ドメイン名の中でのDMARC設定数 | HN2: 全ドメイン名数 | HP2: 全ドメイン名の中でのSPF設定数 | HR2: 全ドメイン名の中でのDMARC設定数 | IJ2: 全ドメイン名数 | IL2: 全ドメイン名の中でのSPF設定数 | IN2: 全ドメイン名の中でのDMARC設定数
C3: MXレコードを有するドメイン名数 | E3: MXレコードを有するドメイン名の中でのSPF設定数 | O3: MXレコードを有するドメイン名の中でのDMARC設定数 | Y3: MXレコードを有するドメイン名数 | AA3: MXレコードを有するドメイン名の中でのSPF設定数 | AK3: MXレコードを有するドメイン名の中でのDMARC設定数 | AU3: MXレコードを有するドメイン名数 | AW3: MXレコードを有するドメイン名の中でのSPF設定数 | BG3: MXレコードを有するドメイン名の中でのDMARC設定数 | BQ3: MXレコードを有するドメイン名数 | BS3: MXレコードを有するドメイン名の中でのSPF設定数 | CC3: MXレコードを有するドメイン名の中でのDMARC設定数 | CM3: MXレコードを有するドメイン名数 | CO3: MXレコードを有するドメイン名の中でのSPF設定数 | CY3: MXレコードを有するドメイン名の中でのDMARC設定数 | DI3: MXレコードを有するドメイン名数 | DK3: MXレコードを有するドメイン名の中でのSPF設定数 | DU3: MXレコードを有するドメイン名の中でのDMARC設定数 | EE3: MXレコードを有するドメイン名数 | EG3: MXレコードを有するドメイン名の中でのSPF設定数 | EQ3: MXレコードを有するドメイン名の中でのDMARC設定数 | FA3: MXレコードを有するドメイン名数 | FC3: MXレコードを有するドメイン名の中でのSPF設定数 | FM3: MXレコードを有するドメイン名の中でのDMARC設定数 | FW3: MXレコードを有するドメイン名数 | FY3: MXレコードを有するドメイン名の中でのSPF設定数 | GI3: MXレコードを有するドメイン名の中でのDMARC設定数 | GS3: MXレコードを有するドメイン名数 | GU3: MXレコードを有するドメイン名の中でのSPF設定数 | HE3: MXレコードを有するドメイン名の中でのDMARC設定数 | HO3: MXレコードを有するドメイン名数 | HQ3: MXレコードを有するドメイン名の中でのSPF設定数 | IA3: MXレコードを有するドメイン名の中でのDMARC設定数 | IK3: MXレコードを有するドメイン名数 | IM3: MXレコードを有するドメイン名の中でのSPF設定数 | IW3: MXレコードを有するドメイン名の中でのDMARC設定数
G4: DMARCポリシーの設定状況 | K4: DMARCレポートの宛先の設定状況 | P4: DMARCポリシーの設定状況 | T4: DMARCレポートの宛先の設定状況 | AC4: DMARCポリシーの設定状況 | AG4: DMARCレポートの宛先の設定状況 | AL4: DMARCポリシーの設定状況 | AP4: DMARCレポートの宛先の設定状況 | AY4: DMARCポリシーの設定状況 | BC4: DMARCレポートの宛先の設定状況 | BH4: DMARCポリシーの設定状況 | BL4: DMARCレポートの宛先の設定状況 | BU4: DMARCポリシーの設定状況 | BY4: DMARCレポートの宛先の設定状況 | CD4: DMARCポリシーの設定状況 | CH4: DMARCレポートの宛先の設定状況 | CQ4: DMARCポリシーの設定状況 | CU4: DMARCレポートの宛先の設定状況 | CZ4: DMARCポリシーの設定状況 | DD4: DMARCレポートの宛先の設定状況 | DM4: DMARCポリシーの設定状況 | DQ4: DMARCレポートの宛先の設定状況 | DV4: DMARCポリシーの設定状況 | DZ4: DMARCレポートの宛先の設定状況 | EI4: DMARCポリシーの設定状況 | EM4: DMARCレポートの宛先の設定状況 | ER4: DMARCポリシーの設定状況 | EV4: DMARCレポートの宛先の設定状況 | FE4: DMARCポリシーの設定状況 | FI4: DMARCレポートの宛先の設定状況 | FN4: DMARCポリシーの設定状況 | FR4: DMARCレポートの宛先の設定状況 | GA4: DMARCポリシーの設定状況 | GE4: DMARCレポートの宛先の設定状況 | GJ4: DMARCポリシーの設定状況 | GN4: DMARCレポートの宛先の設定状況 | GW4: DMARCポリシーの設定状況 | HA4: DMARCレポートの宛先の設定状況 | HF4: DMARCポリシーの設定状況 | HJ4: DMARCレポートの宛先の設定状況 | HS4: DMARCポリシーの設定状況 | HW4: DMARCレポートの宛先の設定状況 | IB4: DMARCポリシーの設定状況 | IF4: DMARCレポートの宛先の設定状況 | IO4: DMARCポリシーの設定状況 | IS4: DMARCレポートの宛先の設定状況 | IX4: DMARCポリシーの設定状況 | JB4: DMARCレポートの宛先の設定状況
G5: p=rejectとしているドメイン名数 | H5: p=quarantineとしているドメイン名数 | I5: p=noneとしているドメイン名数 | J5: DMARCポリシーとして、reject、quarantine及びnone以外のものを記述（誤記）しているドメイン名数 | K5: ruaタグ及びrufタグを共に設定していないドメイン名数 | L5: ruaタグのみを設定しているドメイン名数 | M5: rufタグのみを設定しているドメイン名数 | N5: ruaタグ及びrufタグを共に設定しているドメイン名数 | P5: p=rejectとしているドメイン名数 | Q5: p=quarantineとしているドメイン名数 | R5: p=noneとしているドメイン名数 | S5: reject、quarantine、none以外を記述しているドメイン数 | T5: ruaタグ及びrufタグを共に設定していないドメイン名数 | U5: ruaタグのみを設定しているドメイン名数 | V5: rufタグのみを設定しているドメイン名数 | W5: ruaタグ及びrufタグを共に設定しているドメイン名数 | AC5: p=rejectとしているドメイン名数 | AD5: p=quarantineとしているドメイン名数 | AE5: p=noneとしているドメイン名数 | AF5: DMARCポリシーとして、reject、quarantine及びnone以外のものを記述（誤記）しているドメイン名数 | AG5: ruaタグ及びrufタグを共に設定していないドメイン名数 | AH5: ruaタグのみを設定しているドメイン名数 | AI5: rufタグのみを設定しているドメイン名数 | AJ5: ruaタグ及びrufタグを共に設定しているドメイン名数 | AL5: p=rejectとしているドメイン名数 | AM5: p=quarantineとしているドメイン名数 | AN5: p=noneとしているドメイン名数 | AO5: DMARCポリシーとして、reject、quarantine及びnone以外のものを記述（誤記）しているドメイン名数 | AP5: ruaタグ及びrufタグを共に設定していないドメイン名数 | AQ5: ruaタグのみを設定しているドメイン名数 | AR5: rufタグのみを設定しているドメイン名数 | AS5: ruaタグ及びrufタグを共に設定しているドメイン名数 | AY5: p=rejectとしているドメイン名数 | AZ5: p=quarantineとしているドメイン名数 | BA5: p=noneとしているドメイン名数 | BB5: DMARCポリシーとして、reject、quarantine及びnone以外のものを記述（誤記）しているドメイン名数 | BC5: ruaタグ及びrufタグを共に設定していないドメイン名数 | BD5: ruaタグのみを設定しているドメイン名数 | BE5: rufタグのみを設定しているドメイン名数 | BF5: ruaタグ及びrufタグを共に設定しているドメイン名数 | BH5: p=rejectとしているドメイン名数 | BI5: p=quarantineとしているドメイン名数 | BJ5: p=noneとしているドメイン名数 | BK5: DMARCポリシーとして、reject、quarantine及びnone以外のものを記述（誤記）しているドメイン名数 | BL5: ruaタグ及びrufタグを共に設定していないドメイン名数 | BM5: ruaタグのみを設定しているドメイン名数 | BN5: rufタグのみを設定しているドメイン名数 | BO5: ruaタグ及びrufタグを共に設定しているドメイン名数 | BU5: p=rejectとしているドメイン名数 | BV5: p=quarantineとしているドメイン名数 | BW5: p=noneとしているドメイン名数 | BX5: DMARCポリシーとして、reject、quarantine及びnone以外のものを記述（誤記）しているドメイン名数 | BY5: ruaタグ及びrufタグを共に設定していないドメイン名数 | BZ5: ruaタグのみを設定しているドメイン名数 | CA5: rufタグのみを設定しているドメイン名数 | CB5: ruaタグ及びrufタグを共に設定しているドメイン名数 | CD5: p=rejectとしているドメイン名数 | CE5: p=quarantineとしているドメイン名数 | CF5: p=noneとしているドメイン名数 | CG5: DMARCポリシーとして、reject、quarantine及びnone以外のものを記述（誤記）しているドメイン名数 | CH5: ruaタグ及びrufタグを共に設定していないドメイン名数 | CI5: ruaタグのみを設定しているドメイン名数 | CJ5: rufタグのみを設定しているドメイン名数 | CK5: ruaタグ及びrufタグを共に設定しているドメイン名数 | CQ5: p=rejectとしているドメイン名数 | CR5: p=quarantineとしているドメイン名数 | CS5: p=noneとしているドメイン名数 | CT5: DMARCポリシーとして、reject、quarantine及びnone以外のものを記述（誤記）しているドメイン名数 | CU5: ruaタグ及びrufタグを共に設定していないドメイン名数 | CV5: ruaタグのみを設定しているドメイン名数 | CW5: rufタグのみを設定しているドメイン名数 | CX5: ruaタグ及びrufタグを共に設定しているドメイン名数 | CZ5: p=rejectとしているドメイン名数 | DA5: p=quarantineとしているドメイン名数 | DB5: p=noneとしているドメイン名数 | DC5: DMARCポリシーとして、reject、quarantine及びnone以外のものを記述（誤記）しているドメイン名数 | DD5: ruaタグ及びrufタグを共に設定していないドメイン名数 | DE5: ruaタグのみを設定しているドメイン名数 | DF5: rufタグのみを設定しているドメイン名数 | DG5: ruaタグ及びrufタグを共に設定しているドメイン名数 | DM5: p=rejectとしているドメイン名数 | DN5: p=quarantineとしているドメイン名数 | DO5: p=noneとしているドメイン名数 | DP5: DMARCポリシーとして、reject、quarantine及びnone以外のものを記述（誤記）しているドメイン名数 | DQ5: ruaタグ及びrufタグを共に設定していないドメイン名数 | DR5: ruaタグのみを設定しているドメイン名数 | DS5: rufタグのみを設定しているドメイン名数 | DT5: ruaタグ及びrufタグを共に設定しているドメイン名数 | DV5: p=rejectとしているドメイン名数 | DW5: p=quarantineとしているドメイン名数 | DX5: p=noneとしているドメイン名数 | DY5: DMARCポリシーとして、reject、quarantine及びnone以外のものを記述（誤記）しているドメイン名数 | DZ5: ruaタグ及びrufタグを共に設定していないドメイン名数 | EA5: ruaタグのみを設定しているドメイン名数 | EB5: rufタグのみを設定しているドメイン名数 | EC5: ruaタグ及びrufタグを共に設定しているドメイン名数 | EI5: p=rejectとしているドメイン名数 | EJ5: p=quarantineとしているドメイン名数 | EK5: p=noneとしているドメイン名数 | EL5: DMARCポリシーとして、reject、quarantine及びnone以外のものを記述（誤記）しているドメイン名数 | EM5: ruaタグ及びrufタグを共に設定していないドメイン名数 | EN5: ruaタグのみを設定しているドメイン名数 | EO5: rufタグのみを設定しているドメイン名数 | EP5: ruaタグ及びrufタグを共に設定しているドメイン名数 | ER5: p=rejectとしているドメイン名数 | ES5: p=quarantineとしているドメイン名数 | ET5: p=noneとしているドメイン名数 | EU5: DMARCポリシーとして、reject、quarantine及びnone以外のものを記述（誤記）しているドメイン名数 | EV5: ruaタグ及びrufタグを共に設定していないドメイン名数 | EW5: ruaタグのみを設定しているドメイン名数 | EX5: rufタグのみを設定しているドメイン名数 | EY5: ruaタグ及びrufタグを共に設定しているドメイン名数 | FE5: p=rejectとしているドメイン名数 | FF5: p=quarantineとしているドメイン名数 | FG5: p=noneとしているドメイン名数 | FH5: DMARCポリシーとして、reject、quarantine及びnone以外のものを記述（誤記）しているドメイン名数 | FI5: ruaタグ及びrufタグを共に設定していないドメイン名数 | FJ5: ruaタグのみを設定しているドメイン名数 | FK5: rufタグのみを設定しているドメイン名数 | FL5: ruaタグ及びrufタグを共に設定しているドメイン名数 | FN5: p=rejectとしているドメイン名数 | FO5: p=quarantineとしているドメイン名数 | FP5: p=noneとしているドメイン名数 | FQ5: DMARCポリシーとして、reject、quarantine及びnone以外のものを記述（誤記）しているドメイン名数 | FR5: ruaタグ及びrufタグを共に設定していないドメイン名数 | FS5: ruaタグのみを設定しているドメイン名数 | FT5: rufタグのみを設定しているドメイン名数 | FU5: ruaタグ及びrufタグを共に設定しているドメイン名数 | GA5: p=rejectとしているドメイン名数 | GB5: p=quarantineとしているドメイン名数 | GC5: p=noneとしているドメイン名数 | GD5: DMARCポリシーとして、reject、quarantine及びnone以外のものを記述（誤記）しているドメイン名数 | GE5: ruaタグ及びrufタグを共に設定していないドメイン名数 | GF5: ruaタグのみを設定しているドメイン名数 | GG5: rufタグのみを設定しているドメイン名数 | GH5: ruaタグ及びrufタグを共に設定しているドメイン名数 | GJ5: p=rejectとしているドメイン名数 | GK5: p=quarantineとしているドメイン名数 | GL5: p=noneとしているドメイン名数 | GM5: DMARCポリシーとして、reject、quarantine及びnone以外のものを記述（誤記）しているドメイン名数 | GN5: ruaタグ及びrufタグを共に設定していないドメイン名数 | GO5: ruaタグのみを設定しているドメイン名数 | GP5: rufタグのみを設定しているドメイン名数 | GQ5: ruaタグ及びrufタグを共に設定しているドメイン名数 | GW5: p=rejectとしているドメイン名数 | GX5: p=quarantineとしているドメイン名数 | GY5: p=noneとしているドメイン名数 | GZ5: DMARCポリシーとして、reject、quarantine及びnone以外のものを記述（誤記）しているドメイン名数 | HA5: ruaタグ及びrufタグを共に設定していないドメイン名数 | HB5: ruaタグのみを設定しているドメイン名数 | HC5: rufタグのみを設定しているドメイン名数 | HD5: ruaタグ及びrufタグを共に設定しているドメイン名数 | HF5: p=rejectとしているドメイン名数 | HG5: p=quarantineとしているドメイン名数 | HH5: p=noneとしているドメイン名数 | HI5: DMARCポリシーとして、reject、quarantine及びnone以外のものを記述（誤記）しているドメイン名数 | HJ5: ruaタグ及びrufタグを共に設定していないドメイン名数 | HK5: ruaタグのみを設定しているドメイン名数 | HL5: rufタグのみを設定しているドメイン名数 | HM5: ruaタグ及びrufタグを共に設定しているドメイン名数 | HS5: p=rejectとしているドメイン名数 | HT5: p=quarantineとしているドメイン名数 | HU5: p=noneとしているドメイン名数 | HV5: DMARCポリシーとして、reject、quarantine及びnone以外のものを記述（誤記）しているドメイン名数 | HW5: ruaタグ及びrufタグを共に設定していないドメイン名数 | HX5: ruaタグのみを設定しているドメイン名数 | HY5: rufタグのみを設定しているドメイン名数 | HZ5: ruaタグ及びrufタグを共に設定しているドメイン名数 | IB5: p=rejectとしているドメイン名数 | IC5: p=quarantineとしているドメイン名数 | ID5: p=noneとしているドメイン名数 | IE5: DMARCポリシーとして、reject、quarantine及びnone以外のものを記述（誤記）しているドメイン名数 | IF5: ruaタグ及びrufタグを共に設定していないドメイン名数 | IG5: ruaタグのみを設定しているドメイン名数 | IH5: rufタグのみを設定しているドメイン名数 | II5: ruaタグ及びrufタグを共に設定しているドメイン名数 | IO5: p=rejectとしているドメイン名数 | IP5: p=quarantineとしているドメイン名数 | IQ5: p=noneとしているドメイン名数 | IR5: DMARCポリシーとして、reject、quarantine及びnone以外のものを記述（誤記）しているドメイン名数 | IS5: ruaタグ及びrufタグを共に設定していないドメイン名数 | IT5: ruaタグのみを設定しているドメイン名数 | IU5: rufタグのみを設定しているドメイン名数 | IV5: ruaタグ及びrufタグを共に設定しているドメイン名数 | IX5: p=rejectとしているドメイン名数 | IY5: p=quarantineとしているドメイン名数 | IZ5: p=noneとしているドメイン名数 | JA5: DMARCポリシーとして、reject、quarantine及びnone以外のものを記述（誤記）しているドメイン名数 | JB5: ruaタグ及びrufタグを共に設定していないドメイン名数 | JC5: ruaタグのみを設定しているドメイン名数 | JD5: rufタグのみを設定しているドメイン名数 | JE5: ruaタグ及びrufタグを共に設定しているドメイン名数
A6: 2018-01-01 | B6: 252 | C6: 212 | D6: 142 | E6: 140 | F6: 6 | G6: 0 | H6: 0 | I6: 6 | J6: 0 | K6: 2 | L6: 2 | M6: 0 | N6: 2 | O6: 6 | P6: 0 | Q6: 0 | R6: 6 | S6: 0 | T6: 2 | U6: 2 | V6: 0 | W6: 2 | X6: 3596 | Y6: 3367 | Z6: 2111 | AA6: 2086 | AB6: 11 | AC6: 1 | AD6: 1 | AE6: 9 | AF6: 0 | AG6: 5 | AH6: 5 | AI6: 0 | AJ6: 1 | AK6: 10 | AL6: 0 | AM6: 1 | AN6: 9 | AO6: 0 | AP6: 4 | AQ6: 5 | AR6: 0 | AS6: 1 | AT6: 403955 | AU6: 380239 | AV6: 254292 | AW6: 252961 | AX6: 1121 | AY6: 71 | AZ6: 50 | BA6: 993 | BB6: 7 | BC6: 715 | BD6: 229 | BE6: 6 | BF6: 171 | BG6: 1089 | BH6: 48 | BI6: 49 | BJ6: 985 | BK6: 7 | BL6: 711 | BM6: 220 | BN6: 6 | BO6: 152 | BP6: 582 | BQ6: 428 | BR6: 492 | BS6: 395 | BT6: 1 | BU6: 0 | BV6: 0 | BW6: 1 | BX6: 0 | BY6: 0 | BZ6: 1 | CA6: 0 | CB6: 0 | CC6: 1 | CD6: 0 | CE6: 0 | CF6: 1 | CG6: 0 | CH6: 0 | CI6: 1 | CJ6: 0 | CK6: 0 | CL6: 35146 | CM6: 33012 | CN6: 21233 | CO6: 21043 | CP6: 72 | CQ6: 2 | CR6: 7 | CS6: 63 | CT6: 0 | CU6: 38 | CV6: 15 | CW6: 0 | CX6: 19 | CY6: 71 | CZ6: 1 | DA6: 7 | DB6: 63 | DC6: 0 | DD6: 37 | DE6: 15 | DF6: 0 | DG6: 19 | DH6: 13044 | DI6: 10617 | DJ6: 5721 | DK6: 5590 | DL6: 102 | DM6: 3 | DN6: 6 | DO6: 93 | DP6: 0 | DQ6: 70 | DR6: 26 | DS6: 0 | DT6: 6 | DU6: 99 | DV6: 3 | DW6: 6 | DX6: 90 | DY6: 0 | DZ6: 68 | EA6: 25 | EB6: 0 | EC6: 6 | ED6: 6112 | EE6: 5438 | EF6: 2935 | EG6: 2884 | EH6: 27 | EI6: 1 | EJ6: 1 | EK6: 25 | EL6: 0 | EM6: 19 | EN6: 5 | EO6: 0 | EP6: 3 | EQ6: 27 | ER6: 1 | ES6: 1 | ET6: 25 | EU6: 0 | EV6: 19 | EW6: 5 | EX6: 0 | EY6: 3 | EZ6: 5230 | FA6: 4852 | FB6: 2889 | FC6: 2854 | FD6: 21 | FE6: 0 | FF6: 0 | FG6: 21 | FH6: 0 | FI6: 16 | FJ6: 2 | FK6: 0 | FL6: 3 | FM6: 21 | FN6: 0 | FO6: 0 | FP6: 21 | FQ6: 0 | FR6: 16 | FS6: 2 | FT6: 0 | FU6: 3 | FV6: 1652 | FW6: 1216 | FX6: 937 | FY6: 921 | FZ6: 2 | GA6: 0 | GB6: 1 | GC6: 1 | GD6: 0 | GE6: 0 | GF6: 2 | GG6: 0 | GH6: 0 | GI6: 2 | GJ6: 0 | GK6: 1 | GL6: 1 | GM6: 0 | GN6: 0 | GO6: 2 | GP6: 0 | GQ6: 0 | GR6: 13414 | GS6: 7530 | GT6: 4183 | GU6: 3959 | GV6: 150 | GW6: 124 | GX6: 2 | GY6: 24 | GZ6: 0 | HA6: 18 | HB6: 129 | HC6: 0 | HD6: 3 | HE6: 28 | HF6: 2 | HG6: 2 | HH6: 24 | HI6: 0 | HJ6: 18 | HK6: 7 | HL6: 0 | HM6: 3 | HN6: 988365 | HO6: 756800 | HP6: 404737 | HQ6: 391728 | HR6: 6322 | HS6: 1096 | HT6: 178 | HU6: 5043 | HV6: 5 | HW6: 1746 | HX6: 797 | HY6: 18 | HZ6: 3761 | IA6: 5565 | IB6: 535 | IC6: 162 | ID6: 4863 | IE6: 5 | IF6: 1686 | IG6: 536 | IH6: 18 | II6: 3325 | IJ6: =B6+X6+AT6+BP6+CL6+DH6+ED6+EZ6+FV6+GR6+HN6 -> 1471348 | IK6: 1203711 | IL6: 699672 | IM6: 684561 | IN6: 7835 | IO6: 1298 | IP6: 246 | IQ6: 6279 | IR6: 12 | IS6: 2629 | IT6: =L6+AH6+BD6+BZ6+CV6+DR6+EN6+FJ6+GF6+HB6+HX6 -> 1213 | IU6: 24 | IV6: 3969 | IW6: =O6+AK6+BG6+CC6+CY6+DU6+EQ6+FM6+GI6+HE6+IA6 -> 6919 | IX6: =P6+AL6+BH6+CD6+CZ6+DV6+ER6+FN6+GJ6+HF6+IB6 -> 590 | IY6: =Q6+AM6+BI6+CE6+DA6+DW6+ES6+FO6+GK6+HG6+IC6 -> 229 | IZ6: =R6+AN6+BJ6+CF6+DB6+DX6+ET6+FP6+GL6+HH6+ID6 -> 6088 | JA6: 12 | JB6: 2561 | JC6: 820 | JD6: 24 | JE6: =W6+AS6+BO6+CK6+DG6+EC6+EY6+FU6+GQ6+HM6+II6 -> 3514
A7: 2018-02-01 | B7: 252 | C7: 211 | D7: 143 | E7: 141 | F7: 6 | G7: 0 | H7: 0 | I7: 6 | J7: 0 | K7: 2 | L7: 2 | M7: 0 | N7: 2 | O7: 6 | P7: 0 | Q7: 0 | R7: 6 | S7: 0 | T7: 2 | U7: 2 | V7: 0 | W7: 2 | X7: 3602 | Y7: 3371 | Z7: 2124 | AA7: 2100 | AB7: 12 | AC7: 1 | AD7: 1 | AE7: 10 | AF7: 0 | AG7: 6 | AH7: 5 | AI7: 0 | AJ7: 1 | AK7: 11 | AL7: 0 | AM7: 1 | AN7: 10 | AO7: 0 | AP7: 5 | AQ7: 5 | AR7: 0 | AS7: 1 | AT7: 405300 | AU7: 381261 | AV7: 255581 | AW7: 254253 | AX7: 1175 | AY7: 77 | AZ7: 55 | BA7: 1036 | BB7: 7 | BC7: 746 | BD7: 238 | BE7: 7 | BF7: 184 | BG7: 1140 | BH7: 53 | BI7: 54 | BJ7: 1026 | BK7: 7 | BL7: 742 | BM7: 228 | BN7: 7 | BO7: 163 | BP7: 579 | BQ7: 427 | BR7: 495 | BS7: 395 | BT7: 1 | BU7: 0 | BV7: 0 | BW7: 1 | BX7: 0 | BY7: 0 | BZ7: 1 | CA7: 0 | CB7: 0 | CC7: 1 | CD7: 0 | CE7: 0 | CF7: 1 | CG7: 0 | CH7: 0 | CI7: 1 | CJ7: 0 | CK7: 0 | CL7: 35293 | CM7: 33154 | CN7: 21372 | CO7: 21183 | CP7: 77 | CQ7: 2 | CR7: 7 | CS7: 68 | CT7: 0 | CU7: 42 | CV7: 15 | CW7: 0 | CX7: 20 | CY7: 76 | CZ7: 1 | DA7: 7 | DB7: 68 | DC7: 0 | DD7: 41 | DE7: 15 | DF7: 0 | DG7: 20 | DH7: 13037 | DI7: 10605 | DJ7: 5728 | DK7: 5601 | DL7: 103 | DM7: 3 | DN7: 6 | DO7: 94 | DP7: 0 | DQ7: 71 | DR7: 25 | DS7: 0 | DT7: 7 | DU7: 100 | DV7: 3 | DW7: 6 | DX7: 91 | DY7: 0 | DZ7: 69 | EA7: 24 | EB7: 0 | EC7: 7 | ED7: 6100 | EE7: 5424 | EF7: 2940 | EG7: 2884 | EH7: 25 | EI7: 1 | EJ7: 1 | EK7: 23 | EL7: 0 | EM7: 19 | EN7: 4 | EO7: 0 | EP7: 2 | EQ7: 25 | ER7: 1 | ES7: 1 | ET7: 23 | EU7: 0 | EV7: 19 | EW7: 4 | EX7: 0 | EY7: 2 | EZ7: 5243 | FA7: 4857 | FB7: 2904 | FC7: 2867 | FD7: 21 | FE7: 0 | FF7: 0 | FG7: 21 | FH7: 0 | FI7: 16 | FJ7: 2 | FK7: 0 | FL7: 3 | FM7: 21 | FN7: 0 | FO7: 0 | FP7: 21 | FQ7: 0 | FR7: 16 | FS7: 2 | FT7: 0 | FU7: 3 | FV7: 1654 | FW7: 1217 | FX7: 939 | FY7: 922 | FZ7: 2 | GA7: 0 | GB7: 1 | GC7: 1 | GD7: 0 | GE7: 0 | GF7: 2 | GG7: 0 | GH7: 0 | GI7: 2 | GJ7: 0 | GK7: 1 | GL7: 1 | GM7: 0 | GN7: 0 | GO7: 2 | GP7: 0 | GQ7: 0 | GR7: 13317 | GS7: 7564 | GT7: 4244 | GU7: 4018 | GV7: 148 | GW7: 124 | GX7: 2 | GY7: 22 | GZ7: 0 | HA7: 17 | HB7: 128 | HC7: 0 | HD7: 3 | HE7: 26 | HF7: 2 | HG7: 2 | HH7: 22 | HI7: 0 | HJ7: 17 | HK7: 6 | HL7: 0 | HM7: 3 | HN7: 992488 | HO7: 757611 | HP7: 409050 | HQ7: 395924 | HR7: 6429 | HS7: 1130 | HT7: 182 | HU7: 5112 | HV7: 5 | HW7: 1812 | HX7: 815 | HY7: 18 | HZ7: 3784 | IA7: 5653 | IB7: 558 | IC7: 165 | ID7: 4925 | IE7: 5 | IF7: 1751 | IG7: 553 | IH7: 18 | II7: 3331 | IJ7: =B7+X7+AT7+BP7+CL7+DH7+ED7+EZ7+FV7+GR7+HN7 -> 1476865 | IK7: =C7+Y7+AU7+BQ7+CM7+DI7+EE7+FA7+FW7+GS7+HO7 -> 1205702 | IL7: =D7+Z7+AV7+BR7+CN7+DJ7+EF7+FB7+FX7+GT7+HP7 -> 705520 | IM7: =E7+AA7+AW7+BS7+CO7+DK7+EG7+FC7+FY7+GU7+HQ7 -> 690288 | IN7: =F7+AB7+AX7+BT7+CP7+DL7+EH7+FD7+FZ7+GV7+HR7 -> 7999 | IO7: =G7+AC7+AY7+BU7+CQ7+DM7+EI7+FE7+GA7+GW7+HS7 -> 1338 | IP7: =H7+AD7+AZ7+BV7+CR7+DN7+EJ7+FF7+GB7+GX7+HT7 -> 255 | IQ7: =I7+AE7+BA7+BW7+CS7+DO7+EK7+FG7+GC7+GY7+HU7 -> 6394 | IR7: =J7+AF7+BB7+BX7+CT7+DP7+EL7+FH7+GD7+GZ7+HV7 -> 12 | IS7: =K7+AG7+BC7+BY7+CU7+DQ7+EM7+FI7+GE7+HA7+HW7 -> 2731 | IT7: =L7+AH7+BD7+BZ7+CV7+DR7+EN7+FJ7+GF7+HB7+HX7 -> 1237 | IU7: =M7+AI7+BE7+CA7+CW7+DS7+EO7+FK7+GG7+HC7+HY7 -> 25 | IV7: =N7+AJ7+BF7+CB7+CX7+DT7+EP7+FL7+GH7+HD7+HZ7 -> 4006 | IW7: =O7+AK7+BG7+CC7+CY7+DU7+EQ7+FM7+GI7+HE7+IA7 -> 7061 | IX7: =P7+AL7+BH7+CD7+CZ7+DV7+ER7+FN7+GJ7+HF7+IB7 -> 618 | IY7: =Q7+AM7+BI7+CE7+DA7+DW7+ES7+FO7+GK7+HG7+IC7 -> 237 | IZ7: =R7+AN7+BJ7+CF7+DB7+DX7+ET7+FP7+GL7+HH7+ID7 -> 6194 | JA7: =S7+AO7+BK7+CG7+DC7+DY7+EU7+FQ7+GM7+HI7+IE7 -> 12 | JB7: =T7+AP7+BL7+CH7+DD7+DZ7+EV7+FR7+GN7+HJ7+IF7 -> 2662 | JC7: =U7+AQ7+BM7+CI7+DE7+EA7+EW7+FS7+GO7+HK7+IG7 -> 842 | JD7: =V7+AR7+BN7+CJ7+DF7+EB7+EX7+FT7+GP7+HL7+IH7 -> 25 | JE7: =W7+AS7+BO7+CK7+DG7+EC7+EY7+FU7+GQ7+HM7+II7 -> 3532
A8: 2018-03-01 | B8: 252 | C8: 211 | D8: 142 | E8: 140 | F8: 6 | G8: 0 | H8: 0 | I8: 6 | J8: 0 | K8: 2 | L8: 2 | M8: 0 | N8: 2 | O8: 6 | P8: 0 | Q8: 0 | R8: 6 | S8: 0 | T8: 2 | U8: 2 | V8: 0 | W8: 2 | X8: 3614 | Y8: 3383 | Z8: 2143 | AA8: 2120 | AB8: 14 | AC8: 1 | AD8: 1 | AE8: 12 | AF8: 0 | AG8: 6 | AH8: 7 | AI8: 0 | AJ8: 1 | AK8: 13 | AL8: 0 | AM8: 1 | AN8: 12 | AO8: 0 | AP8: 5 | AQ8: 7 | AR8: 0 | AS8: 1 | AT8: 406453 | AU8: 382449 | AV8: 256930 | AW8: 255613 | AX8: 1210 | AY8: 78 | AZ8: 61 | BA8: 1064 | BB8: 7 | BC8: 757 | BD8: 248 | BE8: 7 | BF8: 198 | BG8: 1172 | BH8: 52 | BI8: 60 | BJ8: 1053 | BK8: 7 | BL8: 753 | BM8: 237 | BN8: 7 | BO8: 175 | BP8: 581 | BQ8: 423 | BR8: 491 | BS8: 391 | BT8: 3 | BU8: 0 | BV8: 0 | BW8: 3 | BX8: 0 | BY8: 0 | BZ8: 2 | CA8: 0 | CB8: 1 | CC8: 3 | CD8: 0 | CE8: 0 | CF8: 3 | CG8: 0 | CH8: 0 | CI8: 2 | CJ8: 0 | CK8: 1 | CL8: 35425 | CM8: 33286 | CN8: 21491 | CO8: 21304 | CP8: 85 | CQ8: 2 | CR8: 7 | CS8: 76 | CT8: 0 | CU8: 47 | CV8: 15 | CW8: 0 | CX8: 23 | CY8: 84 | CZ8: 1 | DA8: 7 | DB8: 76 | DC8: 0 | DD8: 46 | DE8: 15 | DF8: 0 | DG8: 23 | DH8: 13008 | DI8: 10583 | DJ8: 5728 | DK8: 5602 | DL8: 105 | DM8: 3 | DN8: 6 | DO8: 96 | DP8: 0 | DQ8: 71 | DR8: 27 | DS8: 0 | DT8: 7 | DU8: 102 | DV8: 3 | DW8: 6 | DX8: 93 | DY8: 0 | DZ8: 69 | EA8: 26 | EB8: 0 | EC8: 7 | ED8: 6093 | EE8: 5425 | EF8: 2944 | EG8: 2892 | EH8: 27 | EI8: 1 | EJ8: 1 | EK8: 25 | EL8: 0 | EM8: 19 | EN8: 5 | EO8: 0 | EP8: 3 | EQ8: 27 | ER8: 1 | ES8: 1 | ET8: 25 | EU8: 0 | EV8: 19 | EW8: 5 | EX8: 0 | EY8: 3 | EZ8: 5267 | FA8: 4864 | FB8: 2931 | FC8: 2898 | FD8: 21 | FE8: 0 | FF8: 0 | FG8: 21 | FH8: 0 | FI8: 16 | FJ8: 2 | FK8: 0 | FL8: 3 | FM8: 21 | FN8: 0 | FO8: 0 | FP8: 21 | FQ8: 0 | FR8: 16 | FS8: 2 | FT8: 0 | FU8: 3 | FV8: 1656 | FW8: 1220 | FX8: 943 | FY8: 930 | FZ8: 2 | GA8: 0 | GB8: 1 | GC8: 1 | GD8: 0 | GE8: 0 | GF8: 2 | GG8: 0 | GH8: 0 | GI8: 2 | GJ8: 0 | GK8: 1 | GL8: 1 | GM8: 0 | GN8: 0 | GO8: 2 | GP8: 0 | GQ8: 0 | GR8: 13319 | GS8: 7593 | GT8: 4114 | GU8: 3905 | GV8: 153 | GW8: 124 | GX8: 2 | GY8: 27 | GZ8: 0 | HA8: 18 | HB8: 132 | HC8: 0 | HD8: 3 | HE8: 31 | HF8: 2 | HG8: 2 | HH8: 27 | HI8: 0 | HJ8: 18 | HK8: 10 | HL8: 0 | HM8: 3 | HN8: 996067 | HO8: 759837 | HP8: 410907 | HQ8: 397925 | HR8: 6547 | HS8: 1152 | HT8: 182 | HU8: 5207 | HV8: 6 | HW8: 1884 | HX8: 834 | HY8: 18 | HZ8: 3811 | IA8: 5527 | IB8: 569 | IC8: 166 | ID8: 4786 | IE8: 6 | IF8: 1821 | IG8: 573 | IH8: 18 | II8: 3115 | IJ8: 1481735 | IK8: 1209274 | IL8: 708764 | IM8: 693720 | IN8: 8173 | IO8: =G8+AC8+AY8+BU8+CQ8+DM8+EI8+FE8+GA8+GW8+HS8 -> 1361 | IP8: 261 | IQ8: 6538 | IR8: 13 | IS8: =K8+AG8+BC8+BY8+CU8+DQ8+EM8+FI8+GE8+HA8+HW8 -> 2820 | IT8: 1276 | IU8: 25 | IV8: 4052 | IW8: 6988 | IX8: 628 | IY8: 244 | IZ8: 6103 | JA8: 13 | JB8: 2749 | JC8: 881 | JD8: 25 | JE8: =W8+AS8+BO8+CK8+DG8+EC8+EY8+FU8+GQ8+HM8+II8 -> 3333
A9: 2018-04-01 | B9: 252 | C9: 211 | D9: 142 | E9: 140 | F9: 6 | G9: 0 | H9: 0 | I9: 6 | J9: 0 | K9: 2 | L9: 2 | M9: 0 | N9: 2 | O9: 6 | P9: 0 | Q9: 0 | R9: 6 | S9: 0 | T9: 2 | U9: 2 | V9: 0 | W9: 2 | X9: 3618 | Y9: 3397 | Z9: 2155 | AA9: 2136 | AB9: 16 | AC9: 1 | AD9: 1 | AE9: 14 | AF9: 0 | AG9: 7 | AH9: 8 | AI9: 0 | AJ9: 1 | AK9: 15 | AL9: 0 | AM9: 1 | AN9: 14 | AO9: 0 | AP9: 6 | AQ9: 8 | AR9: 0 | AS9: 1 | AT9: 407639 | AU9: 383618 | AV9: 258271 | AW9: 256964 | AX9: 1256 | AY9: 82 | AZ9: 63 | BA9: 1104 | BB9: 7 | BC9: 779 | BD9: 255 | BE9: 11 | BF9: 211 | BG9: 1219 | BH9: 56 | BI9: 62 | BJ9: 1094 | BK9: 7 | BL9: 775 | BM9: 245 | BN9: 11 | BO9: 188 | BP9: 571 | BQ9: 415 | BR9: 484 | BS9: 386 | BT9: 4 | BU9: 0 | BV9: 0 | BW9: 4 | BX9: 0 | BY9: 0 | BZ9: 2 | CA9: 0 | CB9: 2 | CC9: 4 | CD9: 0 | CE9: 0 | CF9: 4 | CG9: 0 | CH9: 0 | CI9: 2 | CJ9: 0 | CK9: 2 | CL9: 35553 | CM9: 33392 | CN9: 21620 | CO9: 21431 | CP9: 91 | CQ9: 3 | CR9: 7 | CS9: 81 | CT9: 0 | CU9: 51 | CV9: 16 | CW9: 0 | CX9: 24 | CY9: 90 | CZ9: 2 | DA9: 7 | DB9: 81 | DC9: 0 | DD9: 50 | DE9: 16 | DF9: 0 | DG9: 24 | DH9: 12969 | DI9: 10564 | DJ9: 5743 | DK9: 5619 | DL9: 106 | DM9: 3 | DN9: 6 | DO9: 97 | DP9: 0 | DQ9: 71 | DR9: 27 | DS9: 0 | DT9: 8 | DU9: 103 | DV9: 3 | DW9: 6 | DX9: 94 | DY9: 0 | DZ9: 69 | EA9: 26 | EB9: 0 | EC9: 8 | ED9: 6080 | EE9: 5421 | EF9: 2956 | EG9: 2907 | EH9: 27 | EI9: 1 | EJ9: 1 | EK9: 25 | EL9: 0 | EM9: 20 | EN9: 4 | EO9: 0 | EP9: 3 | EQ9: 27 | ER9: 1 | ES9: 1 | ET9: 25 | EU9: 0 | EV9: 20 | EW9: 4 | EX9: 0 | EY9: 3 | EZ9: 5280 | FA9: 4869 | FB9: 2952 | FC9: 2919 | FD9: 22 | FE9: 1 | FF9: 0 | FG9: 21 | FH9: 0 | FI9: 16 | FJ9: 3 | FK9: 0 | FL9: 3 | FM9: 22 | FN9: 1 | FO9: 0 | FP9: 21 | FQ9: 0 | FR9: 16 | FS9: 3 | FT9: 0 | FU9: 3 | FV9: 1656 | FW9: 1216 | FX9: 942 | FY9: 930 | FZ9: 2 | GA9: 0 | GB9: 1 | GC9: 1 | GD9: 0 | GE9: 0 | GF9: 2 | GG9: 0 | GH9: 0 | GI9: 2 | GJ9: 0 | GK9: 1 | GL9: 1 | GM9: 0 | GN9: 0 | GO9: 2 | GP9: 0 | GQ9: 0 | GR9: 13319 | GS9: 7577 | GT9: 4123 | GU9: 3921 | GV9: 154 | GW9: 125 | GX9: 2 | GY9: 27 | GZ9: 0 | HA9: 19 | HB9: 132 | HC9: 0 | HD9: 3 | HE9: 32 | HF9: 3 | HG9: 2 | HH9: 27 | HI9: 0 | HJ9: 19 | HK9: 10 | HL9: 0 | HM9: 3 | HN9: 998474 | HO9: 760827 | HP9: 412523 | HQ9: 399561 | HR9: 6591 | HS9: 1224 | HT9: 188 | HU9: 5174 | HV9: 5 | HW9: 1971 | HX9: 852 | HY9: 22 | HZ9: 3746 | IA9: 5581 | IB9: 584 | IC9: 174 | ID9: 4818 | IE9: 5 | IF9: 1905 | IG9: 592 | IH9: 22 | II9: 3062 | IJ9: =B9+X9+AT9+BP9+CL9+DH9+ED9+EZ9+FV9+GR9+HN9 -> 1485411 | IK9: =C9+Y9+AU9+BQ9+CM9+DI9+EE9+FA9+FW9+GS9+HO9 -> 1211507 | IL9: =D9+Z9+AV9+BR9+CN9+DJ9+EF9+FB9+FX9+GT9+HP9 -> 711911 | IM9: =E9+AA9+AW9+BS9+CO9+DK9+EG9+FC9+FY9+GU9+HQ9 -> 696914 | IN9: =F9+AB9+AX9+BT9+CP9+DL9+EH9+FD9+FZ9+GV9+HR9 -> 8275 | IO9: =G9+AC9+AY9+BU9+CQ9+DM9+EI9+FE9+GA9+GW9+HS9 -> 1440 | IP9: =H9+AD9+AZ9+BV9+CR9+DN9+EJ9+FF9+GB9+GX9+HT9 -> 269 | IQ9: =I9+AE9+BA9+BW9+CS9+DO9+EK9+FG9+GC9+GY9+HU9 -> 6554 | IR9: =J9+AF9+BB9+BX9+CT9+DP9+EL9+FH9+GD9+GZ9+HV9 -> 12 | IS9: =K9+AG9+BC9+BY9+CU9+DQ9+EM9+FI9+GE9+HA9+HW9 -> 2936 | IT9: =L9+AH9+BD9+BZ9+CV9+DR9+EN9+FJ9+GF9+HB9+HX9 -> 1303 | IU9: =M9+AI9+BE9+CA9+CW9+DS9+EO9+FK9+GG9+HC9+HY9 -> 33 | IV9: =N9+AJ9+BF9+CB9+CX9+DT9+EP9+FL9+GH9+HD9+HZ9 -> 4003 | IW9: =O9+AK9+BG9+CC9+CY9+DU9+EQ9+FM9+GI9+HE9+IA9 -> 7101 | IX9: =P9+AL9+BH9+CD9+CZ9+DV9+ER9+FN9+GJ9+HF9+IB9 -> 650 | IY9: =Q9+AM9+BI9+CE9+DA9+DW9+ES9+FO9+GK9+HG9+IC9 -> 254 | IZ9: =R9+AN9+BJ9+CF9+DB9+DX9+ET9+FP9+GL9+HH9+ID9 -> 6185 | JA9: =S9+AO9+BK9+CG9+DC9+DY9+EU9+FQ9+GM9+HI9+IE9 -> 12 | JB9: =T9+AP9+BL9+CH9+DD9+DZ9+EV9+FR9+GN9+HJ9+IF9 -> 2862 | JC9: =U9+AQ9+BM9+CI9+DE9+EA9+EW9+FS9+GO9+HK9+IG9 -> 910 | JD9: =V9+AR9+BN9+CJ9+DF9+EB9+EX9+FT9+GP9+HL9+IH9 -> 33 | JE9: 3296
A10: 2018-05-01 | B10: 252 | C10: 211 | D10: 143 | E10: 141 | F10: 6 | G10: 0 | H10: 0 | I10: 6 | J10: 0 | K10: 2 | L10: 2 | M10: 0 | N10: 2 | O10: 6 | P10: 0 | Q10: 0 | R10: 6 | S10: 0 | T10: 2 | U10: 2 | V10: 0 | W10: 2 | X10: 3612 | Y10: 3394 | Z10: 2159 | AA10: 2139 | AB10: 18 | AC10: 1 | AD10: 1 | AE10: 16 | AF10: 0 | AG10: 8 | AH10: 8 | AI10: 0 | AJ10: 2 | AK10: 17 | AL10: 0 | AM10: 1 | AN10: 16 | AO10: 0 | AP10: 7 | AQ10: 8 | AR10: 0 | AS10: 2 | AT10: 408670 | AU10: 384433 | AV10: 259206 | AW10: 257864 | AX10: 1310 | AY10: 84 | AZ10: 66 | BA10: 1150 | BB10: 10 | BC10: 812 | BD10: 266 | BE10: 12 | BF10: 220 | BG10: 1271 | BH10: 56 | BI10: 65 | BJ10: 1140 | BK10: 10 | BL10: 807 | BM10: 257 | BN10: 12 | BO10: 195 | BP10: 571 | BQ10: 413 | BR10: 474 | BS10: 383 | BT10: 4 | BU10: 0 | BV10: 0 | BW10: 4 | BX10: 0 | BY10: 0 | BZ10: 2 | CA10: 0 | CB10: 2 | CC10: 4 | CD10: 0 | CE10: 0 | CF10: 4 | CG10: 0 | CH10: 0 | CI10: 2 | CJ10: 0 | CK10: 2 | CL10: 35630 | CM10: 33409 | CN10: 21708 | CO10: 21518 | CP10: 94 | CQ10: 3 | CR10: 7 | CS10: 84 | CT10: 0 | CU10: 53 | CV10: 17 | CW10: 0 | CX10: 24 | CY10: 93 | CZ10: 2 | DA10: 7 | DB10: 84 | DC10: 0 | DD10: 52 | DE10: 17 | DF10: 0 | DG10: 24 | DH10: 12947 | DI10: 10541 | DJ10: 5747 | DK10: 5621 | DL10: 106 | DM10: 4 | DN10: 6 | DO10: 96 | DP10: 0 | DQ10: 71 | DR10: 27 | DS10: 0 | DT10: 8 | DU10: 103 | DV10: 4 | DW10: 6 | DX10: 93 | DY10: 0 | DZ10: 69 | EA10: 26 | EB10: 0 | EC10: 8 | ED10: 6064 | EE10: 5407 | EF10: 2954 | EG10: 2904 | EH10: 30 | EI10: 1 | EJ10: 2 | EK10: 27 | EL10: 0 | EM10: 20 | EN10: 6 | EO10: 1 | EP10: 3 | EQ10: 30 | ER10: 1 | ES10: 2 | ET10: 27 | EU10: 0 | EV10: 20 | EW10: 6 | EX10: 1 | EY10: 3 | EZ10: 5242 | FA10: 4855 | FB10: 2965 | FC10: 2930 | FD10: 22 | FE10: 0 | FF10: 0 | FG10: 22 | FH10: 0 | FI10: 16 | FJ10: 3 | FK10: 0 | FL10: 3 | FM10: 22 | FN10: 0 | FO10: 0 | FP10: 22 | FQ10: 0 | FR10: 16 | FS10: 3 | FT10: 0 | FU10: 3 | FV10: 1656 | FW10: 1217 | FX10: 942 | FY10: 930 | FZ10: 2 | GA10: 0 | GB10: 1 | GC10: 1 | GD10: 0 | GE10: 0 | GF10: 2 | GG10: 0 | GH10: 0 | GI10: 2 | GJ10: 0 | GK10: 1 | GL10: 1 | GM10: 0 | GN10: 0 | GO10: 2 | GP10: 0 | GQ10: 0 | GR10: 13263 | GS10: 7595 | GT10: 4147 | GU10: 3950 | GV10: 153 | GW10: 125 | GX10: 2 | GY10: 26 | GZ10: 0 | HA10: 18 | HB10: 132 | HC10: 0 | HD10: 3 | HE10: 31 | HF10: 3 | HG10: 2 | HH10: 26 | HI10: 0 | HJ10: 18 | HK10: 10 | HL10: 0 | HM10: 3 | HN10: 1000319 | HO10: 761641 | HP10: 413841 | HQ10: 400852 | HR10: 6781 | HS10: 1232 | HT10: 193 | HU10: 5350 | HV10: 6 | HW10: 2017 | HX10: 1003 | HY10: 24 | HZ10: 3737 | IA10: 5804 | IB10: 589 | IC10: 179 | ID10: 5030 | IE10: 6 | IF10: 1950 | IG10: 740 | IH10: 24 | II10: 3090 | IJ10: 1488226 | IK10: 1213116 | IL10: 714286 | IM10: 699232 | IN10: 8526 | IO10: 1450 | IP10: 278 | IQ10: 6782 | IR10: 16 | IS10: 3017 | IT10: 1468 | IU10: 37 | IV10: 4004 | IW10: 7383 | IX10: 655 | IY10: 263 | IZ10: 6449 | JA10: 16 | JB10: 2941 | JC10: 1073 | JD10: 37 | JE10: 3332
A11: 2018-06-01 | B11: 252 | C11: 211 | D11: 145 | E11: 143 | F11: 6 | G11: 0 | H11: 0 | I11: 6 | J11: 0 | K11: 2 | L11: 2 | M11: 0 | N11: 2 | O11: 6 | P11: 0 | Q11: 0 | R11: 6 | S11: 0 | T11: 2 | U11: 2 | V11: 0 | W11: 2 | X11: 3615 | Y11: 3398 | Z11: 2170 | AA11: 2152 | AB11: 21 | AC11: 1 | AD11: 2 | AE11: 18 | AF11: 0 | AG11: 9 | AH11: 8 | AI11: 1 | AJ11: 3 | AK11: 20 | AL11: 0 | AM11: 2 | AN11: 18 | AO11: 0 | AP11: 8 | AQ11: 8 | AR11: 1 | AS11: 3 | AT11: 409971 | AU11: 385580 | AV11: 260589 | AW11: 259255 | AX11: 1346 | AY11: 93 | AZ11: 67 | BA11: 1178 | BB11: 8 | BC11: 823 | BD11: 273 | BE11: 11 | BF11: 239 | BG11: 1303 | BH11: 62 | BI11: 66 | BJ11: 1167 | BK11: 8 | BL11: 818 | BM11: 264 | BN11: 11 | BO11: 210 | BP11: 570 | BQ11: 416 | BR11: 475 | BS11: 385 | BT11: 4 | BU11: 0 | BV11: 0 | BW11: 4 | BX11: 0 | BY11: 0 | BZ11: 2 | CA11: 0 | CB11: 2 | CC11: 4 | CD11: 0 | CE11: 0 | CF11: 4 | CG11: 0 | CH11: 0 | CI11: 2 | CJ11: 0 | CK11: 2 | CL11: 35729 | CM11: 33497 | CN11: 21808 | CO11: 21622 | CP11: 94 | CQ11: 3 | CR11: 6 | CS11: 85 | CT11: 0 | CU11: 53 | CV11: 16 | CW11: 0 | CX11: 25 | CY11: 93 | CZ11: 2 | DA11: 6 | DB11: 85 | DC11: 0 | DD11: 52 | DE11: 16 | DF11: 0 | DG11: 25 | DH11: 12925 | DI11: 10533 | DJ11: 5762 | DK11: 5640 | DL11: 107 | DM11: 4 | DN11: 6 | DO11: 97 | DP11: 0 | DQ11: 70 | DR11: 27 | DS11: 0 | DT11: 10 | DU11: 104 | DV11: 4 | DW11: 6 | DX11: 94 | DY11: 0 | DZ11: 68 | EA11: 26 | EB11: 0 | EC11: 10 | ED11: 6049 | EE11: 5390 | EF11: 2946 | EG11: 2896 | EH11: 28 | EI11: 1 | EJ11: 2 | EK11: 25 | EL11: 0 | EM11: 20 | EN11: 5 | EO11: 0 | EP11: 3 | EQ11: 28 | ER11: 1 | ES11: 2 | ET11: 25 | EU11: 0 | EV11: 20 | EW11: 5 | EX11: 0 | EY11: 3 | EZ11: 5250 | FA11: 4867 | FB11: 2977 | FC11: 2942 | FD11: 24 | FE11: 0 | FF11: 1 | FG11: 23 | FH11: 0 | FI11: 17 | FJ11: 4 | FK11: 0 | FL11: 3 | FM11: 24 | FN11: 0 | FO11: 1 | FP11: 23 | FQ11: 0 | FR11: 17 | FS11: 4 | FT11: 0 | FU11: 3 | FV11: 1657 | FW11: 1215 | FX11: 941 | FY11: 930 | FZ11: 2 | GA11: 0 | GB11: 1 | GC11: 1 | GD11: 0 | GE11: 0 | GF11: 2 | GG11: 0 | GH11: 0 | GI11: 2 | GJ11: 0 | GK11: 1 | GL11: 1 | GM11: 0 | GN11: 0 | GO11: 2 | GP11: 0 | GQ11: 0 | GR11: 13239 | GS11: 7607 | GT11: 4194 | GU11: 3995 | GV11: 154 | GW11: 125 | GX11: 2 | GY11: 27 | GZ11: 0 | HA11: 19 | HB11: 132 | HC11: 0 | HD11: 3 | HE11: 32 | HF11: 3 | HG11: 2 | HH11: 27 | HI11: 0 | HJ11: 19 | HK11: 10 | HL11: 0 | HM11: 3 | HN11: 1002852 | HO11: 763786 | HP11: 415204 | HQ11: 402325 | HR11: 7231 | HS11: 1267 | HT11: 202 | HU11: 5756 | HV11: 6 | HW11: 2082 | HX11: 1030 | HY11: 28 | HZ11: 4091 | IA11: 5967 | IB11: 610 | IC11: 183 | ID11: 5168 | IE11: 6 | IF11: 2014 | IG11: 769 | IH11: 28 | II11: 3156 | IJ11: =B11+X11+AT11+BP11+CL11+DH11+ED11+EZ11+FV11+GR11+HN11 -> 1492109 | IK11: =C11+Y11+AU11+BQ11+CM11+DI11+EE11+FA11+FW11+GS11+HO11 -> 1216500 | IL11: =D11+Z11+AV11+BR11+CN11+DJ11+EF11+FB11+FX11+GT11+HP11 -> 717211 | IM11: =E11+AA11+AW11+BS11+CO11+DK11+EG11+FC11+FY11+GU11+HQ11 -> 702285 | IN11: =F11+AB11+AX11+BT11+CP11+DL11+EH11+FD11+FZ11+GV11+HR11 -> 9017 | IO11: =G11+AC11+AY11+BU11+CQ11+DM11+EI11+FE11+GA11+GW11+HS11 -> 1494 | IP11: =H11+AD11+AZ11+BV11+CR11+DN11+EJ11+FF11+GB11+GX11+HT11 -> 289 | IQ11: =I11+AE11+BA11+BW11+CS11+DO11+EK11+FG11+GC11+GY11+HU11 -> 7220 | IR11: =J11+AF11+BB11+BX11+CT11+DP11+EL11+FH11+GD11+GZ11+HV11 -> 14 | IS11: =K11+AG11+BC11+BY11+CU11+DQ11+EM11+FI11+GE11+HA11+HW11 -> 3095 | IT11: =L11+AH11+BD11+BZ11+CV11+DR11+EN11+FJ11+GF11+HB11+HX11 -> 1501 | IU11: =M11+AI11+BE11+CA11+CW11+DS11+EO11+FK11+GG11+HC11+HY11 -> 40 | IV11: =N11+AJ11+BF11+CB11+CX11+DT11+EP11+FL11+GH11+HD11+HZ11 -> 4381 | IW11: =O11+AK11+BG11+CC11+CY11+DU11+EQ11+FM11+GI11+HE11+IA11 -> 7583 | IX11: =P11+AL11+BH11+CD11+CZ11+DV11+ER11+FN11+GJ11+HF11+IB11 -> 682 | IY11: =Q11+AM11+BI11+CE11+DA11+DW11+ES11+FO11+GK11+HG11+IC11 -> 269 | IZ11: =R11+AN11+BJ11+CF11+DB11+DX11+ET11+FP11+GL11+HH11+ID11 -> 6618 | JA11: =S11+AO11+BK11+CG11+DC11+DY11+EU11+FQ11+GM11+HI11+IE11 -> 14 | JB11: =T11+AP11+BL11+CH11+DD11+DZ11+EV11+FR11+GN11+HJ11+IF11 -> 3018 | JC11: =U11+AQ11+BM11+CI11+DE11+EA11+EW11+FS11+GO11+HK11+IG11 -> 1108 | JD11: =V11+AR11+BN11+CJ11+DF11+EB11+EX11+FT11+GP11+HL11+IH11 -> 40 | JE11: 3417
A12: 2018-07-01 | B12: 251 | C12: 211 | D12: 145 | E12: 143 | F12: 6 | G12: 0 | H12: 0 | I12: 6 | J12: 0 | K12: 2 | L12: 2 | M12: 0 | N12: 2 | O12: 6 | P12: 0 | Q12: 0 | R12: 6 | S12: 0 | T12: 2 | U12: 2 | V12: 0 | W12: 2 | X12: 3620 | Y12: 3402 | Z12: 2182 | AA12: 2164 | AB12: 24 | AC12: 1 | AD12: 2 | AE12: 21 | AF12: 0 | AG12: 10 | AH12: 10 | AI12: 1 | AJ12: 3 | AK12: 23 | AL12: 0 | AM12: 2 | AN12: 21 | AO12: 0 | AP12: 9 | AQ12: 10 | AR12: 1 | AS12: 3 | AT12: 410865 | AU12: 386706 | AV12: 261992 | AW12: 260677 | AX12: 1391 | AY12: 93 | AZ12: 73 | BA12: 1217 | BB12: 8 | BC12: 844 | BD12: 288 | BE12: 11 | BF12: 248 | BG12: 1346 | BH12: 61 | BI12: 72 | BJ12: 1205 | BK12: 8 | BL12: 839 | BM12: 278 | BN12: 11 | BO12: 218 | BP12: 570 | BQ12: 416 | BR12: 473 | BS12: 385 | BT12: 4 | BU12: 0 | BV12: 0 | BW12: 4 | BX12: 0 | BY12: 0 | BZ12: 2 | CA12: 0 | CB12: 2 | CC12: 4 | CD12: 0 | CE12: 0 | CF12: 4 | CG12: 0 | CH12: 0 | CI12: 2 | CJ12: 0 | CK12: 2 | CL12: 35768 | CM12: 33534 | CN12: 21894 | CO12: 21705 | CP12: 96 | CQ12: 4 | CR12: 6 | CS12: 86 | CT12: 0 | CU12: 53 | CV12: 16 | CW12: 0 | CX12: 27 | CY12: 95 | CZ12: 3 | DA12: 6 | DB12: 86 | DC12: 0 | DD12: 52 | DE12: 16 | DF12: 0 | DG12: 27 | DH12: 12902 | DI12: 10526 | DJ12: 5782 | DK12: 5663 | DL12: 111 | DM12: 4 | DN12: 7 | DO12: 100 | DP12: 0 | DQ12: 71 | DR12: 28 | DS12: 1 | DT12: 11 | DU12: 108 | DV12: 4 | DW12: 7 | DX12: 97 | DY12: 0 | DZ12: 69 | EA12: 27 | EB12: 1 | EC12: 11 | ED12: 6036 | EE12: 5382 | EF12: 2946 | EG12: 2898 | EH12: 33 | EI12: 1 | EJ12: 2 | EK12: 30 | EL12: 0 | EM12: 23 | EN12: 5 | EO12: 0 | EP12: 5 | EQ12: 33 | ER12: 1 | ES12: 2 | ET12: 30 | EU12: 0 | EV12: 23 | EW12: 5 | EX12: 0 | EY12: 5 | EZ12: 5252 | FA12: 4868 | FB12: 2982 | FC12: 2947 | FD12: 25 | FE12: 0 | FF12: 1 | FG12: 24 | FH12: 0 | FI12: 18 | FJ12: 4 | FK12: 0 | FL12: 3 | FM12: 25 | FN12: 0 | FO12: 1 | FP12: 24 | FQ12: 0 | FR12: 18 | FS12: 4 | FT12: 0 | FU12: 3 | FV12: 1657 | FW12: 1216 | FX12: 946 | FY12: 933 | FZ12: 2 | GA12: 0 | GB12: 1 | GC12: 1 | GD12: 0 | GE12: 0 | GF12: 2 | GG12: 0 | GH12: 0 | GI12: 2 | GJ12: 0 | GK12: 1 | GL12: 1 | GM12: 0 | GN12: 0 | GO12: 2 | GP12: 0 | GQ12: 0 | GR12: 13032 | GS12: 7596 | GT12: 4174 | GU12: 3977 | GV12: 158 | GW12: 125 | GX12: 2 | GY12: 31 | GZ12: 0 | HA12: 22 | HB12: 132 | HC12: 0 | HD12: 4 | HE12: 36 | HF12: 3 | HG12: 2 | HH12: 31 | HI12: 0 | HJ12: 22 | HK12: 10 | HL12: 0 | HM12: 4 | HN12: 1005327 | HO12: 764403 | HP12: 417442 | HQ12: 404326 | HR12: 7551 | HS12: 1316 | HT12: 207 | HU12: 6022 | HV12: 6 | HW12: 2182 | HX12: 1059 | HY12: 28 | HZ12: 4282 | IA12: 6257 | IB12: 646 | IC12: 190 | ID12: 5415 | IE12: 6 | IF12: 2114 | IG12: 794 | IH12: 28 | II12: 3321 | IJ12: =B12+X12+AT12+BP12+CL12+DH12+ED12+EZ12+FV12+GR12+HN12 -> 1495280 | IK12: =C12+Y12+AU12+BQ12+CM12+DI12+EE12+FA12+FW12+GS12+HO12 -> 1218260 | IL12: =D12+Z12+AV12+BR12+CN12+DJ12+EF12+FB12+FX12+GT12+HP12 -> 720958 | IM12: =E12+AA12+AW12+BS12+CO12+DK12+EG12+FC12+FY12+GU12+HQ12 -> 705818 | IN12: =F12+AB12+AX12+BT12+CP12+DL12+EH12+FD12+FZ12+GV12+HR12 -> 9401 | IO12: =G12+AC12+AY12+BU12+CQ12+DM12+EI12+FE12+GA12+GW12+HS12 -> 1544 | IP12: =H12+AD12+AZ12+BV12+CR12+DN12+EJ12+FF12+GB12+GX12+HT12 -> 301 | IQ12: =I12+AE12+BA12+BW12+CS12+DO12+EK12+FG12+GC12+GY12+HU12 -> 7542 | IR12: =J12+AF12+BB12+BX12+CT12+DP12+EL12+FH12+GD12+GZ12+HV12 -> 14 | IS12: =K12+AG12+BC12+BY12+CU12+DQ12+EM12+FI12+GE12+HA12+HW12 -> 3225 | IT12: =L12+AH12+BD12+BZ12+CV12+DR12+EN12+FJ12+GF12+HB12+HX12 -> 1548 | IU12: =M12+AI12+BE12+CA12+CW12+DS12+EO12+FK12+GG12+HC12+HY12 -> 41 | IV12: =N12+AJ12+BF12+CB12+CX12+DT12+EP12+FL12+GH12+HD12+HZ12 -> 4587 | IW12: =O12+AK12+BG12+CC12+CY12+DU12+EQ12+FM12+GI12+HE12+IA12 -> 7935 | IX12: =P12+AL12+BH12+CD12+CZ12+DV12+ER12+FN12+GJ12+HF12+IB12 -> 718 | IY12: =Q12+AM12+BI12+CE12+DA12+DW12+ES12+FO12+GK12+HG12+IC12 -> 283 | IZ12: =R12+AN12+BJ12+CF12+DB12+DX12+ET12+FP12+GL12+HH12+ID12 -> 6920 | JA12: =S12+AO12+BK12+CG12+DC12+DY12+EU12+FQ12+GM12+HI12+IE12 -> 14 | JB12: =T12+AP12+BL12+CH12+DD12+DZ12+EV12+FR12+GN12+HJ12+IF12 -> 3148 | JC12: =U12+AQ12+BM12+CI12+DE12+EA12+EW12+FS12+GO12+HK12+IG12 -> 1150 | JD12: =V12+AR12+BN12+CJ12+DF12+EB12+EX12+FT12+GP12+HL12+IH12 -> 41 | JE12: 3596
A13: 2018-08-01 | B13: 250 | C13: 210 | D13: 145 | E13: 143 | F13: 6 | G13: 0 | H13: 0 | I13: 6 | J13: 0 | K13: 2 | L13: 2 | M13: 0 | N13: 2 | O13: 6 | P13: 0 | Q13: 0 | R13: 6 | S13: 0 | T13: 2 | U13: 2 | V13: 0 | W13: 2 | X13: 3624 | Y13: 3401 | Z13: 2187 | AA13: 2170 | AB13: 24 | AC13: 1 | AD13: 2 | AE13: 21 | AF13: 0 | AG13: 10 | AH13: 10 | AI13: 1 | AJ13: 3 | AK13: 24 | AL13: 1 | AM13: 2 | AN13: 21 | AO13: 0 | AP13: 10 | AQ13: 10 | AR13: 1 | AS13: 3 | AT13: 411849 | AU13: 387591 | AV13: 263184 | AW13: 261908 | AX13: 1448 | AY13: 96 | AZ13: 79 | BA13: 1265 | BB13: 8 | BC13: 881 | BD13: 301 | BE13: 11 | BF13: 255 | BG13: 1398 | BH13: 62 | BI13: 78 | BJ13: 1250 | BK13: 8 | BL13: 876 | BM13: 291 | BN13: 11 | BO13: 220 | BP13: 568 | BQ13: 412 | BR13: 467 | BS13: 381 | BT13: 4 | BU13: 0 | BV13: 0 | BW13: 4 | BX13: 0 | BY13: 0 | BZ13: 2 | CA13: 0 | CB13: 2 | CC13: 4 | CD13: 0 | CE13: 0 | CF13: 4 | CG13: 0 | CH13: 0 | CI13: 2 | CJ13: 0 | CK13: 2 | CL13: 35866 | CM13: 33626 | CN13: 22011 | CO13: 21830 | CP13: 98 | CQ13: 4 | CR13: 6 | CS13: 88 | CT13: 0 | CU13: 56 | CV13: 16 | CW13: 0 | CX13: 26 | CY13: 98 | CZ13: 4 | DA13: 6 | DB13: 88 | DC13: 0 | DD13: 56 | DE13: 16 | DF13: 0 | DG13: 26 | DH13: 12892 | DI13: 10507 | DJ13: 5786 | DK13: 5677 | DL13: 115 | DM13: 4 | DN13: 8 | DO13: 103 | DP13: 0 | DQ13: 75 | DR13: 27 | DS13: 1 | DT13: 12 | DU13: 112 | DV13: 4 | DW13: 8 | DX13: 100 | DY13: 0 | DZ13: 73 | EA13: 26 | EB13: 1 | EC13: 12 | ED13: 6033 | EE13: 5368 | EF13: 2943 | EG13: 2894 | EH13: 33 | EI13: 1 | EJ13: 2 | EK13: 30 | EL13: 0 | EM13: 22 | EN13: 5 | EO13: 0 | EP13: 6 | EQ13: 33 | ER13: 1 | ES13: 2 | ET13: 30 | EU13: 0 | EV13: 22 | EW13: 5 | EX13: 0 | EY13: 6 | EZ13: 5267 | FA13: 4869 | FB13: 2986 | FC13: 2951 | FD13: 25 | FE13: 0 | FF13: 1 | FG13: 24 | FH13: 0 | FI13: 18 | FJ13: 4 | FK13: 0 | FL13: 3 | FM13: 25 | FN13: 0 | FO13: 1 | FP13: 24 | FQ13: 0 | FR13: 18 | FS13: 4 | FT13: 0 | FU13: 3 | FV13: 1657 | FW13: 1215 | FX13: 949 | FY13: 937 | FZ13: 2 | GA13: 0 | GB13: 1 | GC13: 1 | GD13: 0 | GE13: 0 | GF13: 2 | GG13: 0 | GH13: 0 | GI13: 2 | GJ13: 0 | GK13: 1 | GL13: 1 | GM13: 0 | GN13: 0 | GO13: 2 | GP13: 0 | GQ13: 0 | GR13: 12614 | GS13: 7664 | GT13: 4198 | GU13: 3999 | GV13: 157 | GW13: 125 | GX13: 2 | GY13: 30 | GZ13: 0 | HA13: 22 | HB13: 131 | HC13: 0 | HD13: 4 | HE13: 35 | HF13: 3 | HG13: 2 | HH13: 30 | HI13: 0 | HJ13: 22 | HK13: 9 | HL13: 0 | HM13: 4 | HN13: 1007138 | HO13: 766739 | HP13: 419920 | HQ13: 407343 | HR13: 7701 | HS13: 1386 | HT13: 213 | HU13: 6095 | HV13: 7 | HW13: 2283 | HX13: 1068 | HY13: 31 | HZ13: 4319 | IA13: 6350 | IB13: 722 | IC13: 195 | ID13: 5427 | IE13: 6 | IF13: 2217 | IG13: 802 | IH13: 31 | II13: 3300 | IJ13: 1497759 | IK13: 1221602 | IL13: 724776 | IM13: 710233 | IN13: 9613 | IO13: 1617 | IP13: 314 | IQ13: 7667 | IR13: 15 | IS13: 3369 | IT13: 1568 | IU13: 44 | IV13: 4632 | IW13: =O13+AK13+BG13+CC13+CY13+DU13+EQ13+FM13+GI13+HE13+IA13 -> 8087 | IX13: =P13+AL13+BH13+CD13+CZ13+DV13+ER13+FN13+GJ13+HF13+IB13 -> 797 | IY13: =Q13+AM13+BI13+CE13+DA13+DW13+ES13+FO13+GK13+HG13+IC13 -> 295 | IZ13: 6981 | JA13: 14 | JB13: 3296 | JC13: 1169 | JD13: 44 | JE13: 3578
A14: 2018-09-01 | B14: 250 | C14: 210 | D14: 145 | E14: 143 | F14: 7 | G14: 0 | H14: 0 | I14: 7 | J14: 0 | K14: 2 | L14: 3 | M14: 0 | N14: 2 | O14: 6 | P14: 0 | Q14: 0 | R14: 6 | S14: 0 | T14: 2 | U14: 2 | V14: 0 | W14: 2 | X14: 3627 | Y14: 3407 | Z14: 2196 | AA14: 2179 | AB14: 28 | AC14: 1 | AD14: 3 | AE14: 24 | AF14: 0 | AG14: 11 | AH14: 12 | AI14: 1 | AJ14: 4 | AK14: 28 | AL14: 1 | AM14: 3 | AN14: 24 | AO14: 0 | AP14: 11 | AQ14: 12 | AR14: 1 | AS14: 4 | AT14: 413097 | AU14: 388144 | AV14: 264333 | AW14: 263031 | AX14: 1521 | AY14: 105 | AZ14: 85 | BA14: 1324 | BB14: 7 | BC14: 930 | BD14: 307 | BE14: 12 | BF14: 272 | BG14: 1468 | BH14: 67 | BI14: 83 | BJ14: 1311 | BK14: 7 | BL14: 922 | BM14: 297 | BN14: 12 | BO14: 237 | BP14: 569 | BQ14: 412 | BR14: 466 | BS14: 380 | BT14: 4 | BU14: 0 | BV14: 0 | BW14: 4 | BX14: 0 | BY14: 0 | BZ14: 2 | CA14: 0 | CB14: 2 | CC14: 4 | CD14: 0 | CE14: 0 | CF14: 4 | CG14: 0 | CH14: 0 | CI14: 2 | CJ14: 0 | CK14: 2 | CL14: 35946 | CM14: 33651 | CN14: 22093 | CO14: 21911 | CP14: 103 | CQ14: 4 | CR14: 6 | CS14: 93 | CT14: 0 | CU14: 59 | CV14: 18 | CW14: 0 | CX14: 26 | CY14: 103 | CZ14: 4 | DA14: 6 | DB14: 93 | DC14: 0 | DD14: 59 | DE14: 18 | DF14: 0 | DG14: 26 | DH14: 12858 | DI14: 10466 | DJ14: 5786 | DK14: 5676 | DL14: 118 | DM14: 5 | DN14: 10 | DO14: 103 | DP14: 0 | DQ14: 76 | DR14: 28 | DS14: 1 | DT14: 13 | DU14: 115 | DV14: 5 | DW14: 10 | DX14: 100 | DY14: 0 | DZ14: 74 | EA14: 27 | EB14: 1 | EC14: 13 | ED14: 6017 | EE14: 5341 | EF14: 2950 | EG14: 2903 | EH14: 35 | EI14: 2 | EJ14: 2 | EK14: 31 | EL14: 0 | EM14: 24 | EN14: 5 | EO14: 0 | EP14: 6 | EQ14: 35 | ER14: 2 | ES14: 2 | ET14: 31 | EU14: 0 | EV14: 24 | EW14: 5 | EX14: 0 | EY14: 6 | EZ14: 5262 | FA14: 4882 | FB14: 3018 | FC14: 2983 | FD14: 26 | FE14: 0 | FF14: 3 | FG14: 23 | FH14: 0 | FI14: 18 | FJ14: 4 | FK14: 1 | FL14: 3 | FM14: 26 | FN14: 0 | FO14: 3 | FP14: 23 | FQ14: 0 | FR14: 18 | FS14: 4 | FT14: 1 | FU14: 3 | FV14: 1658 | FW14: 1216 | FX14: 954 | FY14: 942 | FZ14: 2 | GA14: 0 | GB14: 1 | GC14: 1 | GD14: 0 | GE14: 0 | GF14: 2 | GG14: 0 | GH14: 0 | GI14: 2 | GJ14: 0 | GK14: 1 | GL14: 1 | GM14: 0 | GN14: 0 | GO14: 2 | GP14: 0 | GQ14: 0 | GR14: 12745 | GS14: 7763 | GT14: 4276 | GU14: 4089 | GV14: 158 | GW14: 125 | GX14: 2 | GY14: 31 | GZ14: 0 | HA14: 22 | HB14: 132 | HC14: 0 | HD14: 4 | HE14: 36 | HF14: 3 | HG14: 2 | HH14: 31 | HI14: 0 | HJ14: 22 | HK14: 10 | HL14: 0 | HM14: 4 | HN14: 1009216 | HO14: 767269 | HP14: 421925 | HQ14: 409570 | HR14: 8520 | HS14: 2307 | HT14: 221 | HU14: 5984 | HV14: 8 | HW14: 2465 | HX14: 1091 | HY14: 32 | HZ14: 4932 | IA14: 6588 | IB14: 782 | IC14: 204 | ID14: 5595 | IE14: 7 | IF14: 2398 | IG14: 825 | IH14: 32 | II14: 3333 | IJ14: 1501246 | IK14: 1222761 | IL14: 728142 | IM14: 713807 | IN14: 10522 | IO14: 2549 | IP14: 333 | IQ14: 7625 | IR14: 15 | IS14: =K14+AG14+BC14+BY14+CU14+DQ14+EM14+FI14+GE14+HA14+HW14 -> 3607 | IT14: 1604 | IU14: 47 | IV14: 5264 | IW14: =O14+AK14+BG14+CC14+CY14+DU14+EQ14+FM14+GI14+HE14+IA14 -> 8411 | IX14: =P14+AL14+BH14+CD14+CZ14+DV14+ER14+FN14+GJ14+HF14+IB14 -> 864 | IY14: =Q14+AM14+BI14+CE14+DA14+DW14+ES14+FO14+GK14+HG14+IC14 -> 314 | IZ14: 7219 | JA14: 14 | JB14: 3530 | JC14: 1204 | JD14: 47 | JE14: =W14+AS14+BO14+CK14+DG14+EC14+EY14+FU14+GQ14+HM14+II14 -> 3630
A15: 2018-10-01 | B15: 249 | C15: 208 | D15: 144 | E15: 142 | F15: 7 | G15: 0 | H15: 0 | I15: 7 | J15: 0 | K15: 2 | L15: 3 | M15: 0 | N15: 2 | O15: 6 | P15: 0 | Q15: 0 | R15: 6 | S15: 0 | T15: 2 | U15: 2 | V15: 0 | W15: 2 | X15: 3633 | Y15: 3418 | Z15: 2206 | AA15: 2191 | AB15: 28 | AC15: 1 | AD15: 3 | AE15: 24 | AF15: 0 | AG15: 10 | AH15: 12 | AI15: 1 | AJ15: 5 | AK15: 28 | AL15: 1 | AM15: 3 | AN15: 24 | AO15: 0 | AP15: 10 | AQ15: 12 | AR15: 1 | AS15: 5 | AT15: 414162 | AU15: 389631 | AV15: 265773 | AW15: 264498 | AX15: 1643 | AY15: 115 | AZ15: 86 | BA15: 1436 | BB15: 6 | BC15: 1022 | BD15: 318 | BE15: 14 | BF15: 289 | BG15: 1584 | BH15: 73 | BI15: 84 | BJ15: 1421 | BK15: 6 | BL15: 1015 | BM15: 306 | BN15: 14 | BO15: 249 | BP15: 566 | BQ15: 415 | BR15: 469 | BS15: 383 | BT15: 4 | BU15: 0 | BV15: 0 | BW15: 4 | BX15: 0 | BY15: 0 | BZ15: 2 | CA15: 0 | CB15: 2 | CC15: 4 | CD15: 0 | CE15: 0 | CF15: 4 | CG15: 0 | CH15: 0 | CI15: 2 | CJ15: 0 | CK15: 2 | CL15: 36045 | CM15: 33791 | CN15: 22236 | CO15: 22063 | CP15: 107 | CQ15: 4 | CR15: 7 | CS15: 96 | CT15: 0 | CU15: 60 | CV15: 18 | CW15: 1 | CX15: 28 | CY15: 107 | CZ15: 4 | DA15: 7 | DB15: 96 | DC15: 0 | DD15: 60 | DE15: 18 | DF15: 1 | DG15: 28 | DH15: 12838 | DI15: 10465 | DJ15: 5810 | DK15: 5700 | DL15: 122 | DM15: 6 | DN15: 10 | DO15: 106 | DP15: 0 | DQ15: 80 | DR15: 28 | DS15: 1 | DT15: 13 | DU15: 119 | DV15: 6 | DW15: 10 | DX15: 103 | DY15: 0 | DZ15: 78 | EA15: 27 | EB15: 1 | EC15: 13 | ED15: 5999 | EE15: 5343 | EF15: 2968 | EG15: 2926 | EH15: 36 | EI15: 2 | EJ15: 2 | EK15: 32 | EL15: 0 | EM15: 25 | EN15: 5 | EO15: 0 | EP15: 6 | EQ15: 36 | ER15: 2 | ES15: 2 | ET15: 32 | EU15: 0 | EV15: 25 | EW15: 5 | EX15: 0 | EY15: 6 | EZ15: 5268 | FA15: 4888 | FB15: 3034 | FC15: 2998 | FD15: 26 | FE15: 0 | FF15: 3 | FG15: 23 | FH15: 0 | FI15: 18 | FJ15: 4 | FK15: 1 | FL15: 3 | FM15: 26 | FN15: 0 | FO15: 3 | FP15: 23 | FQ15: 0 | FR15: 18 | FS15: 4 | FT15: 1 | FU15: 3 | FV15: 1658 | FW15: 1217 | FX15: 957 | FY15: 944 | FZ15: 2 | GA15: 0 | GB15: 1 | GC15: 1 | GD15: 0 | GE15: 0 | GF15: 2 | GG15: 0 | GH15: 0 | GI15: 2 | GJ15: 0 | GK15: 1 | GL15: 1 | GM15: 0 | GN15: 0 | GO15: 2 | GP15: 0 | GQ15: 0 | GR15: 12738 | GS15: 7793 | GT15: 4305 | GU15: 4108 | GV15: 159 | GW15: 125 | GX15: 2 | GY15: 32 | GZ15: 0 | HA15: 22 | HB15: 133 | HC15: 0 | HD15: 4 | HE15: 37 | HF15: 3 | HG15: 2 | HH15: 32 | HI15: 0 | HJ15: 22 | HK15: 11 | HL15: 0 | HM15: 4 | HN15: 1011703 | HO15: 769488 | HP15: 425063 | HQ15: 412540 | HR15: 8890 | HS15: 2549 | HT15: 239 | HU15: 6094 | HV15: 8 | HW15: 2661 | HX15: 1124 | HY15: 32 | HZ15: 5073 | IA15: 6766 | IB15: 819 | IC15: 218 | ID15: 5722 | IE15: 7 | IF15: 2515 | IG15: 848 | IH15: 32 | II15: 3371 | IJ15: 1504860 | IK15: 1226657 | IL15: 732965 | IM15: 718493 | IN15: 11024 | IO15: 2802 | IP15: 353 | IQ15: 7855 | IR15: 14 | IS15: =K15+AG15+BC15+BY15+CU15+DQ15+EM15+FI15+GE15+HA15+HW15 -> 3900 | IT15: 1649 | IU15: 50 | IV15: 5425 | IW15: 8715 | IX15: 908 | IY15: 330 | IZ15: 7464 | JA15: 13 | JB15: 3745 | JC15: 1237 | JD15: 50 | JE15: =W15+AS15+BO15+CK15+DG15+EC15+EY15+FU15+GQ15+HM15+II15 -> 3683
A16: 2018-11-01 | B16: 249 | C16: 207 | D16: 143 | E16: 141 | F16: 8 | G16: 0 | H16: 0 | I16: 8 | J16: 0 | K16: 2 | L16: 3 | M16: 0 | N16: 3 | O16: 7 | P16: 0 | Q16: 0 | R16: 7 | S16: 0 | T16: 2 | U16: 2 | V16: 0 | W16: 3 | X16: 3633 | Y16: 3413 | Z16: 2212 | AA16: 2196 | AB16: 29 | AC16: 1 | AD16: 4 | AE16: 24 | AF16: 0 | AG16: 11 | AH16: 11 | AI16: 1 | AJ16: 6 | AK16: 29 | AL16: 1 | AM16: 4 | AN16: 24 | AO16: 0 | AP16: 11 | AQ16: 11 | AR16: 1 | AS16: 6 | AT16: 415213 | AU16: 390548 | AV16: 266990 | AW16: 265706 | AX16: 1755 | AY16: 120 | AZ16: 93 | BA16: 1536 | BB16: 6 | BC16: 1110 | BD16: 326 | BE16: 14 | BF16: 305 | BG16: 1694 | BH16: 77 | BI16: 91 | BJ16: 1520 | BK16: 6 | BL16: 1102 | BM16: 314 | BN16: 14 | BO16: 264 | BP16: 569 | BQ16: 419 | BR16: 473 | BS16: 385 | BT16: 4 | BU16: 0 | BV16: 0 | BW16: 4 | BX16: 0 | BY16: 0 | BZ16: 2 | CA16: 0 | CB16: 2 | CC16: 4 | CD16: 0 | CE16: 0 | CF16: 4 | CG16: 0 | CH16: 0 | CI16: 2 | CJ16: 0 | CK16: 2 | CL16: 36162 | CM16: 33872 | CN16: 22357 | CO16: 22189 | CP16: 113 | CQ16: 4 | CR16: 7 | CS16: 102 | CT16: 0 | CU16: 65 | CV16: 18 | CW16: 1 | CX16: 29 | CY16: 113 | CZ16: 4 | DA16: 7 | DB16: 102 | DC16: 0 | DD16: 65 | DE16: 18 | DF16: 1 | DG16: 29 | DH16: 12823 | DI16: 10445 | DJ16: 5821 | DK16: 5714 | DL16: 125 | DM16: 6 | DN16: 9 | DO16: 110 | DP16: 0 | DQ16: 83 | DR16: 28 | DS16: 1 | DT16: 13 | DU16: 121 | DV16: 6 | DW16: 9 | DX16: 106 | DY16: 0 | DZ16: 81 | EA16: 26 | EB16: 1 | EC16: 13 | ED16: 5978 | EE16: 5327 | EF16: 2988 | EG16: 2947 | EH16: 39 | EI16: 4 | EJ16: 2 | EK16: 33 | EL16: 0 | EM16: 25 | EN16: 5 | EO16: 1 | EP16: 8 | EQ16: 39 | ER16: 4 | ES16: 2 | ET16: 33 | EU16: 0 | EV16: 25 | EW16: 5 | EX16: 1 | EY16: 8 | EZ16: 5276 | FA16: 4887 | FB16: 3038 | FC16: 3001 | FD16: 27 | FE16: 0 | FF16: 3 | FG16: 24 | FH16: 0 | FI16: 19 | FJ16: 4 | FK16: 1 | FL16: 3 | FM16: 27 | FN16: 0 | FO16: 3 | FP16: 24 | FQ16: 0 | FR16: 19 | FS16: 4 | FT16: 1 | FU16: 3 | FV16: 1658 | FW16: 1218 | FX16: 962 | FY16: 949 | FZ16: 2 | GA16: 0 | GB16: 1 | GC16: 1 | GD16: 0 | GE16: 0 | GF16: 2 | GG16: 0 | GH16: 0 | GI16: 2 | GJ16: 0 | GK16: 1 | GL16: 1 | GM16: 0 | GN16: 0 | GO16: 2 | GP16: 0 | GQ16: 0 | GR16: 12865 | GS16: 7870 | GT16: 4414 | GU16: 4179 | GV16: 163 | GW16: 125 | GX16: 3 | GY16: 35 | GZ16: 0 | HA16: 23 | HB16: 135 | HC16: 1 | HD16: 4 | HE16: 39 | HF16: 3 | HG16: 2 | HH16: 34 | HI16: 0 | HJ16: 23 | HK16: 12 | HL16: 0 | HM16: 4 | HN16: 1018722 | HO16: 773315 | HP16: 428958 | HQ16: 416544 | HR16: 9205 | HS16: 2766 | HT16: 256 | HU16: 6176 | HV16: 7 | HW16: 2846 | HX16: 1148 | HY16: 33 | HZ16: 5178 | IA16: 7049 | IB16: 1004 | IC16: 237 | ID16: 5802 | IE16: 6 | IF16: 2698 | IG16: 874 | IH16: 33 | II16: 3444 | IJ16: 1513149 | IK16: 1231521 | IL16: 738356 | IM16: 723951 | IN16: 11470 | IO16: 3026 | IP16: 378 | IQ16: 8053 | IR16: 13 | IS16: 4184 | IT16: 1682 | IU16: 53 | IV16: 5551 | IW16: 9124 | IX16: 1099 | IY16: 356 | IZ16: 7657 | JA16: 12 | JB16: 4026 | JC16: 1270 | JD16: 52 | JE16: =W16+AS16+BO16+CK16+DG16+EC16+EY16+FU16+GQ16+HM16+II16 -> 3776
A17: 2018-12-01 | B17: 249 | C17: 207 | D17: 142 | E17: 141 | F17: 8 | G17: 0 | H17: 0 | I17: 8 | J17: 0 | K17: 2 | L17: 3 | M17: 0 | N17: 3 | O17: 7 | P17: 0 | Q17: 0 | R17: 7 | S17: 0 | T17: 2 | U17: 2 | V17: 0 | W17: 3 | X17: 3632 | Y17: 3414 | Z17: 2230 | AA17: 2215 | AB17: 34 | AC17: 1 | AD17: 4 | AE17: 29 | AF17: 0 | AG17: 14 | AH17: 12 | AI17: 1 | AJ17: 7 | AK17: 34 | AL17: 1 | AM17: 4 | AN17: 29 | AO17: 0 | AP17: 14 | AQ17: 12 | AR17: 1 | AS17: 7 | AT17: 416355 | AU17: 391545 | AV17: 268083 | AW17: 266786 | AX17: 1878 | AY17: 127 | AZ17: 103 | BA17: 1642 | BB17: 6 | BC17: 1201 | BD17: 341 | BE17: 16 | BF17: 320 | BG17: 1812 | BH17: 80 | BI17: 100 | BJ17: 1626 | BK17: 6 | BL17: 1193 | BM17: 327 | BN17: 16 | BO17: 276 | BP17: 573 | BQ17: 419 | BR17: 476 | BS17: 386 | BT17: 4 | BU17: 0 | BV17: 0 | BW17: 4 | BX17: 0 | BY17: 0 | BZ17: 2 | CA17: 0 | CB17: 2 | CC17: 4 | CD17: 0 | CE17: 0 | CF17: 4 | CG17: 0 | CH17: 0 | CI17: 2 | CJ17: 0 | CK17: 2 | CL17: 36270 | CM17: 33994 | CN17: 22480 | CO17: 22313 | CP17: 122 | CQ17: 4 | CR17: 7 | CS17: 111 | CT17: 0 | CU17: 73 | CV17: 20 | CW17: 1 | CX17: 28 | CY17: 122 | CZ17: 4 | DA17: 7 | DB17: 111 | DC17: 0 | DD17: 73 | DE17: 20 | DF17: 1 | DG17: 28 | DH17: 12809 | DI17: 10426 | DJ17: 5809 | DK17: 5704 | DL17: 127 | DM17: 6 | DN17: 10 | DO17: 111 | DP17: 0 | DQ17: 83 | DR17: 30 | DS17: 1 | DT17: 13 | DU17: 123 | DV17: 6 | DW17: 10 | DX17: 107 | DY17: 0 | DZ17: 81 | EA17: 28 | EB17: 1 | EC17: 13 | ED17: 5970 | EE17: 5302 | EF17: 2976 | EG17: 2940 | EH17: 38 | EI17: 4 | EJ17: 2 | EK17: 32 | EL17: 0 | EM17: 25 | EN17: 5 | EO17: 0 | EP17: 8 | EQ17: 38 | ER17: 4 | ES17: 2 | ET17: 32 | EU17: 0 | EV17: 25 | EW17: 5 | EX17: 0 | EY17: 8 | EZ17: 5281 | FA17: 4900 | FB17: 3050 | FC17: 3014 | FD17: 29 | FE17: 0 | FF17: 3 | FG17: 25 | FH17: 1 | FI17: 21 | FJ17: 4 | FK17: 1 | FL17: 3 | FM17: 29 | FN17: 0 | FO17: 3 | FP17: 25 | FQ17: 1 | FR17: 21 | FS17: 4 | FT17: 1 | FU17: 3 | FV17: 1659 | FW17: 1217 | FX17: 970 | FY17: 957 | FZ17: 2 | GA17: 0 | GB17: 1 | GC17: 1 | GD17: 0 | GE17: 0 | GF17: 2 | GG17: 0 | GH17: 0 | GI17: 2 | GJ17: 0 | GK17: 1 | GL17: 1 | GM17: 0 | GN17: 0 | GO17: 2 | GP17: 0 | GQ17: 0 | GR17: 12918 | GS17: 7992 | GT17: 4561 | GU17: 4328 | GV17: 161 | GW17: 124 | GX17: 3 | GY17: 34 | GZ17: 0 | HA17: 23 | HB17: 133 | HC17: 1 | HD17: 4 | HE17: 39 | HF17: 3 | HG17: 2 | HH17: 34 | HI17: 0 | HJ17: 23 | HK17: 12 | HL17: 0 | HM17: 4 | HN17: 1025707 | HO17: 778475 | HP17: 433815 | HQ17: 421481 | HR17: 9436 | HS17: 2800 | HT17: 250 | HU17: 6376 | HV17: 10 | HW17: 3149 | HX17: 1182 | HY17: 32 | HZ17: 5073 | IA17: 7259 | IB17: 1015 | IC17: 234 | ID17: 6001 | IE17: 9 | IF17: 2908 | IG17: 905 | IH17: 32 | II17: 3414 | IJ17: 1521424 | IK17: 1237891 | IL17: 744592 | IM17: 730265 | IN17: 11839 | IO17: 3066 | IP17: 383 | IQ17: 8373 | IR17: 17 | IS17: 4591 | IT17: 1734 | IU17: 53 | IV17: 5461 | IW17: 9469 | IX17: 1113 | IY17: 363 | IZ17: 7977 | JA17: 16 | JB17: 4340 | JC17: 1319 | JD17: 52 | JE17: =W17+AS17+BO17+CK17+DG17+EC17+EY17+FU17+GQ17+HM17+II17 -> 3758
A18: 2019-01-01 | B18: 249 | C18: 206 | D18: 143 | E18: 142 | F18: 8 | G18: 0 | H18: 0 | I18: 8 | J18: 0 | K18: 2 | L18: 3 | M18: 0 | N18: 3 | O18: 7 | P18: 0 | Q18: 0 | R18: 7 | S18: 0 | T18: 2 | U18: 2 | V18: 0 | W18: 3 | X18: 3633 | Y18: 3422 | Z18: 2237 | AA18: 2223 | AB18: 35 | AC18: 1 | AD18: 4 | AE18: 30 | AF18: 0 | AG18: 14 | AH18: 12 | AI18: 1 | AJ18: 8 | AK18: 35 | AL18: 1 | AM18: 4 | AN18: 30 | AO18: 0 | AP18: 14 | AQ18: 12 | AR18: 1 | AS18: 8 | AT18: 417320 | AU18: 392400 | AV18: 269048 | AW18: 267758 | AX18: 1998 | AY18: 132 | AZ18: 112 | BA18: 1748 | BB18: 6 | BC18: 1288 | BD18: 354 | BE18: 15 | BF18: 341 | BG18: 1928 | BH18: 83 | BI18: 109 | BJ18: 1730 | BK18: 6 | BL18: 1277 | BM18: 341 | BN18: 15 | BO18: 295 | BP18: 573 | BQ18: 417 | BR18: 476 | BS18: 386 | BT18: 4 | BU18: 0 | BV18: 0 | BW18: 4 | BX18: 0 | BY18: 0 | BZ18: 2 | CA18: 0 | CB18: 2 | CC18: 4 | CD18: 0 | CE18: 0 | CF18: 4 | CG18: 0 | CH18: 0 | CI18: 2 | CJ18: 0 | CK18: 2 | CL18: 36360 | CM18: 34091 | CN18: 22605 | CO18: 22436 | CP18: 126 | CQ18: 4 | CR18: 8 | CS18: 114 | CT18: 0 | CU18: 76 | CV18: 20 | CW18: 1 | CX18: 29 | CY18: 126 | CZ18: 4 | DA18: 8 | DB18: 114 | DC18: 0 | DD18: 76 | DE18: 20 | DF18: 1 | DG18: 29 | DH18: 12793 | DI18: 10418 | DJ18: 5840 | DK18: 5736 | DL18: 132 | DM18: 6 | DN18: 11 | DO18: 115 | DP18: 0 | DQ18: 85 | DR18: 30 | DS18: 1 | DT18: 16 | DU18: 126 | DV18: 6 | DW18: 11 | DX18: 109 | DY18: 0 | DZ18: 83 | EA18: 28 | EB18: 1 | EC18: 14 | ED18: 5954 | EE18: 5296 | EF18: 2979 | EG18: 2946 | EH18: 39 | EI18: 4 | EJ18: 2 | EK18: 33 | EL18: 0 | EM18: 26 | EN18: 5 | EO18: 0 | EP18: 8 | EQ18: 39 | ER18: 4 | ES18: 2 | ET18: 33 | EU18: 0 | EV18: 26 | EW18: 5 | EX18: 0 | EY18: 8 | EZ18: 5292 | FA18: 4915 | FB18: 3067 | FC18: 3032 | FD18: 29 | FE18: 0 | FF18: 3 | FG18: 25 | FH18: 1 | FI18: 21 | FJ18: 4 | FK18: 1 | FL18: 3 | FM18: 29 | FN18: 0 | FO18: 3 | FP18: 25 | FQ18: 1 | FR18: 21 | FS18: 4 | FT18: 1 | FU18: 3 | FV18: 1659 | FW18: 1217 | FX18: 973 | FY18: 961 | FZ18: 2 | GA18: 0 | GB18: 1 | GC18: 1 | GD18: 0 | GE18: 0 | GF18: 2 | GG18: 0 | GH18: 0 | GI18: 2 | GJ18: 0 | GK18: 1 | GL18: 1 | GM18: 0 | GN18: 0 | GO18: 2 | GP18: 0 | GQ18: 0 | GR18: 12857 | GS18: 7994 | GT18: 4551 | GU18: 4342 | GV18: 162 | GW18: 124 | GX18: 3 | GY18: 35 | GZ18: 0 | HA18: 23 | HB18: 134 | HC18: 1 | HD18: 4 | HE18: 40 | HF18: 3 | HG18: 2 | HH18: 35 | HI18: 0 | HJ18: 23 | HK18: 13 | HL18: 0 | HM18: 4 | HN18: 1028958 | HO18: 781343 | HP18: 437321 | HQ18: 425068 | HR18: 9943 | HS18: 2959 | HT18: 278 | HU18: 6695 | HV18: 11 | HW18: 3104 | HX18: 1283 | HY18: 32 | HZ18: 5524 | IA18: 7673 | IB18: 1104 | IC18: 261 | ID18: 6298 | IE18: 10 | IF18: 2831 | IG18: 1005 | IH18: 32 | II18: 3805 | IJ18: 1525649 | IK18: 1241719 | IL18: 749240 | IM18: 735030 | IN18: 12478 | IO18: 3230 | IP18: 422 | IQ18: 8808 | IR18: 18 | IS18: 4639 | IT18: 1849 | IU18: 52 | IV18: 5938 | IW18: 10009 | IX18: 1205 | IY18: 401 | IZ18: 8386 | JA18: 17 | JB18: 4353 | JC18: 1434 | JD18: 51 | JE18: 4171
A19: 2019-02-01 | B19: 248 | C19: 206 | D19: 142 | E19: 141 | F19: 8 | G19: 0 | H19: 0 | I19: 8 | J19: 0 | K19: 2 | L19: 3 | M19: 0 | N19: 3 | O19: 7 | P19: 0 | Q19: 0 | R19: 7 | S19: 0 | T19: 2 | U19: 2 | V19: 0 | W19: 3 | X19: 3635 | Y19: 3419 | Z19: 2245 | AA19: 2232 | AB19: 38 | AC19: 1 | AD19: 4 | AE19: 33 | AF19: 0 | AG19: 16 | AH19: 12 | AI19: 2 | AJ19: 8 | AK19: 38 | AL19: 1 | AM19: 4 | AN19: 33 | AO19: 0 | AP19: 16 | AQ19: 12 | AR19: 2 | AS19: 8 | AT19: 418630 | AU19: 393533 | AV19: 270630 | AW19: 269320 | AX19: 2144 | AY19: 143 | AZ19: 120 | BA19: 1875 | BB19: 6 | BC19: 1381 | BD19: 379 | BE19: 16 | BF19: 368 | BG19: 2067 | BH19: 91 | BI19: 118 | BJ19: 1852 | BK19: 6 | BL19: 1369 | BM19: 363 | BN19: 16 | BO19: 319 | BP19: 572 | BQ19: 420 | BR19: 476 | BS19: 388 | BT19: 6 | BU19: 2 | BV19: 0 | BW19: 4 | BX19: 0 | BY19: 0 | BZ19: 2 | CA19: 0 | CB19: 4 | CC19: 6 | CD19: 2 | CE19: 0 | CF19: 4 | CG19: 0 | CH19: 0 | CI19: 2 | CJ19: 0 | CK19: 4 | CL19: 36507 | CM19: 34243 | CN19: 22771 | CO19: 22602 | CP19: 133 | CQ19: 4 | CR19: 8 | CS19: 121 | CT19: 0 | CU19: 81 | CV19: 22 | CW19: 1 | CX19: 29 | CY19: 133 | CZ19: 4 | DA19: 8 | DB19: 121 | DC19: 0 | DD19: 81 | DE19: 22 | DF19: 1 | DG19: 29 | DH19: 12781 | DI19: 10414 | DJ19: 5878 | DK19: 5775 | DL19: 139 | DM19: 6 | DN19: 12 | DO19: 121 | DP19: 0 | DQ19: 87 | DR19: 34 | DS19: 1 | DT19: 17 | DU19: 133 | DV19: 6 | DW19: 12 | DX19: 115 | DY19: 0 | DZ19: 85 | EA19: 32 | EB19: 1 | EC19: 15 | ED19: 5939 | EE19: 5293 | EF19: 2980 | EG19: 2950 | EH19: 40 | EI19: 4 | EJ19: 2 | EK19: 34 | EL19: 0 | EM19: 27 | EN19: 5 | EO19: 0 | EP19: 8 | EQ19: 40 | ER19: 4 | ES19: 2 | ET19: 34 | EU19: 0 | EV19: 27 | EW19: 5 | EX19: 0 | EY19: 8 | EZ19: 5308 | FA19: 4923 | FB19: 3077 | FC19: 3042 | FD19: 32 | FE19: 0 | FF19: 4 | FG19: 27 | FH19: 1 | FI19: 25 | FJ19: 4 | FK19: 1 | FL19: 2 | FM19: 32 | FN19: 0 | FO19: 4 | FP19: 27 | FQ19: 1 | FR19: 25 | FS19: 4 | FT19: 1 | FU19: 2 | FV19: 1659 | FW19: 1216 | FX19: 973 | FY19: 960 | FZ19: 3 | GA19: 0 | GB19: 1 | GC19: 2 | GD19: 0 | GE19: 0 | GF19: 3 | GG19: 0 | GH19: 0 | GI19: 3 | GJ19: 0 | GK19: 1 | GL19: 2 | GM19: 0 | GN19: 0 | GO19: 3 | GP19: 0 | GQ19: 0 | GR19: 12949 | GS19: 8070 | GT19: 4621 | GU19: 4407 | GV19: 168 | GW19: 124 | GX19: 3 | GY19: 41 | GZ19: 0 | HA19: 23 | HB19: 136 | HC19: 1 | HD19: 8 | HE19: 46 | HF19: 3 | HG19: 2 | HH19: 41 | HI19: 0 | HJ19: 23 | HK19: 15 | HL19: 0 | HM19: 8 | HN19: 1030320 | HO19: 782169 | HP19: 438983 | HQ19: 426771 | HR19: 10272 | HS19: 3038 | HT19: 311 | HU19: 6911 | HV19: 12 | HW19: 3324 | HX19: 1322 | HY19: 32 | HZ19: 5594 | IA19: 7935 | IB19: 1148 | IC19: 292 | ID19: 6484 | IE19: 11 | IF19: 3046 | IG19: 1040 | IH19: 32 | II19: 3817 | IJ19: 1528549 | IK19: 1243906 | IL19: 752776 | IM19: 738588 | IN19: 12983 | IO19: 3322 | IP19: 465 | IQ19: 9177 | IR19: 19 | IS19: 4966 | IT19: 1922 | IU19: 54 | IV19: 6041 | IW19: 10440 | IX19: 1259 | IY19: 443 | IZ19: 8720 | JA19: 18 | JB19: 4674 | JC19: 1500 | JD19: 53 | JE19: 4213
A20: 2019-03-01 | B20: 247 | C20: 206 | D20: 142 | E20: 141 | F20: 8 | G20: 0 | H20: 0 | I20: 8 | J20: 0 | K20: 2 | L20: 4 | M20: 0 | N20: 2 | O20: 7 | P20: 0 | Q20: 0 | R20: 7 | S20: 0 | T20: 2 | U20: 3 | V20: 0 | W20: 2 | X20: 3644 | Y20: 3430 | Z20: 2268 | AA20: 2256 | AB20: 40 | AC20: 1 | AD20: 4 | AE20: 35 | AF20: 0 | AG20: 18 | AH20: 12 | AI20: 2 | AJ20: 8 | AK20: 40 | AL20: 1 | AM20: 4 | AN20: 35 | AO20: 0 | AP20: 18 | AQ20: 12 | AR20: 2 | AS20: 8 | AT20: 419844 | AU20: 394569 | AV20: 272157 | AW20: 270847 | AX20: 2295 | AY20: 146 | AZ20: 128 | BA20: 2015 | BB20: 6 | BC20: 1477 | BD20: 413 | BE20: 18 | BF20: 387 | BG20: 2219 | BH20: 93 | BI20: 126 | BJ20: 1994 | BK20: 6 | BL20: 1466 | BM20: 398 | BN20: 18 | BO20: 337 | BP20: 578 | BQ20: 424 | BR20: 477 | BS20: 390 | BT20: 8 | BU20: 4 | BV20: 0 | BW20: 4 | BX20: 0 | BY20: 0 | BZ20: 2 | CA20: 0 | CB20: 6 | CC20: 8 | CD20: 4 | CE20: 0 | CF20: 4 | CG20: 0 | CH20: 0 | CI20: 2 | CJ20: 0 | CK20: 6 | CL20: 36644 | CM20: 34339 | CN20: 22923 | CO20: 22753 | CP20: 144 | CQ20: 4 | CR20: 8 | CS20: 132 | CT20: 0 | CU20: 89 | CV20: 22 | CW20: 0 | CX20: 33 | CY20: 143 | CZ20: 4 | DA20: 8 | DB20: 131 | DC20: 0 | DD20: 89 | DE20: 22 | DF20: 0 | DG20: 32 | DH20: 12745 | DI20: 10395 | DJ20: 5885 | DK20: 5780 | DL20: 147 | DM20: 6 | DN20: 13 | DO20: 128 | DP20: 0 | DQ20: 89 | DR20: 35 | DS20: 1 | DT20: 22 | DU20: 141 | DV20: 6 | DW20: 13 | DX20: 122 | DY20: 0 | DZ20: 87 | EA20: 33 | EB20: 1 | EC20: 20 | ED20: 5927 | EE20: 5285 | EF20: 2989 | EG20: 2960 | EH20: 43 | EI20: 5 | EJ20: 2 | EK20: 36 | EL20: 0 | EM20: 28 | EN20: 7 | EO20: 0 | EP20: 8 | EQ20: 43 | ER20: 5 | ES20: 2 | ET20: 36 | EU20: 0 | EV20: 28 | EW20: 7 | EX20: 0 | EY20: 8 | EZ20: 5325 | FA20: 4942 | FB20: 3105 | FC20: 3071 | FD20: 33 | FE20: 0 | FF20: 4 | FG20: 28 | FH20: 1 | FI20: 26 | FJ20: 4 | FK20: 1 | FL20: 2 | FM20: 33 | FN20: 0 | FO20: 4 | FP20: 28 | FQ20: 1 | FR20: 26 | FS20: 4 | FT20: 1 | FU20: 2 | FV20: 1660 | FW20: 1219 | FX20: 975 | FY20: 963 | FZ20: 3 | GA20: 0 | GB20: 1 | GC20: 2 | GD20: 0 | GE20: 0 | GF20: 3 | GG20: 0 | GH20: 0 | GI20: 3 | GJ20: 0 | GK20: 1 | GL20: 2 | GM20: 0 | GN20: 0 | GO20: 3 | GP20: 0 | GQ20: 0 | GR20: 13072 | GS20: 8115 | GT20: 4698 | GU20: 4449 | GV20: 169 | GW20: 124 | GX20: 3 | GY20: 42 | GZ20: 0 | HA20: 24 | HB20: 135 | HC20: 1 | HD20: 9 | HE20: 48 | HF20: 3 | HG20: 3 | HH20: 42 | HI20: 0 | HJ20: 24 | HK20: 14 | HL20: 1 | HM20: 9 | HN20: 1032220 | HO20: 783301 | HP20: 440633 | HQ20: 428481 | HR20: 10699 | HS20: 3117 | HT20: 329 | HU20: 7241 | HV20: 12 | HW20: 3513 | HX20: 1341 | HY20: 31 | HZ20: 5814 | IA20: 8321 | IB20: 1197 | IC20: 309 | ID20: 6804 | IE20: 11 | IF20: 3235 | IG20: 1059 | IH20: 31 | II20: 3996 | IJ20: 1531907 | IK20: 1246225 | IL20: 756252 | IM20: 742091 | IN20: 13589 | IO20: 3407 | IP20: 492 | IQ20: 9671 | IR20: 19 | IS20: 5266 | IT20: 1978 | IU20: 54 | IV20: 6291 | IW20: 11006 | IX20: 1313 | IY20: 470 | IZ20: 9205 | JA20: 18 | JB20: 4975 | JC20: 1557 | JD20: 54 | JE20: 4420
A21: 2019-04-01 | B21: 246 | C21: 206 | D21: 142 | E21: 141 | F21: 8 | G21: 0 | H21: 0 | I21: 8 | J21: 0 | K21: 2 | L21: 4 | M21: 0 | N21: 2 | O21: 7 | P21: 0 | Q21: 0 | R21: 7 | S21: 0 | T21: 2 | U21: 3 | V21: 0 | W21: 2 | X21: 3649 | Y21: 3436 | Z21: 2280 | AA21: 2267 | AB21: 39 | AC21: 1 | AD21: 4 | AE21: 34 | AF21: 0 | AG21: 17 | AH21: 12 | AI21: 2 | AJ21: 8 | AK21: 39 | AL21: 1 | AM21: 4 | AN21: 34 | AO21: 0 | AP21: 17 | AQ21: 12 | AR21: 2 | AS21: 8 | AT21: 421192 | AU21: 395977 | AV21: 273829 | AW21: 272523 | AX21: 2503 | AY21: 152 | AZ21: 145 | BA21: 2200 | BB21: 6 | BC21: 1581 | BD21: 452 | BE21: 18 | BF21: 452 | BG21: 2422 | BH21: 97 | BI21: 143 | BJ21: 2176 | BK21: 6 | BL21: 1570 | BM21: 436 | BN21: 18 | BO21: 398 | BP21: 576 | BQ21: 420 | BR21: 474 | BS21: 388 | BT21: 9 | BU21: 4 | BV21: 0 | BW21: 5 | BX21: 0 | BY21: 0 | BZ21: 3 | CA21: 0 | CB21: 6 | CC21: 9 | CD21: 4 | CE21: 0 | CF21: 5 | CG21: 0 | CH21: 0 | CI21: 3 | CJ21: 0 | CK21: 6 | CL21: 36742 | CM21: 34446 | CN21: 23087 | CO21: 22920 | CP21: 161 | CQ21: 5 | CR21: 10 | CS21: 146 | CT21: 0 | CU21: 99 | CV21: 24 | CW21: 0 | CX21: 38 | CY21: 158 | CZ21: 5 | DA21: 10 | DB21: 143 | DC21: 0 | DD21: 99 | DE21: 24 | DF21: 0 | DG21: 35 | DH21: 12737 | DI21: 10394 | DJ21: 5930 | DK21: 5824 | DL21: 158 | DM21: 7 | DN21: 13 | DO21: 138 | DP21: 0 | DQ21: 92 | DR21: 40 | DS21: 1 | DT21: 25 | DU21: 151 | DV21: 7 | DW21: 13 | DX21: 131 | DY21: 0 | DZ21: 90 | EA21: 37 | EB21: 1 | EC21: 23 | ED21: 5914 | EE21: 5270 | EF21: 2999 | EG21: 2968 | EH21: 45 | EI21: 5 | EJ21: 4 | EK21: 36 | EL21: 0 | EM21: 27 | EN21: 8 | EO21: 0 | EP21: 10 | EQ21: 45 | ER21: 5 | ES21: 4 | ET21: 36 | EU21: 0 | EV21: 27 | EW21: 8 | EX21: 0 | EY21: 10 | EZ21: 5335 | FA21: 4954 | FB21: 3130 | FC21: 3098 | FD21: 34 | FE21: 0 | FF21: 5 | FG21: 28 | FH21: 1 | FI21: 26 | FJ21: 5 | FK21: 1 | FL21: 2 | FM21: 34 | FN21: 0 | FO21: 5 | FP21: 28 | FQ21: 1 | FR21: 26 | FS21: 5 | FT21: 1 | FU21: 2 | FV21: 1661 | FW21: 1219 | FX21: 974 | FY21: 963 | FZ21: 3 | GA21: 0 | GB21: 1 | GC21: 2 | GD21: 0 | GE21: 0 | GF21: 3 | GG21: 0 | GH21: 0 | GI21: 3 | GJ21: 0 | GK21: 1 | GL21: 2 | GM21: 0 | GN21: 0 | GO21: 3 | GP21: 0 | GQ21: 0 | GR21: 13227 | GS21: 8145 | GT21: 4762 | GU21: 4489 | GV21: 169 | GW21: 125 | GX21: 3 | GY21: 41 | GZ21: 0 | HA21: 23 | HB21: 136 | HC21: 1 | HD21: 9 | HE21: 48 | HF21: 4 | HG21: 3 | HH21: 41 | HI21: 0 | HJ21: 23 | HK21: 15 | HL21: 1 | HM21: 9 | HN21: 1038008 | HO21: 785794 | HP21: 442899 | HQ21: 430769 | HR21: 11627 | HS21: 3216 | HT21: 388 | HU21: 8011 | HV21: 12 | HW21: 4188 | HX21: 1391 | HY21: 34 | HZ21: 6014 | IA21: 9163 | IB21: 1232 | IC21: 368 | ID21: 7552 | IE21: 11 | IF21: 3900 | IG21: 1105 | IH21: 33 | II21: 4125 | IJ21: 1539288 | IK21: 1250261 | IL21: 760506 | IM21: 746350 | IN21: 14756 | IO21: 3515 | IP21: 573 | IQ21: 10649 | IR21: 19 | IS21: 6055 | IT21: 2078 | IU21: 57 | IV21: 6566 | IW21: 12079 | IX21: 1355 | IY21: 551 | IZ21: 10155 | JA21: 18 | JB21: 5754 | JC21: 1651 | JD21: 56 | JE21: 4618
A22: 2019-05-01 | B22: 246 | C22: 206 | D22: 141 | E22: 140 | F22: 8 | G22: 0 | H22: 0 | I22: 8 | J22: 0 | K22: 2 | L22: 4 | M22: 0 | N22: 2 | O22: 7 | P22: 0 | Q22: 0 | R22: 7 | S22: 0 | T22: 2 | U22: 3 | V22: 0 | W22: 2 | X22: 3648 | Y22: 3435 | Z22: 2286 | AA22: 2274 | AB22: 39 | AC22: 1 | AD22: 4 | AE22: 34 | AF22: 0 | AG22: 17 | AH22: 12 | AI22: 2 | AJ22: 8 | AK22: 39 | AL22: 1 | AM22: 4 | AN22: 34 | AO22: 0 | AP22: 17 | AQ22: 12 | AR22: 2 | AS22: 8 | AT22: 421956 | AU22: 396677 | AV22: 275007 | AW22: 273677 | AX22: 2640 | AY22: 168 | AZ22: 159 | BA22: 2306 | BB22: 7 | BC22: 1681 | BD22: 465 | BE22: 18 | BF22: 476 | BG22: 2556 | BH22: 112 | BI22: 157 | BJ22: 2280 | BK22: 7 | BL22: 1670 | BM22: 449 | BN22: 18 | BO22: 419 | BP22: 578 | BQ22: 425 | BR22: 477 | BS22: 395 | BT22: 9 | BU22: 4 | BV22: 0 | BW22: 5 | BX22: 0 | BY22: 0 | BZ22: 3 | CA22: 0 | CB22: 6 | CC22: 9 | CD22: 4 | CE22: 0 | CF22: 5 | CG22: 0 | CH22: 0 | CI22: 3 | CJ22: 0 | CK22: 6 | CL22: 36837 | CM22: 34541 | CN22: 23226 | CO22: 23059 | CP22: 163 | CQ22: 6 | CR22: 10 | CS22: 147 | CT22: 0 | CU22: 102 | CV22: 23 | CW22: 0 | CX22: 38 | CY22: 160 | CZ22: 5 | DA22: 10 | DB22: 145 | DC22: 0 | DD22: 102 | DE22: 23 | DF22: 0 | DG22: 35 | DH22: 12728 | DI22: 10383 | DJ22: 5938 | DK22: 5834 | DL22: 163 | DM22: 6 | DN22: 14 | DO22: 143 | DP22: 0 | DQ22: 96 | DR22: 42 | DS22: 1 | DT22: 24 | DU22: 156 | DV22: 6 | DW22: 14 | DX22: 136 | DY22: 0 | DZ22: 94 | EA22: 39 | EB22: 1 | EC22: 22 | ED22: 5896 | EE22: 5256 | EF22: 3004 | EG22: 2973 | EH22: 45 | EI22: 5 | EJ22: 4 | EK22: 36 | EL22: 0 | EM22: 27 | EN22: 8 | EO22: 1 | EP22: 9 | EQ22: 45 | ER22: 5 | ES22: 4 | ET22: 36 | EU22: 0 | EV22: 27 | EW22: 8 | EX22: 1 | EY22: 9 | EZ22: 5342 | FA22: 4963 | FB22: 3144 | FC22: 3111 | FD22: 34 | FE22: 0 | FF22: 5 | FG22: 28 | FH22: 1 | FI22: 26 | FJ22: 5 | FK22: 1 | FL22: 2 | FM22: 34 | FN22: 0 | FO22: 5 | FP22: 28 | FQ22: 1 | FR22: 26 | FS22: 5 | FT22: 1 | FU22: 2 | FV22: 1661 | FW22: 1218 | FX22: 976 | FY22: 964 | FZ22: 3 | GA22: 0 | GB22: 1 | GC22: 2 | GD22: 0 | GE22: 0 | GF22: 3 | GG22: 0 | GH22: 0 | GI22: 3 | GJ22: 0 | GK22: 1 | GL22: 2 | GM22: 0 | GN22: 0 | GO22: 3 | GP22: 0 | GQ22: 0 | GR22: 13235 | GS22: 8134 | GT22: 4772 | GU22: 4499 | GV22: 169 | GW22: 124 | GX22: 3 | GY22: 42 | GZ22: 0 | HA22: 22 | HB22: 136 | HC22: 1 | HD22: 10 | HE22: 48 | HF22: 3 | HG22: 3 | HH22: 42 | HI22: 0 | HJ22: 22 | HK22: 15 | HL22: 1 | HM22: 10 | HN22: 1038769 | HO22: 785463 | HP22: 444299 | HQ22: 432111 | HR22: 11194 | HS22: 3329 | HT22: 427 | HU22: 7424 | HV22: 14 | HW22: 3863 | HX22: 1413 | HY22: 34 | HZ22: 5884 | IA22: 8633 | IB22: 1288 | IC22: 404 | ID22: 6928 | IE22: 13 | IF22: 3562 | IG22: 1127 | IH22: 33 | II22: 3911 | IJ22: 1540897 | IK22: 1250701 | IL22: 763270 | IM22: 749037 | IN22: 14467 | IO22: 3643 | IP22: 627 | IQ22: 10175 | IR22: 22 | IS22: 5836 | IT22: 2114 | IU22: 58 | IV22: 6459 | IW22: 11690 | IX22: 1424 | IY22: 602 | IZ22: 9643 | JA22: 21 | JB22: 5522 | JC22: 1687 | JD22: 57 | JE22: 4424
A23: 2019-06-01 | B23: 247 | C23: 207 | D23: 143 | E23: 142 | F23: 8 | G23: 0 | H23: 0 | I23: 8 | J23: 0 | K23: 2 | L23: 4 | M23: 0 | N23: 2 | O23: 7 | P23: 0 | Q23: 0 | R23: 7 | S23: 0 | T23: 2 | U23: 3 | V23: 0 | W23: 2 | X23: 3644 | Y23: 3429 | Z23: 2292 | AA23: 2280 | AB23: 39 | AC23: 1 | AD23: 4 | AE23: 34 | AF23: 0 | AG23: 17 | AH23: 12 | AI23: 2 | AJ23: 8 | AK23: 39 | AL23: 1 | AM23: 4 | AN23: 34 | AO23: 0 | AP23: 17 | AQ23: 12 | AR23: 2 | AS23: 8 | AT23: 422968 | AU23: 397420 | AV23: 276606 | AW23: 275111 | AX23: 2765 | AY23: 175 | AZ23: 166 | BA23: 2417 | BB23: 7 | BC23: 1788 | BD23: 468 | BE23: 18 | BF23: 491 | BG23: 2681 | BH23: 118 | BI23: 164 | BJ23: 2392 | BK23: 7 | BL23: 1778 | BM23: 451 | BN23: 18 | BO23: 434 | BP23: 574 | BQ23: 421 | BR23: 474 | BS23: 392 | BT23: 10 | BU23: 4 | BV23: 0 | BW23: 6 | BX23: 0 | BY23: 1 | BZ23: 3 | CA23: 0 | CB23: 6 | CC23: 10 | CD23: 4 | CE23: 0 | CF23: 6 | CG23: 0 | CH23: 1 | CI23: 3 | CJ23: 0 | CK23: 6 | CL23: 36925 | CM23: 34594 | CN23: 23396 | CO23: 23215 | CP23: 172 | CQ23: 6 | CR23: 11 | CS23: 155 | CT23: 0 | CU23: 109 | CV23: 24 | CW23: 0 | CX23: 39 | CY23: 169 | CZ23: 5 | DA23: 11 | DB23: 153 | DC23: 0 | DD23: 109 | DE23: 24 | DF23: 0 | DG23: 36 | DH23: 12721 | DI23: 10386 | DJ23: 5958 | DK23: 5850 | DL23: 163 | DM23: 7 | DN23: 13 | DO23: 143 | DP23: 0 | DQ23: 95 | DR23: 42 | DS23: 1 | DT23: 25 | DU23: 156 | DV23: 7 | DW23: 13 | DX23: 136 | DY23: 0 | DZ23: 93 | EA23: 39 | EB23: 1 | EC23: 23 | ED23: 5881 | EE23: 5250 | EF23: 3015 | EG23: 2986 | EH23: 45 | EI23: 5 | EJ23: 4 | EK23: 36 | EL23: 0 | EM23: 27 | EN23: 8 | EO23: 1 | EP23: 9 | EQ23: 45 | ER23: 5 | ES23: 4 | ET23: 36 | EU23: 0 | EV23: 27 | EW23: 8 | EX23: 1 | EY23: 9 | EZ23: 5348 | FA23: 4968 | FB23: 3179 | FC23: 3146 | FD23: 37 | FE23: 1 | FF23: 5 | FG23: 30 | FH23: 1 | FI23: 29 | FJ23: 5 | FK23: 1 | FL23: 2 | FM23: 37 | FN23: 1 | FO23: 5 | FP23: 30 | FQ23: 1 | FR23: 29 | FS23: 5 | FT23: 1 | FU23: 2 | FV23: 1661 | FW23: 1219 | FX23: 975 | FY23: 964 | FZ23: 3 | GA23: 0 | GB23: 1 | GC23: 2 | GD23: 0 | GE23: 0 | GF23: 3 | GG23: 0 | GH23: 0 | GI23: 3 | GJ23: 0 | GK23: 1 | GL23: 2 | GM23: 0 | GN23: 0 | GO23: 3 | GP23: 0 | GQ23: 0 | GR23: 13255 | GS23: 8144 | GT23: 4739 | GU23: 4452 | GV23: 172 | GW23: 124 | GX23: 4 | GY23: 44 | GZ23: 0 | HA23: 24 | HB23: 137 | HC23: 1 | HD23: 10 | HE23: 51 | HF23: 3 | HG23: 4 | HH23: 44 | HI23: 0 | HJ23: 24 | HK23: 16 | HL23: 1 | HM23: 10 | HN23: 1038372 | HO23: 786023 | HP23: 447883 | HQ23: 435618 | HR23: 11678 | HS23: 3401 | HT23: 441 | HU23: 7822 | HV23: 14 | HW23: 4378 | HX23: 1503 | HY23: 36 | HZ23: 5761 | IA23: 9061 | IB23: 1318 | IC23: 416 | ID23: 7314 | IE23: 13 | IF23: 4061 | IG23: 1214 | IH23: 35 | II23: 3751 | IJ23: 1541597 | IK23: 1252061 | IL23: 768660 | IM23: 754156 | IN23: 15092 | IO23: 3724 | IP23: 649 | IQ23: 10697 | IR23: 22 | IS23: 6470 | IT23: 2209 | IU23: 60 | IV23: 6353 | IW23: 12259 | IX23: 1462 | IY23: 622 | IZ23: 10154 | JA23: 21 | JB23: 6141 | JC23: 1778 | JD23: 59 | JE23: 4281
A24: 2019-07-01 | B24: 247 | C24: 206 | D24: 143 | E24: 142 | F24: 9 | G24: 0 | H24: 0 | I24: 9 | J24: 0 | K24: 2 | L24: 4 | M24: 0 | N24: 3 | O24: 8 | P24: 0 | Q24: 0 | R24: 8 | S24: 0 | T24: 2 | U24: 3 | V24: 0 | W24: 3 | X24: 3642 | Y24: 3434 | Z24: 2307 | AA24: 2295 | AB24: 41 | AC24: 1 | AD24: 4 | AE24: 36 | AF24: 0 | AG24: 17 | AH24: 13 | AI24: 2 | AJ24: 9 | AK24: 41 | AL24: 1 | AM24: 4 | AN24: 36 | AO24: 0 | AP24: 17 | AQ24: 13 | AR24: 2 | AS24: 9 | AT24: 423937 | AU24: 398661 | AV24: 278337 | AW24: 277021 | AX24: 2862 | AY24: 181 | AZ24: 183 | BA24: 2490 | BB24: 8 | BC24: 1868 | BD24: 475 | BE24: 18 | BF24: 501 | BG24: 2774 | BH24: 121 | BI24: 181 | BJ24: 2464 | BK24: 8 | BL24: 1856 | BM24: 458 | BN24: 18 | BO24: 442 | BP24: 580 | BQ24: 422 | BR24: 476 | BS24: 391 | BT24: 10 | BU24: 4 | BV24: 0 | BW24: 6 | BX24: 0 | BY24: 1 | BZ24: 3 | CA24: 0 | CB24: 6 | CC24: 10 | CD24: 4 | CE24: 0 | CF24: 6 | CG24: 0 | CH24: 1 | CI24: 3 | CJ24: 0 | CK24: 6 | CL24: 36966 | CM24: 34660 | CN24: 23531 | CO24: 23366 | CP24: 184 | CQ24: 6 | CR24: 13 | CS24: 165 | CT24: 0 | CU24: 118 | CV24: 25 | CW24: 0 | CX24: 41 | CY24: 181 | CZ24: 5 | DA24: 13 | DB24: 163 | DC24: 0 | DD24: 118 | DE24: 25 | DF24: 0 | DG24: 38 | DH24: 12720 | DI24: 10379 | DJ24: 5983 | DK24: 5877 | DL24: 160 | DM24: 8 | DN24: 13 | DO24: 139 | DP24: 0 | DQ24: 95 | DR24: 41 | DS24: 1 | DT24: 23 | DU24: 153 | DV24: 8 | DW24: 13 | DX24: 132 | DY24: 0 | DZ24: 93 | EA24: 38 | EB24: 1 | EC24: 21 | ED24: 5869 | EE24: 5246 | EF24: 3021 | EG24: 2991 | EH24: 46 | EI24: 5 | EJ24: 4 | EK24: 37 | EL24: 0 | EM24: 27 | EN24: 7 | EO24: 2 | EP24: 10 | EQ24: 46 | ER24: 5 | ES24: 4 | ET24: 37 | EU24: 0 | EV24: 27 | EW24: 7 | EX24: 2 | EY24: 10 | EZ24: 5352 | FA24: 4971 | FB24: 3187 | FC24: 3154 | FD24: 38 | FE24: 1 | FF24: 5 | FG24: 31 | FH24: 1 | FI24: 28 | FJ24: 7 | FK24: 1 | FL24: 2 | FM24: 38 | FN24: 1 | FO24: 5 | FP24: 31 | FQ24: 1 | FR24: 28 | FS24: 7 | FT24: 1 | FU24: 2 | FV24: 1661 | FW24: 1219 | FX24: 977 | FY24: 965 | FZ24: 3 | GA24: 0 | GB24: 1 | GC24: 2 | GD24: 0 | GE24: 0 | GF24: 3 | GG24: 0 | GH24: 0 | GI24: 3 | GJ24: 0 | GK24: 1 | GL24: 2 | GM24: 0 | GN24: 0 | GO24: 3 | GP24: 0 | GQ24: 0 | GR24: 13273 | GS24: 8066 | GT24: 4803 | GU24: 4495 | GV24: 174 | GW24: 124 | GX24: 4 | GY24: 46 | GZ24: 0 | HA24: 24 | HB24: 139 | HC24: 1 | HD24: 10 | HE24: 53 | HF24: 3 | HG24: 4 | HH24: 46 | HI24: 0 | HJ24: 24 | HK24: 18 | HL24: 1 | HM24: 10 | HN24: 1039927 | HO24: 786900 | HP24: 451247 | HQ24: 438813 | HR24: 12246 | HS24: 3638 | HT24: 472 | HU24: 8123 | HV24: 13 | HW24: 4900 | HX24: 1541 | HY24: 35 | HZ24: 5770 | IA24: 9377 | IB24: 1346 | IC24: 450 | ID24: 7569 | IE24: 12 | IF24: 4396 | IG24: 1250 | IH24: 34 | II24: 3697 | IJ24: 1544175 | IK24: 1254164 | IL24: 774012 | IM24: 759510 | IN24: 15773 | IO24: 3968 | IP24: 699 | IQ24: 11084 | IR24: 22 | IS24: 7080 | IT24: 2258 | IU24: 60 | IV24: 6375 | IW24: 12684 | IX24: 1494 | IY24: 675 | IZ24: 10494 | JA24: 21 | JB24: 6562 | JC24: 1825 | JD24: 59 | JE24: 4238
A25: 2019-08-01 | B25: 247 | C25: 206 | D25: 143 | E25: 142 | F25: 9 | G25: 0 | H25: 0 | I25: 9 | J25: 0 | K25: 2 | L25: 4 | M25: 0 | N25: 3 | O25: 8 | P25: 0 | Q25: 0 | R25: 8 | S25: 0 | T25: 2 | U25: 3 | V25: 0 | W25: 3 | X25: 3640 | Y25: 3430 | Z25: 2322 | AA25: 2310 | AB25: 42 | AC25: 1 | AD25: 3 | AE25: 38 | AF25: 0 | AG25: 18 | AH25: 13 | AI25: 2 | AJ25: 9 | AK25: 42 | AL25: 1 | AM25: 3 | AN25: 38 | AO25: 0 | AP25: 18 | AQ25: 13 | AR25: 2 | AS25: 9 | AT25: 424530 | AU25: 399312 | AV25: 279542 | AW25: 278255 | AX25: 3022 | AY25: 186 | AZ25: 196 | BA25: 2632 | BB25: 8 | BC25: 1983 | BD25: 505 | BE25: 19 | BF25: 515 | BG25: 2933 | BH25: 125 | BI25: 193 | BJ25: 2607 | BK25: 8 | BL25: 1973 | BM25: 488 | BN25: 19 | BO25: 453 | BP25: 581 | BQ25: 423 | BR25: 476 | BS25: 391 | BT25: 11 | BU25: 4 | BV25: 0 | BW25: 7 | BX25: 0 | BY25: 1 | BZ25: 4 | CA25: 0 | CB25: 6 | CC25: 11 | CD25: 4 | CE25: 0 | CF25: 7 | CG25: 0 | CH25: 1 | CI25: 4 | CJ25: 0 | CK25: 6 | CL25: 37044 | CM25: 34739 | CN25: 23646 | CO25: 23481 | CP25: 193 | CQ25: 8 | CR25: 13 | CS25: 172 | CT25: 0 | CU25: 123 | CV25: 29 | CW25: 0 | CX25: 41 | CY25: 190 | CZ25: 7 | DA25: 13 | DB25: 170 | DC25: 0 | DD25: 123 | DE25: 29 | DF25: 0 | DG25: 38 | DH25: 12691 | DI25: 10379 | DJ25: 6007 | DK25: 5898 | DL25: 163 | DM25: 8 | DN25: 13 | DO25: 142 | DP25: 0 | DQ25: 96 | DR25: 44 | DS25: 1 | DT25: 22 | DU25: 157 | DV25: 8 | DW25: 13 | DX25: 136 | DY25: 0 | DZ25: 94 | EA25: 41 | EB25: 1 | EC25: 21 | ED25: 5848 | EE25: 5223 | EF25: 3018 | EG25: 2988 | EH25: 45 | EI25: 5 | EJ25: 4 | EK25: 36 | EL25: 0 | EM25: 27 | EN25: 7 | EO25: 1 | EP25: 10 | EQ25: 45 | ER25: 5 | ES25: 4 | ET25: 36 | EU25: 0 | EV25: 27 | EW25: 7 | EX25: 1 | EY25: 10 | EZ25: 5357 | FA25: 4977 | FB25: 3219 | FC25: 3173 | FD25: 40 | FE25: 1 | FF25: 5 | FG25: 33 | FH25: 1 | FI25: 30 | FJ25: 7 | FK25: 1 | FL25: 2 | FM25: 40 | FN25: 1 | FO25: 5 | FP25: 33 | FQ25: 1 | FR25: 30 | FS25: 7 | FT25: 1 | FU25: 2 | FV25: 1661 | FW25: 1220 | FX25: 985 | FY25: 973 | FZ25: 3 | GA25: 0 | GB25: 1 | GC25: 2 | GD25: 0 | GE25: 0 | GF25: 3 | GG25: 0 | GH25: 0 | GI25: 3 | GJ25: 0 | GK25: 1 | GL25: 2 | GM25: 0 | GN25: 0 | GO25: 3 | GP25: 0 | GQ25: 0 | GR25: 13296 | GS25: 8077 | GT25: 4842 | GU25: 4513 | GV25: 176 | GW25: 125 | GX25: 4 | GY25: 47 | GZ25: 0 | HA25: 26 | HB25: 139 | HC25: 1 | HD25: 10 | HE25: 55 | HF25: 4 | HG25: 4 | HH25: 47 | HI25: 0 | HJ25: 26 | HK25: 18 | HL25: 1 | HM25: 10 | HN25: 1040842 | HO25: 787538 | HP25: 454104 | HQ25: 441666 | HR25: 12497 | HS25: 3773 | HT25: 498 | HU25: 8213 | HV25: 13 | HW25: 5148 | HX25: 1606 | HY25: 36 | HZ25: 5707 | IA25: 9590 | IB25: 1377 | IC25: 472 | ID25: 7729 | IE25: 12 | IF25: 4582 | IG25: 1306 | IH25: 35 | II25: 3667 | IJ25: 1545738 | IK25: 1255524 | IL25: 778304 | IM25: 763790 | IN25: 16201 | IO25: 4111 | IP25: 737 | IQ25: 11331 | IR25: 22 | IS25: 7454 | IT25: 2361 | IU25: 61 | IV25: 6325 | IW25: 13074 | IX25: 1532 | IY25: 708 | IZ25: 10813 | JA25: 21 | JB25: 6876 | JC25: 1919 | JD25: 60 | JE25: 4219
A26: 2019-09-01 | B26: 247 | C26: 205 | D26: 142 | E26: 141 | F26: 9 | G26: 0 | H26: 0 | I26: 9 | J26: 0 | K26: 2 | L26: 3 | M26: 0 | N26: 4 | O26: 8 | P26: 0 | Q26: 0 | R26: 8 | S26: 0 | T26: 2 | U26: 2 | V26: 0 | W26: 4 | X26: 3638 | Y26: 3432 | Z26: 2328 | AA26: 2316 | AB26: 44 | AC26: 1 | AD26: 3 | AE26: 40 | AF26: 0 | AG26: 19 | AH26: 14 | AI26: 2 | AJ26: 9 | AK26: 44 | AL26: 1 | AM26: 3 | AN26: 40 | AO26: 0 | AP26: 19 | AQ26: 14 | AR26: 2 | AS26: 9 | AT26: 425482 | AU26: 400158 | AV26: 280988 | AW26: 279695 | AX26: 3154 | AY26: 194 | AZ26: 203 | BA26: 2749 | BB26: 8 | BC26: 2087 | BD26: 522 | BE26: 19 | BF26: 526 | BG26: 3061 | BH26: 129 | BI26: 201 | BJ26: 2723 | BK26: 8 | BL26: 2074 | BM26: 504 | BN26: 19 | BO26: 464 | BP26: 580 | BQ26: 423 | BR26: 476 | BS26: 393 | BT26: 12 | BU26: 4 | BV26: 0 | BW26: 8 | BX26: 0 | BY26: 1 | BZ26: 5 | CA26: 0 | CB26: 6 | CC26: 12 | CD26: 4 | CE26: 0 | CF26: 8 | CG26: 0 | CH26: 1 | CI26: 5 | CJ26: 0 | CK26: 6 | CL26: 37098 | CM26: 34791 | CN26: 23788 | CO26: 23623 | CP26: 201 | CQ26: 8 | CR26: 13 | CS26: 180 | CT26: 0 | CU26: 130 | CV26: 30 | CW26: 0 | CX26: 41 | CY26: 198 | CZ26: 7 | DA26: 13 | DB26: 178 | DC26: 0 | DD26: 130 | DE26: 30 | DF26: 0 | DG26: 38 | DH26: 12675 | DI26: 10369 | DJ26: 6028 | DK26: 5919 | DL26: 170 | DM26: 9 | DN26: 14 | DO26: 147 | DP26: 0 | DQ26: 99 | DR26: 45 | DS26: 1 | DT26: 25 | DU26: 164 | DV26: 9 | DW26: 14 | DX26: 141 | DY26: 0 | DZ26: 97 | EA26: 42 | EB26: 1 | EC26: 24 | ED26: 5832 | EE26: 5216 | EF26: 3026 | EG26: 2996 | EH26: 44 | EI26: 5 | EJ26: 4 | EK26: 35 | EL26: 0 | EM26: 26 | EN26: 7 | EO26: 1 | EP26: 10 | EQ26: 44 | ER26: 5 | ES26: 4 | ET26: 35 | EU26: 0 | EV26: 26 | EW26: 7 | EX26: 1 | EY26: 10 | EZ26: 5365 | FA26: 4982 | FB26: 3241 | FC26: 3195 | FD26: 40 | FE26: 1 | FF26: 5 | FG26: 33 | FH26: 1 | FI26: 30 | FJ26: 7 | FK26: 1 | FL26: 2 | FM26: 40 | FN26: 1 | FO26: 5 | FP26: 33 | FQ26: 1 | FR26: 30 | FS26: 7 | FT26: 1 | FU26: 2 | FV26: 1661 | FW26: 1221 | FX26: 985 | FY26: 975 | FZ26: 3 | GA26: 0 | GB26: 1 | GC26: 2 | GD26: 0 | GE26: 0 | GF26: 3 | GG26: 0 | GH26: 0 | GI26: 3 | GJ26: 0 | GK26: 1 | GL26: 2 | GM26: 0 | GN26: 0 | GO26: 3 | GP26: 0 | GQ26: 0 | GR26: 13170 | GS26: 7978 | GT26: 4767 | GU26: 4428 | GV26: 176 | GW26: 125 | GX26: 4 | GY26: 47 | GZ26: 0 | HA26: 26 | HB26: 139 | HC26: 1 | HD26: 10 | HE26: 55 | HF26: 4 | HG26: 4 | HH26: 47 | HI26: 0 | HJ26: 26 | HK26: 18 | HL26: 1 | HM26: 10 | HN26: 1042089 | HO26: 787932 | HP26: 456425 | HQ26: 443969 | HR26: 11942 | HS26: 3836 | HT26: 529 | HU26: 7564 | HV26: 13 | HW26: 4685 | HX26: 1676 | HY26: 38 | HZ26: 5543 | IA26: 8996 | IB26: 1392 | IC26: 506 | ID26: 7086 | IE26: 12 | IF26: 4088 | IG26: 1360 | IH26: 36 | II26: 3512 | IJ26: 1547838 | IK26: 1256707 | IL26: 782194 | IM26: 767650 | IN26: 15795 | IO26: 4183 | IP26: 776 | IQ26: 10814 | IR26: 22 | IS26: 7105 | IT26: 2451 | IU26: 63 | IV26: 6176 | IW26: 12625 | IX26: 1552 | IY26: 751 | IZ26: 10301 | JA26: 21 | JB26: 6493 | JC26: 1992 | JD26: 61 | JE26: 4079
A27: 2019-10-01 | B27: 248 | C27: 205 | D27: 142 | E27: 141 | F27: 9 | G27: 0 | H27: 0 | I27: 9 | J27: 0 | K27: 2 | L27: 3 | M27: 0 | N27: 4 | O27: 8 | P27: 0 | Q27: 0 | R27: 8 | S27: 0 | T27: 2 | U27: 2 | V27: 0 | W27: 4 | X27: 3640 | Y27: 3432 | Z27: 2340 | AA27: 2328 | AB27: 45 | AC27: 1 | AD27: 3 | AE27: 41 | AF27: 0 | AG27: 20 | AH27: 14 | AI27: 2 | AJ27: 9 | AK27: 45 | AL27: 1 | AM27: 3 | AN27: 41 | AO27: 0 | AP27: 20 | AQ27: 14 | AR27: 2 | AS27: 9 | AT27: 426504 | AU27: 401059 | AV27: 282558 | AW27: 281268 | AX27: 3321 | AY27: 208 | AZ27: 213 | BA27: 2890 | BB27: 10 | BC27: 2214 | BD27: 545 | BE27: 19 | BF27: 543 | BG27: 3218 | BH27: 135 | BI27: 212 | BJ27: 2863 | BK27: 8 | BL27: 2198 | BM27: 524 | BN27: 19 | BO27: 477 | BP27: 577 | BQ27: 418 | BR27: 473 | BS27: 389 | BT27: 12 | BU27: 4 | BV27: 0 | BW27: 8 | BX27: 0 | BY27: 1 | BZ27: 5 | CA27: 0 | CB27: 6 | CC27: 12 | CD27: 4 | CE27: 0 | CF27: 8 | CG27: 0 | CH27: 1 | CI27: 5 | CJ27: 0 | CK27: 6 | CL27: 37137 | CM27: 34830 | CN27: 23917 | CO27: 23748 | CP27: 211 | CQ27: 9 | CR27: 14 | CS27: 188 | CT27: 0 | CU27: 135 | CV27: 31 | CW27: 0 | CX27: 45 | CY27: 208 | CZ27: 8 | DA27: 14 | DB27: 186 | DC27: 0 | DD27: 135 | DE27: 31 | DF27: 0 | DG27: 42 | DH27: 12659 | DI27: 10340 | DJ27: 6021 | DK27: 5915 | DL27: 175 | DM27: 9 | DN27: 15 | DO27: 151 | DP27: 0 | DQ27: 101 | DR27: 45 | DS27: 1 | DT27: 28 | DU27: 167 | DV27: 9 | DW27: 15 | DX27: 143 | DY27: 0 | DZ27: 99 | EA27: 42 | EB27: 1 | EC27: 25 | ED27: 5814 | EE27: 5195 | EF27: 3025 | EG27: 2994 | EH27: 44 | EI27: 5 | EJ27: 4 | EK27: 35 | EL27: 0 | EM27: 26 | EN27: 7 | EO27: 1 | EP27: 10 | EQ27: 44 | ER27: 5 | ES27: 4 | ET27: 35 | EU27: 0 | EV27: 26 | EW27: 7 | EX27: 1 | EY27: 10 | EZ27: 5371 | FA27: 4984 | FB27: 3254 | FC27: 3210 | FD27: 41 | FE27: 1 | FF27: 5 | FG27: 34 | FH27: 1 | FI27: 31 | FJ27: 7 | FK27: 1 | FL27: 2 | FM27: 41 | FN27: 1 | FO27: 5 | FP27: 34 | FQ27: 1 | FR27: 31 | FS27: 7 | FT27: 1 | FU27: 2 | FV27: 1661 | FW27: 1221 | FX27: 985 | FY27: 975 | FZ27: 3 | GA27: 0 | GB27: 1 | GC27: 2 | GD27: 0 | GE27: 0 | GF27: 3 | GG27: 0 | GH27: 0 | GI27: 3 | GJ27: 0 | GK27: 1 | GL27: 2 | GM27: 0 | GN27: 0 | GO27: 3 | GP27: 0 | GQ27: 0 | GR27: 13153 | GS27: 8004 | GT27: 4796 | GU27: 4473 | GV27: 179 | GW27: 125 | GX27: 4 | GY27: 50 | GZ27: 0 | HA27: 28 | HB27: 140 | HC27: 1 | HD27: 10 | HE27: 58 | HF27: 4 | HG27: 4 | HH27: 50 | HI27: 0 | HJ27: 28 | HK27: 19 | HL27: 1 | HM27: 10 | HN27: 1044237 | HO27: 789140 | HP27: 460084 | HQ27: 447589 | HR27: 12174 | HS27: 3908 | HT27: 547 | HU27: 7655 | HV27: 64 | HW27: 4790 | HX27: 1825 | HY27: 39 | HZ27: 5520 | IA27: 9175 | IB27: 1418 | IC27: 525 | ID27: 7171 | IE27: 61 | IF27: 4177 | IG27: 1504 | IH27: 37 | II27: 3457 | IJ27: 1551002 | IK27: 1258828 | IL27: 787595 | IM27: 773030 | IN27: 16214 | IO27: 4270 | IP27: 806 | IQ27: 11063 | IR27: 75 | IS27: 7348 | IT27: 2625 | IU27: 64 | IV27: 6177 | IW27: 12979 | IX27: 1585 | IY27: 783 | IZ27: 10541 | JA27: 70 | JB27: 6717 | JC27: 2158 | JD27: 62 | JE27: 4042
A28: 2019-11-01 | B28: 248 | C28: 205 | D28: 144 | E28: 143 | F28: 9 | G28: 0 | H28: 0 | I28: 9 | J28: 0 | K28: 2 | L28: 3 | M28: 0 | N28: 4 | O28: 8 | P28: 0 | Q28: 0 | R28: 8 | S28: 0 | T28: 2 | U28: 2 | V28: 0 | W28: 4 | X28: 3641 | Y28: 3437 | Z28: 2420 | AA28: 2405 | AB28: 47 | AC28: 1 | AD28: 3 | AE28: 43 | AF28: 0 | AG28: 22 | AH28: 14 | AI28: 2 | AJ28: 9 | AK28: 47 | AL28: 1 | AM28: 3 | AN28: 43 | AO28: 0 | AP28: 22 | AQ28: 14 | AR28: 2 | AS28: 9 | AT28: 427491 | AU28: 401751 | AV28: 294342 | AW28: 292875 | AX28: 3508 | AY28: 215 | AZ28: 222 | BA28: 3062 | BB28: 9 | BC28: 2353 | BD28: 575 | BE28: 20 | BF28: 560 | BG28: 3398 | BH28: 139 | BI28: 220 | BJ28: 3030 | BK28: 9 | BL28: 2334 | BM28: 553 | BN28: 20 | BO28: 491 | BP28: 579 | BQ28: 421 | BR28: 475 | BS28: 392 | BT28: 13 | BU28: 4 | BV28: 0 | BW28: 9 | BX28: 0 | BY28: 1 | BZ28: 6 | CA28: 0 | CB28: 6 | CC28: 13 | CD28: 4 | CE28: 0 | CF28: 9 | CG28: 0 | CH28: 1 | CI28: 6 | CJ28: 0 | CK28: 6 | CL28: 37188 | CM28: 34864 | CN28: 24890 | CO28: 24715 | CP28: 218 | CQ28: 9 | CR28: 15 | CS28: 194 | CT28: 0 | CU28: 141 | CV28: 31 | CW28: 0 | CX28: 46 | CY28: 214 | CZ28: 8 | DA28: 15 | DB28: 191 | DC28: 0 | DD28: 140 | DE28: 31 | DF28: 0 | DG28: 43 | DH28: 12626 | DI28: 10288 | DJ28: 6265 | DK28: 6153 | DL28: 178 | DM28: 9 | DN28: 15 | DO28: 154 | DP28: 0 | DQ28: 105 | DR28: 47 | DS28: 1 | DT28: 25 | DU28: 170 | DV28: 9 | DW28: 15 | DX28: 146 | DY28: 0 | DZ28: 103 | EA28: 43 | EB28: 1 | EC28: 23 | ED28: 5802 | EE28: 5175 | EF28: 3178 | EG28: 3145 | EH28: 45 | EI28: 5 | EJ28: 4 | EK28: 36 | EL28: 0 | EM28: 27 | EN28: 7 | EO28: 2 | EP28: 9 | EQ28: 45 | ER28: 5 | ES28: 4 | ET28: 36 | EU28: 0 | EV28: 27 | EW28: 7 | EX28: 2 | EY28: 9 | EZ28: 5364 | FA28: 4983 | FB28: 3411 | FC28: 3365 | FD28: 43 | FE28: 1 | FF28: 5 | FG28: 36 | FH28: 1 | FI28: 33 | FJ28: 7 | FK28: 1 | FL28: 2 | FM28: 42 | FN28: 1 | FO28: 5 | FP28: 35 | FQ28: 1 | FR28: 32 | FS28: 7 | FT28: 1 | FU28: 2 | FV28: 1662 | FW28: 1222 | FX28: 986 | FY28: 974 | FZ28: 3 | GA28: 1 | GB28: 0 | GC28: 2 | GD28: 0 | GE28: 0 | GF28: 3 | GG28: 0 | GH28: 0 | GI28: 3 | GJ28: 1 | GK28: 0 | GL28: 2 | GM28: 0 | GN28: 0 | GO28: 3 | GP28: 0 | GQ28: 0 | GR28: 13128 | GS28: 8113 | GT28: 4867 | GU28: 4628 | GV28: 182 | GW28: 126 | GX28: 4 | GY28: 52 | GZ28: 0 | HA28: 30 | HB28: 141 | HC28: 1 | HD28: 10 | HE28: 61 | HF28: 5 | HG28: 4 | HH28: 52 | HI28: 0 | HJ28: 30 | HK28: 20 | HL28: 1 | HM28: 10 | HN28: 1047357 | HO28: 789076 | HP28: 473290 | HQ28: 460189 | HR28: 12580 | HS28: 4063 | HT28: 606 | HU28: 7897 | HV28: 14 | HW28: 4960 | HX28: 1931 | HY28: 39 | HZ28: 5650 | IA28: 8888 | IB28: 1461 | IC28: 582 | ID28: 6832 | IE28: 13 | IF28: 4281 | IG28: 1594 | IH28: 37 | II28: 2976 | IJ28: 1555087 | IK28: 1259535 | IL28: 814268 | IM28: 798984 | IN28: 16826 | IO28: 4434 | IP28: 874 | IQ28: 11494 | IR28: 24 | IS28: 7674 | IT28: 2765 | IU28: 66 | IV28: 6321 | IW28: 12889 | IX28: 1634 | IY28: 848 | IZ28: 10384 | JA28: 23 | JB28: 6972 | JC28: 2280 | JD28: 64 | JE28: 3573
A29: 2019-12-01 | B29: 248 | C29: 205 | D29: 146 | E29: 145 | F29: 9 | G29: 0 | H29: 0 | I29: 9 | J29: 0 | K29: 2 | L29: 3 | M29: 0 | N29: 4 | O29: 8 | P29: 0 | Q29: 0 | R29: 8 | S29: 0 | T29: 2 | U29: 2 | V29: 0 | W29: 4 | X29: 3643 | Y29: 3436 | Z29: 2436 | AA29: 2419 | AB29: 52 | AC29: 1 | AD29: 3 | AE29: 48 | AF29: 0 | AG29: 26 | AH29: 15 | AI29: 2 | AJ29: 9 | AK29: 52 | AL29: 1 | AM29: 3 | AN29: 48 | AO29: 0 | AP29: 26 | AQ29: 15 | AR29: 2 | AS29: 9 | AT29: 428214 | AU29: 402422 | AV29: 295866 | AW29: 294405 | AX29: 3677 | AY29: 234 | AZ29: 235 | BA29: 3197 | BB29: 11 | BC29: 2490 | BD29: 581 | BE29: 19 | BF29: 587 | BG29: 3555 | BH29: 153 | BI29: 231 | BJ29: 3160 | BK29: 11 | BL29: 2464 | BM29: 558 | BN29: 19 | BO29: 514 | BP29: 579 | BQ29: 422 | BR29: 475 | BS29: 391 | BT29: 17 | BU29: 4 | BV29: 1 | BW29: 12 | BX29: 0 | BY29: 1 | BZ29: 8 | CA29: 0 | CB29: 8 | CC29: 17 | CD29: 4 | CE29: 1 | CF29: 12 | CG29: 0 | CH29: 1 | CI29: 8 | CJ29: 0 | CK29: 8 | CL29: 37225 | CM29: 34903 | CN29: 25064 | CO29: 24892 | CP29: 220 | CQ29: 9 | CR29: 15 | CS29: 196 | CT29: 0 | CU29: 142 | CV29: 30 | CW29: 0 | CX29: 48 | CY29: 217 | CZ29: 8 | DA29: 15 | DB29: 194 | DC29: 0 | DD29: 142 | DE29: 30 | DF29: 0 | DG29: 45 | DH29: 12602 | DI29: 10279 | DJ29: 6277 | DK29: 6171 | DL29: 179 | DM29: 9 | DN29: 14 | DO29: 156 | DP29: 0 | DQ29: 107 | DR29: 45 | DS29: 1 | DT29: 26 | DU29: 173 | DV29: 9 | DW29: 14 | DX29: 150 | DY29: 0 | DZ29: 105 | EA29: 43 | EB29: 1 | EC29: 24 | ED29: 5792 | EE29: 5169 | EF29: 3188 | EG29: 3157 | EH29: 46 | EI29: 5 | EJ29: 4 | EK29: 37 | EL29: 0 | EM29: 27 | EN29: 8 | EO29: 2 | EP29: 9 | EQ29: 45 | ER29: 5 | ES29: 4 | ET29: 36 | EU29: 0 | EV29: 26 | EW29: 8 | EX29: 2 | EY29: 9 | EZ29: 5373 | FA29: 5001 | FB29: 3444 | FC29: 3401 | FD29: 44 | FE29: 1 | FF29: 5 | FG29: 37 | FH29: 1 | FI29: 34 | FJ29: 7 | FK29: 1 | FL29: 2 | FM29: 44 | FN29: 1 | FO29: 5 | FP29: 37 | FQ29: 1 | FR29: 34 | FS29: 7 | FT29: 1 | FU29: 2 | FV29: 1663 | FW29: 1220 | FX29: 986 | FY29: 976 | FZ29: 4 | GA29: 1 | GB29: 0 | GC29: 3 | GD29: 0 | GE29: 0 | GF29: 4 | GG29: 0 | GH29: 0 | GI29: 4 | GJ29: 1 | GK29: 0 | GL29: 3 | GM29: 0 | GN29: 0 | GO29: 4 | GP29: 0 | GQ29: 0 | GR29: 12955 | GS29: 7946 | GT29: 4709 | GU29: 4476 | GV29: 180 | GW29: 126 | GX29: 4 | GY29: 50 | GZ29: 0 | HA29: 28 | HB29: 141 | HC29: 1 | HD29: 10 | HE29: 59 | HF29: 5 | HG29: 4 | HH29: 50 | HI29: 0 | HJ29: 28 | HK29: 20 | HL29: 1 | HM29: 10 | HN29: 1044984 | HO29: 787885 | HP29: 474898 | HQ29: 461745 | HR29: 12563 | HS29: 4220 | HT29: 636 | HU29: 7693 | HV29: 14 | HW29: 5054 | HX29: 2078 | HY29: 38 | HZ29: 5393 | IA29: 8745 | IB29: 1482 | IC29: 607 | ID29: 6643 | IE29: 13 | IF29: 4335 | IG29: 1642 | IH29: 36 | II29: 2732 | IJ29: 1553279 | IK29: 1258888 | IL29: 817489 | IM29: 802178 | IN29: 16991 | IO29: 4610 | IP29: 917 | IQ29: 11438 | IR29: 26 | IS29: 7911 | IT29: 2920 | IU29: 64 | IV29: 6096 | IW29: 12919 | IX29: 1669 | IY29: 884 | IZ29: 10341 | JA29: 25 | JB29: 7163 | JC29: 2337 | JD29: 62 | JE29: 3357
A30: 2020-01-01 | B30: 249 | C30: 203 | D30: 144 | E30: 142 | F30: 9 | G30: 0 | H30: 0 | I30: 9 | J30: 0 | K30: 2 | L30: 3 | M30: 0 | N30: 4 | O30: 8 | P30: 0 | Q30: 0 | R30: 8 | S30: 0 | T30: 2 | U30: 2 | V30: 0 | W30: 4 | X30: 3646 | Y30: 3444 | Z30: 2448 | AA30: 2434 | AB30: 53 | AC30: 1 | AD30: 3 | AE30: 49 | AF30: 0 | AG30: 26 | AH30: 16 | AI30: 2 | AJ30: 9 | AK30: 53 | AL30: 1 | AM30: 3 | AN30: 49 | AO30: 0 | AP30: 26 | AQ30: 16 | AR30: 2 | AS30: 9 | AT30: 428966 | AU30: 403074 | AV30: 296967 | AW30: 295523 | AX30: 3789 | AY30: 244 | AZ30: 248 | BA30: 3287 | BB30: 10 | BC30: 2563 | BD30: 599 | BE30: 19 | BF30: 608 | BG30: 3666 | BH30: 158 | BI30: 245 | BJ30: 3253 | BK30: 10 | BL30: 2542 | BM30: 575 | BN30: 19 | BO30: 530 | BP30: 577 | BQ30: 417 | BR30: 471 | BS30: 389 | BT30: 19 | BU30: 4 | BV30: 1 | BW30: 14 | BX30: 0 | BY30: 3 | BZ30: 8 | CA30: 0 | CB30: 8 | CC30: 19 | CD30: 4 | CE30: 1 | CF30: 14 | CG30: 0 | CH30: 3 | CI30: 8 | CJ30: 0 | CK30: 8 | CL30: 37279 | CM30: 34956 | CN30: 25180 | CO30: 25005 | CP30: 227 | CQ30: 10 | CR30: 15 | CS30: 202 | CT30: 0 | CU30: 148 | CV30: 31 | CW30: 0 | CX30: 48 | CY30: 223 | CZ30: 9 | DA30: 15 | DB30: 199 | DC30: 0 | DD30: 147 | DE30: 31 | DF30: 0 | DG30: 45 | DH30: 12552 | DI30: 10250 | DJ30: 6288 | DK30: 6181 | DL30: 182 | DM30: 9 | DN30: 15 | DO30: 158 | DP30: 0 | DQ30: 109 | DR30: 45 | DS30: 1 | DT30: 27 | DU30: 175 | DV30: 9 | DW30: 15 | DX30: 151 | DY30: 0 | DZ30: 107 | EA30: 42 | EB30: 1 | EC30: 25 | ED30: 5778 | EE30: 5152 | EF30: 3193 | EG30: 3161 | EH30: 45 | EI30: 5 | EJ30: 4 | EK30: 36 | EL30: 0 | EM30: 27 | EN30: 8 | EO30: 1 | EP30: 9 | EQ30: 45 | ER30: 5 | ES30: 4 | ET30: 36 | EU30: 0 | EV30: 27 | EW30: 8 | EX30: 1 | EY30: 9 | EZ30: 5376 | FA30: 4999 | FB30: 3455 | FC30: 3410 | FD30: 44 | FE30: 1 | FF30: 5 | FG30: 37 | FH30: 1 | FI30: 34 | FJ30: 7 | FK30: 1 | FL30: 2 | FM30: 44 | FN30: 1 | FO30: 5 | FP30: 37 | FQ30: 1 | FR30: 34 | FS30: 7 | FT30: 1 | FU30: 2 | FV30: 1664 | FW30: 1223 | FX30: 988 | FY30: 977 | FZ30: 4 | GA30: 1 | GB30: 0 | GC30: 3 | GD30: 0 | GE30: 0 | GF30: 4 | GG30: 0 | GH30: 0 | GI30: 4 | GJ30: 1 | GK30: 0 | GL30: 3 | GM30: 0 | GN30: 0 | GO30: 4 | GP30: 0 | GQ30: 0 | GR30: 12822 | GS30: 7878 | GT30: 4709 | GU30: 4447 | GV30: 180 | GW30: 126 | GX30: 4 | GY30: 50 | GZ30: 0 | HA30: 28 | HB30: 141 | HC30: 1 | HD30: 10 | HE30: 59 | HF30: 5 | HG30: 4 | HH30: 50 | HI30: 0 | HJ30: 28 | HK30: 20 | HL30: 1 | HM30: 10 | HN30: 1043079 | HO30: 786256 | HP30: 475389 | HQ30: 462555 | HR30: 12438 | HS30: 4264 | HT30: 666 | HU30: 7494 | HV30: 14 | HW30: 5188 | HX30: 2122 | HY30: 38 | HZ30: 5090 | IA30: 9093 | IB30: 1558 | IC30: 636 | ID30: 6886 | IE30: 13 | IF30: 4463 | IG30: 1681 | IH30: 36 | II30: 2913 | IJ30: 1551989 | IK30: 1257852 | IL30: 819232 | IM30: 804224 | IN30: 16990 | IO30: 4665 | IP30: 961 | IQ30: 11339 | IR30: 25 | IS30: 8128 | IT30: 2984 | IU30: 63 | IV30: 5815 | IW30: 13389 | IX30: 1751 | IY30: 928 | IZ30: 10686 | JA30: 24 | JB30: 7379 | JC30: 2394 | JD30: 61 | JE30: 3555
A31: 2020-02-01 | B31: 248 | C31: 204 | D31: 144 | E31: 143 | F31: 9 | G31: 0 | H31: 0 | I31: 9 | J31: 0 | K31: 2 | L31: 3 | M31: 0 | N31: 4 | O31: 8 | P31: 0 | Q31: 0 | R31: 8 | S31: 0 | T31: 2 | U31: 2 | V31: 0 | W31: 4 | X31: 3652 | Y31: 3452 | Z31: 2465 | AA31: 2448 | AB31: 53 | AC31: 1 | AD31: 3 | AE31: 49 | AF31: 0 | AG31: 26 | AH31: 16 | AI31: 2 | AJ31: 9 | AK31: 53 | AL31: 1 | AM31: 3 | AN31: 49 | AO31: 0 | AP31: 26 | AQ31: 16 | AR31: 2 | AS31: 9 | AT31: 429937 | AU31: 403950 | AV31: 298097 | AW31: 296662 | AX31: 3933 | AY31: 254 | AZ31: 261 | BA31: 3407 | BB31: 11 | BC31: 2658 | BD31: 623 | BE31: 19 | BF31: 633 | BG31: 3802 | BH31: 165 | BI31: 257 | BJ31: 3369 | BK31: 11 | BL31: 2635 | BM31: 597 | BN31: 19 | BO31: 551 | BP31: 579 | BQ31: 413 | BR31: 469 | BS31: 385 | BT31: 19 | BU31: 4 | BV31: 1 | BW31: 14 | BX31: 0 | BY31: 3 | BZ31: 8 | CA31: 0 | CB31: 8 | CC31: 19 | CD31: 4 | CE31: 1 | CF31: 14 | CG31: 0 | CH31: 3 | CI31: 8 | CJ31: 0 | CK31: 8 | CL31: 37382 | CM31: 35045 | CN31: 25319 | CO31: 25148 | CP31: 237 | CQ31: 11 | CR31: 14 | CS31: 212 | CT31: 0 | CU31: 154 | CV31: 35 | CW31: 0 | CX31: 48 | CY31: 234 | CZ31: 10 | DA31: 14 | DB31: 210 | DC31: 0 | DD31: 154 | DE31: 35 | DF31: 0 | DG31: 45 | DH31: 12520 | DI31: 10223 | DJ31: 6287 | DK31: 6179 | DL31: 188 | DM31: 10 | DN31: 15 | DO31: 163 | DP31: 0 | DQ31: 115 | DR31: 46 | DS31: 1 | DT31: 26 | DU31: 181 | DV31: 10 | DW31: 15 | DX31: 156 | DY31: 0 | DZ31: 113 | EA31: 43 | EB31: 1 | EC31: 24 | ED31: 5769 | EE31: 5145 | EF31: 3199 | EG31: 3167 | EH31: 48 | EI31: 5 | EJ31: 5 | EK31: 38 | EL31: 0 | EM31: 28 | EN31: 8 | EO31: 2 | EP31: 10 | EQ31: 48 | ER31: 5 | ES31: 5 | ET31: 38 | EU31: 0 | EV31: 28 | EW31: 8 | EX31: 2 | EY31: 10 | EZ31: 5389 | FA31: 5012 | FB31: 3472 | FC31: 3429 | FD31: 45 | FE31: 1 | FF31: 5 | FG31: 38 | FH31: 1 | FI31: 35 | FJ31: 7 | FK31: 1 | FL31: 2 | FM31: 45 | FN31: 1 | FO31: 5 | FP31: 38 | FQ31: 1 | FR31: 35 | FS31: 7 | FT31: 1 | FU31: 2 | FV31: 1664 | FW31: 1227 | FX31: 991 | FY31: 980 | FZ31: 4 | GA31: 1 | GB31: 0 | GC31: 3 | GD31: 0 | GE31: 0 | GF31: 4 | GG31: 0 | GH31: 0 | GI31: 4 | GJ31: 1 | GK31: 0 | GL31: 3 | GM31: 0 | GN31: 0 | GO31: 4 | GP31: 0 | GQ31: 0 | GR31: 12752 | GS31: 7874 | GT31: 4758 | GU31: 4473 | GV31: 180 | GW31: 127 | GX31: 4 | GY31: 48 | GZ31: 1 | HA31: 28 | HB31: 141 | HC31: 1 | HD31: 10 | HE31: 59 | HF31: 6 | HG31: 4 | HH31: 48 | HI31: 1 | HJ31: 28 | HK31: 20 | HL31: 1 | HM31: 10 | HN31: 1045519 | HO31: 787677 | HP31: 478625 | HQ31: 465717 | HR31: 12476 | HS31: 4124 | HT31: 721 | HU31: 7615 | HV31: 16 | HW31: 5072 | HX31: 2228 | HY31: 42 | HZ31: 5134 | IA31: 9357 | IB31: 1569 | IC31: 687 | ID31: 7086 | IE31: 15 | IF31: 4622 | IG31: 1774 | IH31: 40 | II31: 2921 | IJ31: 1555412 | IK31: 1260222 | IL31: 823826 | IM31: 808731 | IN31: 17192 | IO31: 4538 | IP31: 1029 | IQ31: 11596 | IR31: 29 | IS31: 8121 | IT31: 3119 | IU31: 68 | IV31: 5884 | IW31: 13810 | IX31: 1772 | IY31: 991 | IZ31: 11019 | JA31: 28 | JB31: 7646 | JC31: 2514 | JD31: 66 | JE31: 3584
A32: 2020-03-01 | B32: 248 | C32: 201 | D32: 144 | E32: 142 | F32: 9 | G32: 0 | H32: 0 | I32: 9 | J32: 0 | K32: 2 | L32: 3 | M32: 0 | N32: 4 | O32: 8 | P32: 0 | Q32: 0 | R32: 8 | S32: 0 | T32: 2 | U32: 2 | V32: 0 | W32: 4 | X32: 3661 | Y32: 3459 | Z32: 2477 | AA32: 2461 | AB32: 56 | AC32: 1 | AD32: 4 | AE32: 51 | AF32: 0 | AG32: 28 | AH32: 17 | AI32: 2 | AJ32: 9 | AK32: 56 | AL32: 1 | AM32: 4 | AN32: 51 | AO32: 0 | AP32: 28 | AQ32: 17 | AR32: 2 | AS32: 9 | AT32: 431048 | AU32: 404928 | AV32: 299517 | AW32: 298026 | AX32: 4248 | AY32: 263 | AZ32: 272 | BA32: 3702 | BB32: 11 | BC32: 2909 | BD32: 646 | BE32: 19 | BF32: 674 | BG32: 4101 | BH32: 169 | BI32: 267 | BJ32: 3654 | BK32: 11 | BL32: 2882 | BM32: 617 | BN32: 19 | BO32: 583 | BP32: 580 | BQ32: 417 | BR32: 470 | BS32: 389 | BT32: 20 | BU32: 4 | BV32: 1 | BW32: 15 | BX32: 0 | BY32: 3 | BZ32: 8 | CA32: 0 | CB32: 9 | CC32: 20 | CD32: 4 | CE32: 1 | CF32: 15 | CG32: 0 | CH32: 3 | CI32: 8 | CJ32: 0 | CK32: 9 | CL32: 37467 | CM32: 35109 | CN32: 25461 | CO32: 25287 | CP32: 254 | CQ32: 11 | CR32: 14 | CS32: 229 | CT32: 0 | CU32: 167 | CV32: 36 | CW32: 0 | CX32: 51 | CY32: 251 | CZ32: 10 | DA32: 14 | DB32: 227 | DC32: 0 | DD32: 167 | DE32: 36 | DF32: 0 | DG32: 48 | DH32: 12516 | DI32: 10203 | DJ32: 6331 | DK32: 6214 | DL32: 197 | DM32: 9 | DN32: 17 | DO32: 171 | DP32: 0 | DQ32: 116 | DR32: 49 | DS32: 1 | DT32: 31 | DU32: 190 | DV32: 9 | DW32: 17 | DX32: 164 | DY32: 0 | DZ32: 114 | EA32: 45 | EB32: 1 | EC32: 30 | ED32: 5755 | EE32: 5133 | EF32: 3210 | EG32: 3179 | EH32: 52 | EI32: 5 | EJ32: 5 | EK32: 42 | EL32: 0 | EM32: 30 | EN32: 9 | EO32: 2 | EP32: 11 | EQ32: 52 | ER32: 5 | ES32: 5 | ET32: 42 | EU32: 0 | EV32: 30 | EW32: 9 | EX32: 2 | EY32: 11 | EZ32: 5407 | FA32: 5025 | FB32: 3491 | FC32: 3448 | FD32: 46 | FE32: 1 | FF32: 5 | FG32: 39 | FH32: 1 | FI32: 36 | FJ32: 7 | FK32: 1 | FL32: 2 | FM32: 46 | FN32: 1 | FO32: 5 | FP32: 39 | FQ32: 1 | FR32: 36 | FS32: 7 | FT32: 1 | FU32: 2 | FV32: 1664 | FW32: 1229 | FX32: 994 | FY32: 983 | FZ32: 4 | GA32: 1 | GB32: 0 | GC32: 3 | GD32: 0 | GE32: 0 | GF32: 4 | GG32: 0 | GH32: 0 | GI32: 4 | GJ32: 1 | GK32: 0 | GL32: 3 | GM32: 0 | GN32: 0 | GO32: 4 | GP32: 0 | GQ32: 0 | GR32: 12719 | GS32: 7891 | GT32: 4822 | GU32: 4576 | GV32: 211 | GW32: 127 | GX32: 5 | GY32: 78 | GZ32: 1 | HA32: 59 | HB32: 141 | HC32: 1 | HD32: 10 | HE32: 90 | HF32: 6 | HG32: 5 | HH32: 78 | HI32: 1 | HJ32: 59 | HK32: 20 | HL32: 1 | HM32: 10 | HN32: 1047197 | HO32: 788491 | HP32: 484014 | HQ32: 470989 | HR32: 12184 | HS32: 4211 | HT32: 765 | HU32: 7189 | HV32: 19 | HW32: 5552 | HX32: 2342 | HY32: 44 | HZ32: 4246 | IA32: 9001 | IB32: 1584 | IC32: 729 | ID32: 6671 | IE32: 17 | IF32: 5071 | IG32: 1838 | IH32: 42 | II32: 2050 | IJ32: 1558263 | IK32: 1262086 | IL32: 830931 | IM32: 815694 | IN32: 17281 | IO32: 4633 | IP32: 1088 | IQ32: 11528 | IR32: 32 | IS32: 8902 | IT32: 3262 | IU32: 70 | IV32: 5047 | IW32: 13819 | IX32: 1790 | IY32: 1047 | IZ32: 10952 | JA32: 30 | JB32: 8392 | JC32: 2603 | JD32: 68 | JE32: 2756
A33: 2020-04-01 | B33: 248 | C33: 202 | D33: 146 | E33: 144 | F33: 10 | G33: 0 | H33: 0 | I33: 9 | J33: 1 | K33: 3 | L33: 3 | M33: 0 | N33: 4 | O33: 9 | P33: 0 | Q33: 0 | R33: 8 | S33: 1 | T33: 3 | U33: 2 | V33: 0 | W33: 4 | X33: 3666 | Y33: 3471 | Z33: 2498 | AA33: 2484 | AB33: 57 | AC33: 1 | AD33: 4 | AE33: 52 | AF33: 0 | AG33: 27 | AH33: 19 | AI33: 2 | AJ33: 9 | AK33: 57 | AL33: 1 | AM33: 4 | AN33: 52 | AO33: 0 | AP33: 27 | AQ33: 19 | AR33: 2 | AS33: 9 | AT33: 431808 | AU33: 405503 | AV33: 300561 | AW33: 299070 | AX33: 4406 | AY33: 274 | AZ33: 278 | BA33: 3841 | BB33: 13 | BC33: 3048 | BD33: 659 | BE33: 20 | BF33: 679 | BG33: 4255 | BH33: 170 | BI33: 273 | BJ33: 3799 | BK33: 13 | BL33: 3021 | BM33: 632 | BN33: 20 | BO33: 582 | BP33: 579 | BQ33: 414 | BR33: 461 | BS33: 385 | BT33: 20 | BU33: 4 | BV33: 1 | BW33: 15 | BX33: 0 | BY33: 3 | BZ33: 8 | CA33: 0 | CB33: 9 | CC33: 20 | CD33: 4 | CE33: 1 | CF33: 15 | CG33: 0 | CH33: 3 | CI33: 8 | CJ33: 0 | CK33: 9 | CL33: 37568 | CM33: 35170 | CN33: 25587 | CO33: 25408 | CP33: 268 | CQ33: 12 | CR33: 16 | CS33: 240 | CT33: 0 | CU33: 181 | CV33: 39 | CW33: 0 | CX33: 48 | CY33: 264 | CZ33: 10 | DA33: 16 | DB33: 238 | DC33: 0 | DD33: 180 | DE33: 39 | DF33: 0 | DG33: 45 | DH33: 12500 | DI33: 10192 | DJ33: 6324 | DK33: 6208 | DL33: 203 | DM33: 9 | DN33: 17 | DO33: 177 | DP33: 0 | DQ33: 123 | DR33: 50 | DS33: 1 | DT33: 29 | DU33: 195 | DV33: 9 | DW33: 17 | DX33: 169 | DY33: 0 | DZ33: 120 | EA33: 46 | EB33: 1 | EC33: 28 | ED33: 5741 | EE33: 5120 | EF33: 3212 | EG33: 3183 | EH33: 55 | EI33: 5 | EJ33: 6 | EK33: 44 | EL33: 0 | EM33: 33 | EN33: 9 | EO33: 2 | EP33: 11 | EQ33: 55 | ER33: 5 | ES33: 6 | ET33: 44 | EU33: 0 | EV33: 33 | EW33: 9 | EX33: 2 | EY33: 11 | EZ33: 5434 | FA33: 5034 | FB33: 3511 | FC33: 3466 | FD33: 48 | FE33: 1 | FF33: 5 | FG33: 41 | FH33: 1 | FI33: 36 | FJ33: 8 | FK33: 1 | FL33: 3 | FM33: 48 | FN33: 1 | FO33: 5 | FP33: 41 | FQ33: 1 | FR33: 36 | FS33: 8 | FT33: 1 | FU33: 3 | FV33: 1664 | FW33: 1227 | FX33: 994 | FY33: 985 | FZ33: 4 | GA33: 1 | GB33: 0 | GC33: 3 | GD33: 0 | GE33: 0 | GF33: 4 | GG33: 0 | GH33: 0 | GI33: 4 | GJ33: 1 | GK33: 0 | GL33: 3 | GM33: 0 | GN33: 0 | GO33: 4 | GP33: 0 | GQ33: 0 | GR33: 12655 | GS33: 7835 | GT33: 4795 | GU33: 4567 | GV33: 240 | GW33: 127 | GX33: 6 | GY33: 106 | GZ33: 1 | HA33: 88 | HB33: 140 | HC33: 1 | HD33: 11 | HE33: 119 | HF33: 6 | HG33: 6 | HH33: 106 | HI33: 1 | HJ33: 88 | HK33: 19 | HL33: 1 | HM33: 11 | HN33: 1049978 | HO33: 789238 | HP33: 487062 | HQ33: 473997 | HR33: 12943 | HS33: 4272 | HT33: 799 | HU33: 7851 | HV33: 21 | HW33: 6180 | HX33: 2409 | HY33: 46 | HZ33: 4308 | IA33: 9711 | IB33: 1583 | IC33: 761 | ID33: 7348 | IE33: 19 | IF33: 5694 | IG33: 1907 | IH33: 44 | II33: 2066 | IJ33: 1561842 | IK33: 1263406 | IL33: 835151 | IM33: 819897 | IN33: 18254 | IO33: 4706 | IP33: 1132 | IQ33: 12379 | IR33: 37 | IS33: 9722 | IT33: 3348 | IU33: 73 | IV33: 5111 | IW33: 14737 | IX33: 1790 | IY33: 1089 | IZ33: 11823 | JA33: 35 | JB33: 9205 | JC33: 2693 | JD33: 71 | JE33: 2768
A34: 2020-05-01 | B34: 248 | C34: 203 | D34: 146 | E34: 144 | F34: 10 | G34: 0 | H34: 0 | I34: 10 | J34: 0 | K34: 2 | L34: 3 | M34: 0 | N34: 5 | O34: 9 | P34: 0 | Q34: 0 | R34: 9 | S34: 0 | T34: 2 | U34: 2 | V34: 0 | W34: 5 | X34: 3676 | Y34: 3475 | Z34: 2499 | AA34: 2486 | AB34: 59 | AC34: 1 | AD34: 4 | AE34: 54 | AF34: 0 | AG34: 27 | AH34: 19 | AI34: 2 | AJ34: 11 | AK34: 59 | AL34: 1 | AM34: 4 | AN34: 54 | AO34: 0 | AP34: 27 | AQ34: 19 | AR34: 2 | AS34: 11 | AT34: 432326 | AU34: 406176 | AV34: 301606 | AW34: 300112 | AX34: 4563 | AY34: 283 | AZ34: 298 | BA34: 3969 | BB34: 13 | BC34: 3163 | BD34: 674 | BE34: 20 | BF34: 706 | BG34: 4405 | BH34: 178 | BI34: 294 | BJ34: 3920 | BK34: 13 | BL34: 3135 | BM34: 643 | BN34: 20 | BO34: 607 | BP34: 576 | BQ34: 411 | BR34: 459 | BS34: 382 | BT34: 23 | BU34: 4 | BV34: 3 | BW34: 16 | BX34: 0 | BY34: 5 | BZ34: 8 | CA34: 0 | CB34: 10 | CC34: 22 | CD34: 4 | CE34: 3 | CF34: 15 | CG34: 0 | CH34: 5 | CI34: 8 | CJ34: 0 | CK34: 9 | CL34: 37611 | CM34: 35228 | CN34: 25674 | CO34: 25508 | CP34: 277 | CQ34: 12 | CR34: 17 | CS34: 248 | CT34: 0 | CU34: 189 | CV34: 39 | CW34: 0 | CX34: 49 | CY34: 274 | CZ34: 10 | DA34: 17 | DB34: 247 | DC34: 0 | DD34: 189 | DE34: 39 | DF34: 0 | DG34: 46 | DH34: 12466 | DI34: 10180 | DJ34: 6329 | DK34: 6209 | DL34: 204 | DM34: 9 | DN34: 18 | DO34: 177 | DP34: 0 | DQ34: 125 | DR34: 49 | DS34: 1 | DT34: 29 | DU34: 197 | DV34: 9 | DW34: 18 | DX34: 170 | DY34: 0 | DZ34: 122 | EA34: 46 | EB34: 1 | EC34: 28 | ED34: 5719 | EE34: 5096 | EF34: 3213 | EG34: 3179 | EH34: 58 | EI34: 6 | EJ34: 6 | EK34: 46 | EL34: 0 | EM34: 35 | EN34: 9 | EO34: 2 | EP34: 12 | EQ34: 57 | ER34: 5 | ES34: 6 | ET34: 46 | EU34: 0 | EV34: 35 | EW34: 9 | EX34: 2 | EY34: 11 | EZ34: 5463 | FA34: 5071 | FB34: 3522 | FC34: 3479 | FD34: 36 | FE34: 1 | FF34: 5 | FG34: 29 | FH34: 1 | FI34: 23 | FJ34: 9 | FK34: 1 | FL34: 3 | FM34: 36 | FN34: 1 | FO34: 5 | FP34: 29 | FQ34: 1 | FR34: 23 | FS34: 9 | FT34: 1 | FU34: 3 | FV34: 1662 | FW34: 1229 | FX34: 1002 | FY34: 992 | FZ34: 4 | GA34: 1 | GB34: 0 | GC34: 3 | GD34: 0 | GE34: 0 | GF34: 4 | GG34: 0 | GH34: 0 | GI34: 4 | GJ34: 1 | GK34: 0 | GL34: 3 | GM34: 0 | GN34: 0 | GO34: 4 | GP34: 0 | GQ34: 0 | GR34: 12603 | GS34: 7849 | GT34: 4852 | GU34: 4615 | GV34: 241 | GW34: 128 | GX34: 6 | GY34: 106 | GZ34: 1 | HA34: 89 | HB34: 140 | HC34: 1 | HD34: 11 | HE34: 119 | HF34: 6 | HG34: 6 | HH34: 106 | HI34: 1 | HJ34: 89 | HK34: 18 | HL34: 1 | HM34: 11 | HN34: 1051561 | HO34: 789858 | HP34: 489418 | HQ34: 476078 | HR34: 13462 | HS34: 4303 | HT34: 846 | HU34: 8292 | HV34: 21 | HW34: 6232 | HX34: 2778 | HY34: 47 | HZ34: 4405 | IA34: 9911 | IB34: 1625 | IC34: 800 | ID34: 7467 | IE34: 19 | IF34: 5799 | IG34: 1957 | IH34: 45 | II34: 2110 | IJ34: 1563912 | IK34: 1264776 | IL34: 838720 | IM34: 823184 | IN34: 18937 | IO34: 4748 | IP34: 1203 | IQ34: 12950 | IR34: 36 | IS34: 9890 | IT34: 3732 | IU34: 74 | IV34: 5241 | IW34: 15093 | IX34: 1840 | IY34: 1153 | IZ34: 12066 | JA34: 34 | JB34: 9426 | JC34: 2754 | JD34: 72 | JE34: 2841
A35: 2020-06-01 | B35: 248 | C35: 203 | D35: 146 | E35: 144 | F35: 11 | G35: 0 | H35: 0 | I35: 11 | J35: 0 | K35: 2 | L35: 3 | M35: 0 | N35: 6 | O35: 10 | P35: 0 | Q35: 0 | R35: 10 | S35: 0 | T35: 2 | U35: 2 | V35: 0 | W35: 6 | X35: 3678 | Y35: 3478 | Z35: 2506 | AA35: 2492 | AB35: 61 | AC35: 1 | AD35: 4 | AE35: 56 | AF35: 0 | AG35: 28 | AH35: 19 | AI35: 2 | AJ35: 12 | AK35: 61 | AL35: 1 | AM35: 4 | AN35: 56 | AO35: 0 | AP35: 28 | AQ35: 19 | AR35: 2 | AS35: 12 | AT35: 433543 | AU35: 407292 | AV35: 303063 | AW35: 301561 | AX35: 4724 | AY35: 289 | AZ35: 308 | BA35: 4115 | BB35: 12 | BC35: 3287 | BD35: 691 | BE35: 20 | BF35: 726 | BG35: 4566 | BH35: 182 | BI35: 303 | BJ35: 4069 | BK35: 12 | BL35: 3257 | BM35: 662 | BN35: 20 | BO35: 627 | BP35: 580 | BQ35: 414 | BR35: 460 | BS35: 384 | BT35: 24 | BU35: 4 | BV35: 3 | BW35: 17 | BX35: 0 | BY35: 5 | BZ35: 9 | CA35: 0 | CB35: 10 | CC35: 23 | CD35: 4 | CE35: 3 | CF35: 16 | CG35: 0 | CH35: 5 | CI35: 9 | CJ35: 0 | CK35: 9 | CL35: 37693 | CM35: 35304 | CN35: 25778 | CO35: 25607 | CP35: 290 | CQ35: 12 | CR35: 18 | CS35: 260 | CT35: 0 | CU35: 201 | CV35: 39 | CW35: 0 | CX35: 50 | CY35: 287 | CZ35: 10 | DA35: 18 | DB35: 259 | DC35: 0 | DD35: 201 | DE35: 39 | DF35: 0 | DG35: 47 | DH35: 12449 | DI35: 10161 | DJ35: 6340 | DK35: 6223 | DL35: 218 | DM35: 14 | DN35: 19 | DO35: 185 | DP35: 0 | DQ35: 134 | DR35: 50 | DS35: 1 | DT35: 33 | DU35: 204 | DV35: 9 | DW35: 19 | DX35: 176 | DY35: 0 | DZ35: 126 | EA35: 46 | EB35: 1 | EC35: 31 | ED35: 5703 | EE35: 5087 | EF35: 3214 | EG35: 3183 | EH35: 59 | EI35: 6 | EJ35: 7 | EK35: 46 | EL35: 0 | EM35: 36 | EN35: 8 | EO35: 2 | EP35: 13 | EQ35: 58 | ER35: 5 | ES35: 7 | ET35: 46 | EU35: 0 | EV35: 36 | EW35: 8 | EX35: 2 | EY35: 12 | EZ35: 5487 | FA35: 4994 | FB35: 3551 | FC35: 3506 | FD35: 41 | FE35: 1 | FF35: 6 | FG35: 33 | FH35: 1 | FI35: 27 | FJ35: 10 | FK35: 1 | FL35: 3 | FM35: 40 | FN35: 1 | FO35: 6 | FP35: 32 | FQ35: 1 | FR35: 27 | FS35: 9 | FT35: 1 | FU35: 3 | FV35: 1662 | FW35: 1230 | FX35: 1003 | FY35: 993 | FZ35: 4 | GA35: 1 | GB35: 0 | GC35: 3 | GD35: 0 | GE35: 0 | GF35: 4 | GG35: 0 | GH35: 0 | GI35: 4 | GJ35: 1 | GK35: 0 | GL35: 3 | GM35: 0 | GN35: 0 | GO35: 4 | GP35: 0 | GQ35: 0 | GR35: 12603 | GS35: 7891 | GT35: 4876 | GU35: 4665 | GV35: 243 | GW35: 128 | GX35: 6 | GY35: 108 | GZ35: 1 | HA35: 90 | HB35: 141 | HC35: 1 | HD35: 11 | HE35: 121 | HF35: 6 | HG35: 6 | HH35: 108 | HI35: 1 | HJ35: 90 | HK35: 19 | HL35: 1 | HM35: 11 | HN35: 1054180 | HO35: 791402 | HP35: 492029 | HQ35: 478746 | HR35: 14330 | HS35: 4858 | HT35: 873 | HU35: 8577 | HV35: 22 | HW35: 6826 | HX35: 2854 | HY35: 48 | HZ35: 4602 | IA35: 10294 | IB35: 1695 | IC35: 834 | ID35: 7745 | IE35: 20 | IF35: 5932 | IG35: 2028 | IH35: 46 | II35: 2288 | IJ35: 1567827 | IK35: 1267456 | IL35: 842966 | IM35: 827504 | IN35: 20005 | IO35: 5314 | IP35: 1244 | IQ35: 13411 | IR35: 36 | IS35: 10636 | IT35: 3828 | IU35: 75 | IV35: 5466 | IW35: 15668 | IX35: 1914 | IY35: 1200 | IZ35: 12520 | JA35: 34 | JB35: 9704 | JC35: 2845 | JD35: 73 | JE35: 3046
A36: 2020-07-01 | B36: 248 | C36: 202 | D36: 147 | E36: 144 | F36: 12 | G36: 0 | H36: 0 | I36: 12 | J36: 0 | K36: 2 | L36: 3 | M36: 0 | N36: 7 | O36: 11 | P36: 0 | Q36: 0 | R36: 11 | S36: 0 | T36: 2 | U36: 2 | V36: 0 | W36: 7 | X36: 3682 | Y36: 3478 | Z36: 2512 | AA36: 2497 | AB36: 63 | AC36: 1 | AD36: 4 | AE36: 58 | AF36: 0 | AG36: 28 | AH36: 21 | AI36: 2 | AJ36: 12 | AK36: 63 | AL36: 1 | AM36: 4 | AN36: 58 | AO36: 0 | AP36: 28 | AQ36: 21 | AR36: 2 | AS36: 12 | AT36: 434652 | AU36: 408324 | AV36: 304384 | AW36: 302946 | AX36: 4968 | AY36: 299 | AZ36: 318 | BA36: 4333 | BB36: 18 | BC36: 3408 | BD36: 775 | BE36: 21 | BF36: 764 | BG36: 4801 | BH36: 185 | BI36: 312 | BJ36: 4287 | BK36: 17 | BL36: 3375 | BM36: 741 | BN36: 21 | BO36: 664 | BP36: 584 | BQ36: 418 | BR36: 461 | BS36: 387 | BT36: 24 | BU36: 4 | BV36: 3 | BW36: 17 | BX36: 0 | BY36: 5 | BZ36: 9 | CA36: 0 | CB36: 10 | CC36: 23 | CD36: 4 | CE36: 3 | CF36: 16 | CG36: 0 | CH36: 5 | CI36: 9 | CJ36: 0 | CK36: 9 | CL36: 37757 | CM36: 35357 | CN36: 25869 | CO36: 25689 | CP36: 323 | CQ36: 13 | CR36: 18 | CS36: 292 | CT36: 0 | CU36: 205 | CV36: 67 | CW36: 0 | CX36: 51 | CY36: 320 | CZ36: 10 | DA36: 18 | DB36: 292 | DC36: 0 | DD36: 205 | DE36: 67 | DF36: 0 | DG36: 48 | DH36: 12437 | DI36: 10138 | DJ36: 6350 | DK36: 6229 | DL36: 219 | DM36: 16 | DN36: 19 | DO36: 184 | DP36: 0 | DQ36: 136 | DR36: 50 | DS36: 1 | DT36: 32 | DU36: 206 | DV36: 11 | DW36: 19 | DX36: 176 | DY36: 0 | DZ36: 128 | EA36: 46 | EB36: 1 | EC36: 31 | ED36: 5688 | EE36: 5068 | EF36: 3216 | EG36: 3181 | EH36: 63 | EI36: 6 | EJ36: 9 | EK36: 48 | EL36: 0 | EM36: 37 | EN36: 11 | EO36: 2 | EP36: 13 | EQ36: 62 | ER36: 5 | ES36: 9 | ET36: 48 | EU36: 0 | EV36: 37 | EW36: 11 | EX36: 2 | EY36: 12 | EZ36: 5525 | FA36: 5027 | FB36: 3581 | FC36: 3535 | FD36: 46 | FE36: 1 | FF36: 6 | FG36: 38 | FH36: 1 | FI36: 29 | FJ36: 13 | FK36: 1 | FL36: 3 | FM36: 46 | FN36: 1 | FO36: 6 | FP36: 38 | FQ36: 1 | FR36: 29 | FS36: 13 | FT36: 1 | FU36: 3 | FV36: 1662 | FW36: 1227 | FX36: 1002 | FY36: 992 | FZ36: 4 | GA36: 1 | GB36: 0 | GC36: 3 | GD36: 0 | GE36: 0 | GF36: 4 | GG36: 0 | GH36: 0 | GI36: 4 | GJ36: 1 | GK36: 0 | GL36: 3 | GM36: 0 | GN36: 0 | GO36: 4 | GP36: 0 | GQ36: 0 | GR36: 12573 | GS36: 7882 | GT36: 4920 | GU36: 4678 | GV36: 210 | GW36: 81 | GX36: 6 | GY36: 122 | GZ36: 1 | HA36: 101 | HB36: 96 | HC36: 1 | HD36: 12 | HE36: 135 | HF36: 6 | HG36: 6 | HH36: 122 | HI36: 1 | HJ36: 101 | HK36: 21 | HL36: 1 | HM36: 12 | HN36: 1056313 | HO36: 792840 | HP36: 494070 | HQ36: 480728 | HR36: 15326 | HS36: 5197 | HT36: 924 | HU36: 9180 | HV36: 25 | HW36: 7513 | HX36: 3081 | HY36: 48 | HZ36: 4684 | IA36: 10948 | IB36: 1695 | IC36: 884 | ID36: 8346 | IE36: 23 | IF36: 6323 | IG36: 2228 | IH36: 46 | II36: 2351 | IJ36: 1571122 | IK36: 1269961 | IL36: 846512 | IM36: 831006 | IN36: 21258 | IO36: 5619 | IP36: 1307 | IQ36: 14287 | IR36: 45 | IS36: 11464 | IT36: 4130 | IU36: 76 | IV36: 5588 | IW36: 16619 | IX36: 1919 | IY36: 1261 | IZ36: 13397 | JA36: 42 | JB36: 10233 | JC36: 3163 | JD36: 74 | JE36: 3149
A37: 2020-08-01 | B37: 248 | C37: 202 | D37: 146 | E37: 145 | F37: 12 | G37: 0 | H37: 0 | I37: 12 | J37: 0 | K37: 2 | L37: 3 | M37: 0 | N37: 7 | O37: 11 | P37: 0 | Q37: 0 | R37: 11 | S37: 0 | T37: 2 | U37: 2 | V37: 0 | W37: 7 | X37: 3683 | Y37: 3490 | Z37: 2523 | AA37: 2508 | AB37: 63 | AC37: 1 | AD37: 5 | AE37: 57 | AF37: 0 | AG37: 28 | AH37: 20 | AI37: 2 | AJ37: 13 | AK37: 63 | AL37: 1 | AM37: 5 | AN37: 57 | AO37: 0 | AP37: 28 | AQ37: 20 | AR37: 2 | AS37: 13 | AT37: 435464 | AU37: 409100 | AV37: 305538 | AW37: 304057 | AX37: 5119 | AY37: 313 | AZ37: 330 | BA37: 4458 | BB37: 18 | BC37: 3514 | BD37: 798 | BE37: 23 | BF37: 784 | BG37: 4946 | BH37: 192 | BI37: 324 | BJ37: 4413 | BK37: 17 | BL37: 3480 | BM37: 763 | BN37: 23 | BO37: 680 | BP37: 583 | BQ37: 416 | BR37: 458 | BS37: 385 | BT37: 24 | BU37: 4 | BV37: 3 | BW37: 17 | BX37: 0 | BY37: 5 | BZ37: 9 | CA37: 0 | CB37: 10 | CC37: 23 | CD37: 4 | CE37: 3 | CF37: 16 | CG37: 0 | CH37: 5 | CI37: 9 | CJ37: 0 | CK37: 9 | CL37: 37812 | CM37: 35434 | CN37: 25992 | CO37: 25832 | CP37: 327 | CQ37: 11 | CR37: 18 | CS37: 298 | CT37: 0 | CU37: 209 | CV37: 66 | CW37: 0 | CX37: 52 | CY37: 324 | CZ37: 8 | DA37: 18 | DB37: 298 | DC37: 0 | DD37: 209 | DE37: 66 | DF37: 0 | DG37: 49 | DH37: 12429 | DI37: 10126 | DJ37: 6363 | DK37: 6245 | DL37: 222 | DM37: 16 | DN37: 20 | DO37: 186 | DP37: 0 | DQ37: 136 | DR37: 51 | DS37: 2 | DT37: 33 | DU37: 210 | DV37: 11 | DW37: 20 | DX37: 179 | DY37: 0 | DZ37: 128 | EA37: 48 | EB37: 2 | EC37: 32 | ED37: 5686 | EE37: 5048 | EF37: 3215 | EG37: 3183 | EH37: 64 | EI37: 6 | EJ37: 11 | EK37: 47 | EL37: 0 | EM37: 35 | EN37: 12 | EO37: 4 | EP37: 13 | EQ37: 63 | ER37: 5 | ES37: 11 | ET37: 47 | EU37: 0 | EV37: 35 | EW37: 12 | EX37: 4 | EY37: 12 | EZ37: 5564 | FA37: 5053 | FB37: 3612 | FC37: 3561 | FD37: 47 | FE37: 1 | FF37: 6 | FG37: 39 | FH37: 1 | FI37: 29 | FJ37: 14 | FK37: 1 | FL37: 3 | FM37: 47 | FN37: 1 | FO37: 6 | FP37: 39 | FQ37: 1 | FR37: 29 | FS37: 14 | FT37: 1 | FU37: 3 | FV37: 1662 | FW37: 1228 | FX37: 1001 | FY37: 989 | FZ37: 4 | GA37: 1 | GB37: 0 | GC37: 3 | GD37: 0 | GE37: 0 | GF37: 4 | GG37: 0 | GH37: 0 | GI37: 4 | GJ37: 1 | GK37: 0 | GL37: 3 | GM37: 0 | GN37: 0 | GO37: 4 | GP37: 0 | GQ37: 0 | GR37: 12586 | GS37: 7876 | GT37: 4986 | GU37: 4740 | GV37: 264 | GW37: 81 | GX37: 8 | GY37: 174 | GZ37: 1 | HA37: 153 | HB37: 96 | HC37: 3 | HD37: 12 | HE37: 188 | HF37: 6 | HG37: 8 | HH37: 173 | HI37: 1 | HJ37: 152 | HK37: 21 | HL37: 3 | HM37: 12 | HN37: 1057089 | HO37: 793151 | HP37: 495572 | HQ37: 482288 | HR37: 16605 | HS37: 5301 | HT37: 995 | HU37: 10283 | HV37: 26 | HW37: 8563 | HX37: 3168 | HY37: 78 | HZ37: 4796 | IA37: 12136 | IB37: 1706 | IC37: 951 | ID37: 9455 | IE37: 24 | IF37: 7402 | IG37: 2311 | IH37: 76 | II37: 2347 | IJ37: 1572807 | IK37: 1271124 | IL37: 849406 | IM37: 833933 | IN37: 22751 | IO37: 5735 | IP37: 1396 | IQ37: 15574 | IR37: 46 | IS37: 12674 | IT37: 4241 | IU37: 113 | IV37: 5723 | IW37: 18015 | IX37: 1935 | IY37: 1346 | IZ37: 14691 | JA37: 43 | JB37: 11470 | JC37: 3270 | JD37: 111 | JE37: 3164
A38: 2020-09-01 | B38: 249 | C38: 202 | D38: 147 | E38: 145 | F38: 13 | G38: 0 | H38: 0 | I38: 13 | J38: 0 | K38: 2 | L38: 4 | M38: 0 | N38: 7 | O38: 12 | P38: 0 | Q38: 0 | R38: 12 | S38: 0 | T38: 2 | U38: 3 | V38: 0 | W38: 7 | X38: 3688 | Y38: 3498 | Z38: 2527 | AA38: 2512 | AB38: 73 | AC38: 1 | AD38: 5 | AE38: 67 | AF38: 0 | AG38: 28 | AH38: 21 | AI38: 2 | AJ38: 22 | AK38: 73 | AL38: 1 | AM38: 5 | AN38: 67 | AO38: 0 | AP38: 28 | AQ38: 21 | AR38: 2 | AS38: 22 | AT38: 436979 | AU38: 410401 | AV38: 307187 | AW38: 305689 | AX38: 5956 | AY38: 320 | AZ38: 340 | BA38: 5278 | BB38: 18 | BC38: 3639 | BD38: 832 | BE38: 25 | BF38: 1460 | BG38: 5779 | BH38: 196 | BI38: 333 | BJ38: 5233 | BK38: 17 | BL38: 3602 | BM38: 798 | BN38: 25 | BO38: 1354 | BP38: 593 | BQ38: 422 | BR38: 465 | BS38: 391 | BT38: 26 | BU38: 4 | BV38: 3 | BW38: 19 | BX38: 0 | BY38: 7 | BZ38: 9 | CA38: 0 | CB38: 10 | CC38: 25 | CD38: 4 | CE38: 3 | CF38: 18 | CG38: 0 | CH38: 7 | CI38: 9 | CJ38: 0 | CK38: 9 | CL38: 37905 | CM38: 35513 | CN38: 26120 | CO38: 25959 | CP38: 368 | CQ38: 10 | CR38: 21 | CS38: 337 | CT38: 0 | CU38: 222 | CV38: 65 | CW38: 0 | CX38: 81 | CY38: 365 | CZ38: 8 | DA38: 20 | DB38: 337 | DC38: 0 | DD38: 222 | DE38: 65 | DF38: 0 | DG38: 78 | DH38: 12412 | DI38: 10117 | DJ38: 6362 | DK38: 6242 | DL38: 243 | DM38: 17 | DN38: 21 | DO38: 205 | DP38: 0 | DQ38: 139 | DR38: 53 | DS38: 2 | DT38: 49 | DU38: 229 | DV38: 12 | DW38: 21 | DX38: 196 | DY38: 0 | DZ38: 131 | EA38: 48 | EB38: 2 | EC38: 48 | ED38: 5676 | EE38: 5038 | EF38: 3220 | EG38: 3186 | EH38: 76 | EI38: 6 | EJ38: 10 | EK38: 60 | EL38: 0 | EM38: 35 | EN38: 12 | EO38: 4 | EP38: 25 | EQ38: 75 | ER38: 5 | ES38: 10 | ET38: 60 | EU38: 0 | EV38: 35 | EW38: 12 | EX38: 4 | EY38: 24 | EZ38: 5641 | FA38: 5125 | FB38: 3647 | FC38: 3602 | FD38: 60 | FE38: 1 | FF38: 7 | FG38: 51 | FH38: 1 | FI38: 36 | FJ38: 15 | FK38: 1 | FL38: 8 | FM38: 60 | FN38: 1 | FO38: 7 | FP38: 51 | FQ38: 1 | FR38: 36 | FS38: 15 | FT38: 1 | FU38: 8 | FV38: 1662 | FW38: 1229 | FX38: 1005 | FY38: 992 | FZ38: 4 | GA38: 1 | GB38: 0 | GC38: 3 | GD38: 0 | GE38: 0 | GF38: 4 | GG38: 0 | GH38: 0 | GI38: 4 | GJ38: 1 | GK38: 0 | GL38: 3 | GM38: 0 | GN38: 0 | GO38: 4 | GP38: 0 | GQ38: 0 | GR38: 12578 | GS38: 7885 | GT38: 4986 | GU38: 4743 | GV38: 274 | GW38: 81 | GX38: 5 | GY38: 187 | GZ38: 1 | HA38: 163 | HB38: 96 | HC38: 3 | HD38: 12 | HE38: 199 | HF38: 6 | HG38: 5 | HH38: 187 | HI38: 1 | HJ38: 163 | HK38: 21 | HL38: 3 | HM38: 12 | HN38: 1061742 | HO38: 795743 | HP38: 497836 | HQ38: 484419 | HR38: 17188 | HS38: 5344 | HT38: 1013 | HU38: 10805 | HV38: 26 | HW38: 8723 | HX38: 3249 | HY38: 76 | HZ38: 5140 | IA38: 12572 | IB38: 1645 | IC38: 967 | ID38: 9937 | IE38: 23 | IF38: 7546 | IG38: 2388 | IH38: 74 | II38: 2564 | IJ38: 1579126 | IK38: 1275173 | IL38: 853502 | IM38: 837880 | IN38: 24281 | IO38: 5785 | IP38: 1425 | IQ38: 17025 | IR38: 46 | IS38: 12994 | IT38: 4360 | IU38: 113 | IV38: 6814 | IW38: 19393 | IX38: 1879 | IY38: 1371 | IZ38: 16101 | JA38: 42 | JB38: 11772 | JC38: 3384 | JD38: 111 | JE38: 4126
A39: 2020-10-01 | B39: 249 | C39: 201 | D39: 147 | E39: 144 | F39: 13 | G39: 0 | H39: 0 | I39: 13 | J39: 0 | K39: 2 | L39: 4 | M39: 0 | N39: 7 | O39: 12 | P39: 0 | Q39: 0 | R39: 12 | S39: 0 | T39: 2 | U39: 3 | V39: 0 | W39: 7 | X39: 3695 | Y39: 3499 | Z39: 2533 | AA39: 2517 | AB39: 73 | AC39: 1 | AD39: 5 | AE39: 67 | AF39: 0 | AG39: 28 | AH39: 21 | AI39: 2 | AJ39: 22 | AK39: 73 | AL39: 1 | AM39: 5 | AN39: 67 | AO39: 0 | AP39: 28 | AQ39: 21 | AR39: 2 | AS39: 22 | AT39: 438571 | AU39: 411685 | AV39: 308610 | AW39: 307047 | AX39: 6160 | AY39: 328 | AZ39: 351 | BA39: 5462 | BB39: 19 | BC39: 3781 | BD39: 870 | BE39: 27 | BF39: 1482 | BG39: 5971 | BH39: 203 | BI39: 341 | BJ39: 5410 | BK39: 17 | BL39: 3743 | BM39: 832 | BN39: 27 | BO39: 1369 | BP39: 601 | BQ39: 427 | BR39: 468 | BS39: 395 | BT39: 28 | BU39: 4 | BV39: 3 | BW39: 21 | BX39: 0 | BY39: 7 | BZ39: 10 | CA39: 0 | CB39: 11 | CC39: 27 | CD39: 4 | CE39: 3 | CF39: 20 | CG39: 0 | CH39: 7 | CI39: 10 | CJ39: 0 | CK39: 10 | CL39: 37974 | CM39: 35561 | CN39: 26221 | CO39: 26053 | CP39: 370 | CQ39: 8 | CR39: 21 | CS39: 341 | CT39: 0 | CU39: 228 | CV39: 63 | CW39: 0 | CX39: 79 | CY39: 367 | CZ39: 6 | DA39: 20 | DB39: 341 | DC39: 0 | DD39: 228 | DE39: 63 | DF39: 0 | DG39: 76 | DH39: 12417 | DI39: 10106 | DJ39: 6368 | DK39: 6249 | DL39: 249 | DM39: 18 | DN39: 22 | DO39: 209 | DP39: 0 | DQ39: 143 | DR39: 53 | DS39: 2 | DT39: 51 | DU39: 235 | DV39: 13 | DW39: 22 | DX39: 200 | DY39: 0 | DZ39: 134 | EA39: 49 | EB39: 2 | EC39: 50 | ED39: 5660 | EE39: 5029 | EF39: 3218 | EG39: 3184 | EH39: 81 | EI39: 7 | EJ39: 11 | EK39: 62 | EL39: 1 | EM39: 39 | EN39: 12 | EO39: 4 | EP39: 26 | EQ39: 80 | ER39: 6 | ES39: 11 | ET39: 62 | EU39: 1 | EV39: 39 | EW39: 12 | EX39: 4 | EY39: 25 | EZ39: 5717 | FA39: 5150 | FB39: 3681 | FC39: 3636 | FD39: 66 | FE39: 1 | FF39: 7 | FG39: 57 | FH39: 1 | FI39: 42 | FJ39: 15 | FK39: 1 | FL39: 8 | FM39: 66 | FN39: 1 | FO39: 7 | FP39: 57 | FQ39: 1 | FR39: 42 | FS39: 15 | FT39: 1 | FU39: 8 | FV39: 1663 | FW39: 1228 | FX39: 1007 | FY39: 995 | FZ39: 4 | GA39: 1 | GB39: 0 | GC39: 3 | GD39: 0 | GE39: 0 | GF39: 4 | GG39: 0 | GH39: 0 | GI39: 4 | GJ39: 1 | GK39: 0 | GL39: 3 | GM39: 0 | GN39: 0 | GO39: 4 | GP39: 0 | GQ39: 0 | GR39: 12586 | GS39: 7899 | GT39: 4990 | GU39: 4764 | GV39: 277 | GW39: 81 | GX39: 6 | GY39: 189 | GZ39: 1 | HA39: 164 | HB39: 96 | HC39: 3 | HD39: 14 | HE39: 202 | HF39: 6 | HG39: 6 | HH39: 189 | HI39: 1 | HJ39: 164 | HK39: 21 | HL39: 3 | HM39: 14 | HN39: 1066130 | HO39: 797486 | HP39: 498771 | HQ39: 485120 | HR39: 17562 | HS39: 5458 | HT39: 1047 | HU39: 11028 | HV39: 29 | HW39: 8865 | HX39: 3325 | HY39: 77 | HZ39: 5295 | IA39: 12830 | IB39: 1667 | IC39: 995 | ID39: 10143 | IE39: 25 | IF39: 7598 | IG39: 2455 | IH39: 75 | II39: 2702 | IJ39: 1585264 | IK39: 1278271 | IL39: 856014 | IM39: 840104 | IN39: 24883 | IO39: 5907 | IP39: 1473 | IQ39: 17452 | IR39: 51 | IS39: 13299 | IT39: 4473 | IU39: 116 | IV39: 6995 | IW39: 19867 | IX39: 1908 | IY39: 1410 | IZ39: 16504 | JA39: 45 | JB39: 11985 | JC39: 3485 | JD39: 114 | JE39: 4283
A40: 2020-11-01 | B40: 249 | C40: 202 | D40: 149 | E40: 147 | F40: 14 | G40: 0 | H40: 0 | I40: 14 | J40: 0 | K40: 2 | L40: 4 | M40: 1 | N40: 7 | O40: 13 | P40: 0 | Q40: 0 | R40: 13 | S40: 0 | T40: 2 | U40: 3 | V40: 1 | W40: 7 | X40: 3703 | Y40: 3509 | Z40: 2547 | AA40: 2531 | AB40: 73 | AC40: 1 | AD40: 5 | AE40: 67 | AF40: 0 | AG40: 28 | AH40: 21 | AI40: 2 | AJ40: 22 | AK40: 73 | AL40: 1 | AM40: 5 | AN40: 67 | AO40: 0 | AP40: 28 | AQ40: 21 | AR40: 2 | AS40: 22 | AT40: 439512 | AU40: 412803 | AV40: 310061 | AW40: 308536 | AX40: 6357 | AY40: 338 | AZ40: 370 | BA40: 5624 | BB40: 25 | BC40: 3902 | BD40: 894 | BE40: 29 | BF40: 1532 | BG40: 6173 | BH40: 209 | BI40: 362 | BJ40: 5579 | BK40: 23 | BL40: 3867 | BM40: 862 | BN40: 28 | BO40: 1416 | BP40: 611 | BQ40: 429 | BR40: 469 | BS40: 395 | BT40: 28 | BU40: 4 | BV40: 3 | BW40: 21 | BX40: 0 | BY40: 7 | BZ40: 11 | CA40: 0 | CB40: 10 | CC40: 27 | CD40: 4 | CE40: 3 | CF40: 20 | CG40: 0 | CH40: 7 | CI40: 11 | CJ40: 0 | CK40: 9 | CL40: 38051 | CM40: 35633 | CN40: 26334 | CO40: 26161 | CP40: 382 | CQ40: 10 | CR40: 21 | CS40: 351 | CT40: 0 | CU40: 234 | CV40: 65 | CW40: 0 | CX40: 83 | CY40: 378 | CZ40: 8 | DA40: 20 | DB40: 350 | DC40: 0 | DD40: 233 | DE40: 65 | DF40: 0 | DG40: 80 | DH40: 12403 | DI40: 10095 | DJ40: 6366 | DK40: 6253 | DL40: 253 | DM40: 18 | DN40: 22 | DO40: 213 | DP40: 0 | DQ40: 145 | DR40: 54 | DS40: 3 | DT40: 51 | DU40: 239 | DV40: 12 | DW40: 22 | DX40: 205 | DY40: 0 | DZ40: 136 | EA40: 50 | EB40: 3 | EC40: 50 | ED40: 5646 | EE40: 5011 | EF40: 3220 | EG40: 3185 | EH40: 82 | EI40: 7 | EJ40: 11 | EK40: 63 | EL40: 1 | EM40: 40 | EN40: 12 | EO40: 4 | EP40: 26 | EQ40: 81 | ER40: 6 | ES40: 11 | ET40: 63 | EU40: 1 | EV40: 40 | EW40: 12 | EX40: 4 | EY40: 25 | EZ40: 5800 | FA40: 5207 | FB40: 3722 | FC40: 3671 | FD40: 69 | FE40: 1 | FF40: 7 | FG40: 60 | FH40: 1 | FI40: 45 | FJ40: 15 | FK40: 1 | FL40: 8 | FM40: 69 | FN40: 1 | FO40: 7 | FP40: 60 | FQ40: 1 | FR40: 45 | FS40: 15 | FT40: 1 | FU40: 8 | FV40: 1663 | FW40: 1229 | FX40: 1011 | FY40: 997 | FZ40: 4 | GA40: 1 | GB40: 0 | GC40: 3 | GD40: 0 | GE40: 0 | GF40: 4 | GG40: 0 | GH40: 0 | GI40: 4 | GJ40: 1 | GK40: 0 | GL40: 3 | GM40: 0 | GN40: 0 | GO40: 4 | GP40: 0 | GQ40: 0 | GR40: 12612 | GS40: 7903 | GT40: 4990 | GU40: 4782 | GV40: 272 | GW40: 81 | GX40: 6 | GY40: 184 | GZ40: 1 | HA40: 157 | HB40: 97 | HC40: 3 | HD40: 15 | HE40: 197 | HF40: 6 | HG40: 6 | HH40: 184 | HI40: 1 | HJ40: 157 | HK40: 22 | HL40: 3 | HM40: 15 | HN40: 1068561 | HO40: 800256 | HP40: 500282 | HQ40: 486765 | HR40: 17822 | HS40: 5561 | HT40: 1421 | HU40: 10802 | HV40: 38 | HW40: 8990 | HX40: 3392 | HY40: 81 | HZ40: 5359 | IA40: 13018 | IB40: 1690 | IC40: 1057 | ID40: 10237 | IE40: 34 | IF40: 7698 | IG40: 2499 | IH40: 79 | II40: 2742 | IJ40: 1588812 | IK40: 1282277 | IL40: 859151 | IM40: 843423 | IN40: 25356 | IO40: 6022 | IP40: 1866 | IQ40: 17402 | IR40: 66 | IS40: 13550 | IT40: 4569 | IU40: 124 | IV40: 7113 | IW40: 20272 | IX40: 1938 | IY40: 1493 | IZ40: 16781 | JA40: 60 | JB40: 12213 | JC40: 3564 | JD40: 121 | JE40: 4374
A41: 2020-12-01 | B41: 249 | C41: 202 | D41: 147 | E41: 146 | F41: 14 | G41: 0 | H41: 0 | I41: 14 | J41: 0 | K41: 2 | L41: 4 | M41: 1 | N41: 7 | O41: 13 | P41: 0 | Q41: 0 | R41: 13 | S41: 0 | T41: 2 | U41: 3 | V41: 1 | W41: 7 | X41: 3712 | Y41: 3515 | Z41: 2560 | AA41: 2543 | AB41: 72 | AC41: 1 | AD41: 5 | AE41: 66 | AF41: 0 | AG41: 28 | AH41: 21 | AI41: 2 | AJ41: 21 | AK41: 71 | AL41: 1 | AM41: 5 | AN41: 65 | AO41: 0 | AP41: 27 | AQ41: 21 | AR41: 2 | AS41: 21 | AT41: 440725 | AU41: 413930 | AV41: 311582 | AW41: 310068 | AX41: 6569 | AY41: 363 | AZ41: 378 | BA41: 5802 | BB41: 26 | BC41: 4047 | BD41: 907 | BE41: 30 | BF41: 1585 | BG41: 6382 | BH41: 227 | BI41: 370 | BJ41: 5761 | BK41: 24 | BL41: 4009 | BM41: 873 | BN41: 29 | BO41: 1471 | BP41: 614 | BQ41: 430 | BR41: 473 | BS41: 396 | BT41: 28 | BU41: 4 | BV41: 3 | BW41: 21 | BX41: 0 | BY41: 7 | BZ41: 11 | CA41: 0 | CB41: 10 | CC41: 27 | CD41: 4 | CE41: 3 | CF41: 20 | CG41: 0 | CH41: 7 | CI41: 11 | CJ41: 0 | CK41: 9 | CL41: 38150 | CM41: 35704 | CN41: 26432 | CO41: 26262 | CP41: 396 | CQ41: 10 | CR41: 21 | CS41: 364 | CT41: 1 | CU41: 244 | CV41: 68 | CW41: 0 | CX41: 84 | CY41: 393 | CZ41: 8 | DA41: 20 | DB41: 364 | DC41: 1 | DD41: 244 | DE41: 68 | DF41: 0 | DG41: 81 | DH41: 12393 | DI41: 10062 | DJ41: 6409 | DK41: 6287 | DL41: 257 | DM41: 21 | DN41: 22 | DO41: 214 | DP41: 0 | DQ41: 143 | DR41: 56 | DS41: 3 | DT41: 55 | DU41: 242 | DV41: 14 | DW41: 22 | DX41: 206 | DY41: 0 | DZ41: 133 | EA41: 53 | EB41: 3 | EC41: 53 | ED41: 5633 | EE41: 4996 | EF41: 3216 | EG41: 3180 | EH41: 84 | EI41: 8 | EJ41: 11 | EK41: 64 | EL41: 1 | EM41: 40 | EN41: 12 | EO41: 4 | EP41: 28 | EQ41: 82 | ER41: 6 | ES41: 11 | ET41: 64 | EU41: 1 | EV41: 40 | EW41: 12 | EX41: 4 | EY41: 26 | EZ41: 5923 | FA41: 5307 | FB41: 3775 | FC41: 3728 | FD41: 71 | FE41: 1 | FF41: 6 | FG41: 63 | FH41: 1 | FI41: 47 | FJ41: 15 | FK41: 1 | FL41: 8 | FM41: 70 | FN41: 1 | FO41: 6 | FP41: 62 | FQ41: 1 | FR41: 46 | FS41: 15 | FT41: 1 | FU41: 8 | FV41: 1664 | FW41: 1228 | FX41: 1012 | FY41: 998 | FZ41: 4 | GA41: 1 | GB41: 0 | GC41: 3 | GD41: 0 | GE41: 0 | GF41: 4 | GG41: 0 | GH41: 0 | GI41: 4 | GJ41: 1 | GK41: 0 | GL41: 3 | GM41: 0 | GN41: 0 | GO41: 4 | GP41: 0 | GQ41: 0 | GR41: 12550 | GS41: 7897 | GT41: 5024 | GU41: 4816 | GV41: 272 | GW41: 81 | GX41: 7 | GY41: 183 | GZ41: 1 | HA41: 160 | HB41: 97 | HC41: 3 | HD41: 12 | HE41: 197 | HF41: 6 | HG41: 7 | HH41: 183 | HI41: 1 | HJ41: 160 | HK41: 22 | HL41: 3 | HM41: 12 | HN41: 1072550 | HO41: 797066 | HP41: 497220 | HQ41: 483852 | HR41: 18125 | HS41: 5970 | HT41: 1134 | HU41: 10972 | HV41: 49 | HW41: 9138 | HX41: 3471 | HY41: 83 | HZ41: 5433 | IA41: 13226 | IB41: 1715 | IC41: 1076 | ID41: 10390 | IE41: 45 | IF41: 7791 | IG41: 2565 | IH41: 81 | II41: 2789 | IJ41: 1594164 | IK41: 1280337 | IL41: 857850 | IM41: 842276 | IN41: 25892 | IO41: 6460 | IP41: 1587 | IQ41: 17766 | IR41: 79 | IS41: 13856 | IT41: 4666 | IU41: 127 | IV41: 7243 | IW41: 20707 | IX41: 1983 | IY41: 1520 | IZ41: 17131 | JA41: 73 | JB41: 12459 | JC41: 3647 | JD41: 124 | JE41: 4477
A42: 2021-01-01 | B42: 248 | C42: 200 | D42: 148 | E42: 147 | F42: 14 | G42: 0 | H42: 0 | I42: 14 | J42: 0 | K42: 2 | L42: 4 | M42: 1 | N42: 7 | O42: 13 | P42: 0 | Q42: 0 | R42: 13 | S42: 0 | T42: 2 | U42: 3 | V42: 1 | W42: 7 | X42: 3718 | Y42: 3522 | Z42: 2567 | AA42: 2552 | AB42: 74 | AC42: 1 | AD42: 5 | AE42: 68 | AF42: 0 | AG42: 29 | AH42: 22 | AI42: 2 | AJ42: 21 | AK42: 74 | AL42: 1 | AM42: 5 | AN42: 68 | AO42: 0 | AP42: 29 | AQ42: 22 | AR42: 2 | AS42: 21 | AT42: 441539 | AU42: 414622 | AV42: 312468 | AW42: 310911 | AX42: 6708 | AY42: 369 | AZ42: 394 | BA42: 5911 | BB42: 34 | BC42: 4129 | BD42: 930 | BE42: 31 | BF42: 1618 | BG42: 6518 | BH42: 232 | BI42: 386 | BJ42: 5868 | BK42: 32 | BL42: 4089 | BM42: 896 | BN42: 30 | BO42: 1503 | BP42: 618 | BQ42: 435 | BR42: 477 | BS42: 400 | BT42: 29 | BU42: 4 | BV42: 3 | BW42: 22 | BX42: 0 | BY42: 8 | BZ42: 11 | CA42: 0 | CB42: 10 | CC42: 28 | CD42: 4 | CE42: 3 | CF42: 21 | CG42: 0 | CH42: 8 | CI42: 11 | CJ42: 0 | CK42: 9 | CL42: 38190 | CM42: 35738 | CN42: 26481 | CO42: 26310 | CP42: 408 | CQ42: 10 | CR42: 22 | CS42: 375 | CT42: 1 | CU42: 251 | CV42: 69 | CW42: 0 | CX42: 88 | CY42: 405 | CZ42: 8 | DA42: 21 | DB42: 375 | DC42: 1 | DD42: 251 | DE42: 69 | DF42: 0 | DG42: 85 | DH42: 12383 | DI42: 10052 | DJ42: 6425 | DK42: 6307 | DL42: 258 | DM42: 20 | DN42: 21 | DO42: 217 | DP42: 0 | DQ42: 143 | DR42: 57 | DS42: 3 | DT42: 55 | DU42: 241 | DV42: 13 | DW42: 21 | DX42: 207 | DY42: 0 | DZ42: 132 | EA42: 53 | EB42: 3 | EC42: 53 | ED42: 5612 | EE42: 4975 | EF42: 3215 | EG42: 3176 | EH42: 87 | EI42: 8 | EJ42: 11 | EK42: 66 | EL42: 2 | EM42: 41 | EN42: 13 | EO42: 4 | EP42: 29 | EQ42: 85 | ER42: 6 | ES42: 11 | ET42: 66 | EU42: 2 | EV42: 41 | EW42: 13 | EX42: 4 | EY42: 27 | EZ42: 5977 | FA42: 5359 | FB42: 3804 | FC42: 3758 | FD42: 75 | FE42: 1 | FF42: 6 | FG42: 67 | FH42: 1 | FI42: 51 | FJ42: 15 | FK42: 1 | FL42: 8 | FM42: 74 | FN42: 1 | FO42: 6 | FP42: 66 | FQ42: 1 | FR42: 50 | FS42: 15 | FT42: 1 | FU42: 8 | FV42: 1664 | FW42: 1229 | FX42: 1014 | FY42: 1000 | FZ42: 4 | GA42: 1 | GB42: 0 | GC42: 3 | GD42: 0 | GE42: 0 | GF42: 4 | GG42: 0 | GH42: 0 | GI42: 4 | GJ42: 1 | GK42: 0 | GL42: 3 | GM42: 0 | GN42: 0 | GO42: 4 | GP42: 0 | GQ42: 0 | GR42: 12526 | GS42: 7888 | GT42: 5035 | GU42: 4816 | GV42: 271 | GW42: 81 | GX42: 9 | GY42: 181 | GZ42: 0 | HA42: 160 | HB42: 96 | HC42: 4 | HD42: 11 | HE42: 196 | HF42: 6 | HG42: 9 | HH42: 181 | HI42: 0 | HJ42: 160 | HK42: 21 | HL42: 4 | HM42: 11 | HN42: 1075726 | HO42: 799108 | HP42: 499842 | HQ42: 485975 | HR42: 18322 | HS42: 6004 | HT42: 1158 | HU42: 11106 | HV42: 54 | HW42: 9299 | HX42: 3519 | HY42: 85 | HZ42: 5419 | IA42: 13342 | IB42: 1697 | IC42: 1095 | ID42: 10500 | IE42: 50 | IF42: 7901 | IG42: 2596 | IH42: 83 | II42: 2762 | IJ42: 1598202 | IK42: 1283128 | IL42: 861476 | IM42: 845352 | IN42: 26250 | IO42: 6499 | IP42: 1629 | IQ42: 18030 | IR42: 92 | IS42: 14113 | IT42: 4740 | IU42: 131 | IV42: 7266 | IW42: 20980 | IX42: 1969 | IY42: 1557 | IZ42: 17368 | JA42: 86 | JB42: 12663 | JC42: 3703 | JD42: 128 | JE42: 4486
A43: 2021-02-01 | B43: 248 | C43: 201 | D43: 148 | E43: 147 | F43: 14 | G43: 0 | H43: 0 | I43: 14 | J43: 0 | K43: 2 | L43: 4 | M43: 1 | N43: 7 | O43: 13 | P43: 0 | Q43: 0 | R43: 13 | S43: 0 | T43: 2 | U43: 3 | V43: 1 | W43: 7 | X43: 3725 | Y43: 3531 | Z43: 2572 | AA43: 2555 | AB43: 74 | AC43: 1 | AD43: 6 | AE43: 67 | AF43: 0 | AG43: 29 | AH43: 22 | AI43: 2 | AJ43: 21 | AK43: 74 | AL43: 1 | AM43: 6 | AN43: 67 | AO43: 0 | AP43: 29 | AQ43: 22 | AR43: 2 | AS43: 21 | AT43: 443029 | AU43: 416090 | AV43: 314107 | AW43: 312588 | AX43: 6882 | AY43: 384 | AZ43: 403 | BA43: 6058 | BB43: 37 | BC43: 4245 | BD43: 952 | BE43: 31 | BF43: 1654 | BG43: 6691 | BH43: 248 | BI43: 397 | BJ43: 6011 | BK43: 35 | BL43: 4207 | BM43: 917 | BN43: 30 | BO43: 1537 | BP43: 618 | BQ43: 435 | BR43: 478 | BS43: 400 | BT43: 29 | BU43: 4 | BV43: 3 | BW43: 22 | BX43: 0 | BY43: 8 | BZ43: 11 | CA43: 0 | CB43: 10 | CC43: 28 | CD43: 4 | CE43: 3 | CF43: 21 | CG43: 0 | CH43: 8 | CI43: 11 | CJ43: 0 | CK43: 9 | CL43: 38276 | CM43: 35819 | CN43: 26593 | CO43: 26418 | CP43: 417 | CQ43: 10 | CR43: 21 | CS43: 385 | CT43: 1 | CU43: 260 | CV43: 69 | CW43: 0 | CX43: 88 | CY43: 414 | CZ43: 8 | DA43: 20 | DB43: 385 | DC43: 1 | DD43: 260 | DE43: 69 | DF43: 0 | DG43: 85 | DH43: 12384 | DI43: 10033 | DJ43: 6426 | DK43: 6305 | DL43: 259 | DM43: 20 | DN43: 21 | DO43: 218 | DP43: 0 | DQ43: 145 | DR43: 57 | DS43: 3 | DT43: 54 | DU43: 243 | DV43: 13 | DW43: 21 | DX43: 209 | DY43: 0 | DZ43: 135 | EA43: 53 | EB43: 3 | EC43: 52 | ED43: 5596 | EE43: 4968 | EF43: 3215 | EG43: 3179 | EH43: 88 | EI43: 8 | EJ43: 11 | EK43: 67 | EL43: 2 | EM43: 42 | EN43: 12 | EO43: 4 | EP43: 30 | EQ43: 86 | ER43: 6 | ES43: 11 | ET43: 67 | EU43: 2 | EV43: 42 | EW43: 12 | EX43: 4 | EY43: 28 | EZ43: 6029 | FA43: 5424 | FB43: 3832 | FC43: 3786 | FD43: 79 | FE43: 2 | FF43: 6 | FG43: 70 | FH43: 1 | FI43: 54 | FJ43: 15 | FK43: 1 | FL43: 9 | FM43: 79 | FN43: 2 | FO43: 6 | FP43: 70 | FQ43: 1 | FR43: 54 | FS43: 15 | FT43: 1 | FU43: 9 | FV43: 1665 | FW43: 1230 | FX43: 1013 | FY43: 999 | FZ43: 5 | GA43: 1 | GB43: 1 | GC43: 3 | GD43: 0 | GE43: 1 | GF43: 4 | GG43: 0 | GH43: 0 | GI43: 5 | GJ43: 1 | GK43: 1 | GL43: 3 | GM43: 0 | GN43: 1 | GO43: 4 | GP43: 0 | GQ43: 0 | GR43: 12458 | GS43: 7938 | GT43: 5011 | GU43: 4854 | GV43: 272 | GW43: 81 | GX43: 9 | GY43: 182 | GZ43: 0 | HA43: 161 | HB43: 96 | HC43: 4 | HD43: 11 | HE43: 197 | HF43: 6 | HG43: 9 | HH43: 182 | HI43: 0 | HJ43: 161 | HK43: 21 | HL43: 4 | HM43: 11 | HN43: 1080969 | HO43: 802885 | HP43: 503536 | HQ43: 489716 | HR43: 18681 | HS43: 6110 | HT43: 1193 | HU43: 11324 | HV43: 54 | HW43: 9496 | HX43: 3620 | HY43: 84 | HZ43: 5481 | IA43: 13610 | IB43: 1737 | IC43: 1126 | ID43: 10698 | IE43: 49 | IF43: 8046 | IG43: 2671 | IH43: 82 | II43: 2811 | IJ43: 1604998 | IK43: 1288554 | IL43: 866931 | IM43: 850947 | IN43: 26800 | IO43: 6621 | IP43: 1674 | IQ43: 18410 | IR43: 95 | IS43: 14443 | IT43: 4862 | IU43: 130 | IV43: 7365 | IW43: 21440 | IX43: 2026 | IY43: 1600 | IZ43: 17726 | JA43: 88 | JB43: 12945 | JC43: 3798 | JD43: 127 | JE43: 4570
A44: 2021-03-01 | B44: 248 | C44: 201 | D44: 148 | E44: 146 | F44: 15 | G44: 0 | H44: 0 | I44: 15 | J44: 0 | K44: 3 | L44: 4 | M44: 1 | N44: 7 | O44: 14 | P44: 0 | Q44: 0 | R44: 14 | S44: 0 | T44: 3 | U44: 3 | V44: 1 | W44: 7 | X44: 3737 | Y44: 3542 | Z44: 2587 | AA44: 2572 | AB44: 74 | AC44: 1 | AD44: 7 | AE44: 66 | AF44: 0 | AG44: 28 | AH44: 23 | AI44: 2 | AJ44: 21 | AK44: 74 | AL44: 1 | AM44: 7 | AN44: 66 | AO44: 0 | AP44: 28 | AQ44: 23 | AR44: 2 | AS44: 21 | AT44: 444981 | AU44: 417812 | AV44: 315829 | AW44: 314327 | AX44: 7106 | AY44: 398 | AZ44: 435 | BA44: 6236 | BB44: 37 | BC44: 4409 | BD44: 977 | BE44: 32 | BF44: 1688 | BG44: 6910 | BH44: 257 | BI44: 429 | BJ44: 6189 | BK44: 35 | BL44: 4368 | BM44: 942 | BN44: 31 | BO44: 1569 | BP44: 623 | BQ44: 437 | BR44: 477 | BS44: 401 | BT44: 31 | BU44: 4 | BV44: 3 | BW44: 23 | BX44: 1 | BY44: 8 | BZ44: 12 | CA44: 0 | CB44: 11 | CC44: 30 | CD44: 4 | CE44: 3 | CF44: 22 | CG44: 1 | CH44: 8 | CI44: 12 | CJ44: 0 | CK44: 10 | CL44: 38407 | CM44: 35965 | CN44: 26743 | CO44: 26580 | CP44: 438 | CQ44: 11 | CR44: 24 | CS44: 402 | CT44: 1 | CU44: 271 | CV44: 76 | CW44: 0 | CX44: 91 | CY44: 434 | CZ44: 9 | DA44: 23 | DB44: 401 | DC44: 1 | DD44: 271 | DE44: 76 | DF44: 0 | DG44: 87 | DH44: 12385 | DI44: 10035 | DJ44: 6443 | DK44: 6324 | DL44: 261 | DM44: 20 | DN44: 21 | DO44: 220 | DP44: 0 | DQ44: 149 | DR44: 56 | DS44: 3 | DT44: 53 | DU44: 245 | DV44: 13 | DW44: 21 | DX44: 211 | DY44: 0 | DZ44: 138 | EA44: 53 | EB44: 3 | EC44: 51 | ED44: 5582 | EE44: 4964 | EF44: 3221 | EG44: 3185 | EH44: 89 | EI44: 8 | EJ44: 11 | EK44: 69 | EL44: 1 | EM44: 42 | EN44: 13 | EO44: 4 | EP44: 30 | EQ44: 87 | ER44: 6 | ES44: 11 | ET44: 69 | EU44: 1 | EV44: 42 | EW44: 13 | EX44: 4 | EY44: 28 | EZ44: 6072 | FA44: 5469 | FB44: 3866 | FC44: 3822 | FD44: 80 | FE44: 2 | FF44: 6 | FG44: 71 | FH44: 1 | FI44: 55 | FJ44: 15 | FK44: 1 | FL44: 9 | FM44: 80 | FN44: 2 | FO44: 6 | FP44: 71 | FQ44: 1 | FR44: 55 | FS44: 15 | FT44: 1 | FU44: 9 | FV44: 1665 | FW44: 1232 | FX44: 1014 | FY44: 1002 | FZ44: 6 | GA44: 1 | GB44: 1 | GC44: 4 | GD44: 0 | GE44: 2 | GF44: 4 | GG44: 0 | GH44: 0 | GI44: 6 | GJ44: 1 | GK44: 1 | GL44: 4 | GM44: 0 | GN44: 2 | GO44: 4 | GP44: 0 | GQ44: 0 | GR44: 12467 | GS44: 7958 | GT44: 5043 | GU44: 4880 | GV44: 275 | GW44: 81 | GX44: 9 | GY44: 185 | GZ44: 0 | HA44: 164 | HB44: 96 | HC44: 4 | HD44: 11 | HE44: 200 | HF44: 6 | HG44: 9 | HH44: 185 | HI44: 0 | HJ44: 164 | HK44: 21 | HL44: 4 | HM44: 11 | HN44: 1079290 | HO44: 805406 | HP44: 506330 | HQ44: 492463 | HR44: 19102 | HS44: 6249 | HT44: 1275 | HU44: 11522 | HV44: 56 | HW44: 9773 | HX44: 3642 | HY44: 84 | HZ44: 5603 | IA44: 13934 | IB44: 1784 | IC44: 1204 | ID44: 10895 | IE44: 51 | IF44: 8288 | IG44: 2684 | IH44: 83 | II44: 2879 | IJ44: 1605458 | IK44: 1293021 | IL44: 871701 | IM44: 855702 | IN44: 27477 | IO44: 6775 | IP44: 1792 | IQ44: 18813 | IR44: 97 | IS44: 14904 | IT44: 4918 | IU44: 131 | IV44: 7524 | IW44: 22014 | IX44: 2083 | IY44: 1714 | IZ44: 18127 | JA44: 90 | JB44: 13367 | JC44: 3846 | JD44: 129 | JE44: 4672
A45: 2021-04-01 | B45: 247 | C45: 203 | D45: 152 | E45: 150 | F45: 15 | G45: 0 | H45: 0 | I45: 15 | J45: 0 | K45: 3 | L45: 4 | M45: 1 | N45: 7 | O45: 14 | P45: 0 | Q45: 0 | R45: 14 | S45: 0 | T45: 3 | U45: 3 | V45: 1 | W45: 7 | X45: 3738 | Y45: 3550 | Z45: 2607 | AA45: 2592 | AB45: 76 | AC45: 1 | AD45: 7 | AE45: 68 | AF45: 0 | AG45: 30 | AH45: 23 | AI45: 2 | AJ45: 21 | AK45: 76 | AL45: 1 | AM45: 7 | AN45: 68 | AO45: 0 | AP45: 30 | AQ45: 23 | AR45: 2 | AS45: 21 | AT45: 446861 | AU45: 419560 | AV45: 317756 | AW45: 316244 | AX45: 7328 | AY45: 410 | AZ45: 448 | BA45: 6433 | BB45: 37 | BC45: 4577 | BD45: 1003 | BE45: 32 | BF45: 1716 | BG45: 7126 | BH45: 264 | BI45: 441 | BJ45: 6386 | BK45: 35 | BL45: 4537 | BM45: 968 | BN45: 31 | BO45: 1590 | BP45: 623 | BQ45: 434 | BR45: 472 | BS45: 395 | BT45: 31 | BU45: 4 | BV45: 3 | BW45: 23 | BX45: 1 | BY45: 8 | BZ45: 12 | CA45: 0 | CB45: 11 | CC45: 30 | CD45: 4 | CE45: 3 | CF45: 22 | CG45: 1 | CH45: 8 | CI45: 12 | CJ45: 0 | CK45: 10 | CL45: 38498 | CM45: 36072 | CN45: 26886 | CO45: 26721 | CP45: 456 | CQ45: 11 | CR45: 23 | CS45: 421 | CT45: 1 | CU45: 285 | CV45: 79 | CW45: 0 | CX45: 92 | CY45: 453 | CZ45: 9 | DA45: 22 | DB45: 421 | DC45: 1 | DD45: 285 | DE45: 79 | DF45: 0 | DG45: 89 | DH45: 12358 | DI45: 10036 | DJ45: 6456 | DK45: 6337 | DL45: 269 | DM45: 22 | DN45: 24 | DO45: 223 | DP45: 0 | DQ45: 155 | DR45: 60 | DS45: 3 | DT45: 51 | DU45: 252 | DV45: 15 | DW45: 24 | DX45: 213 | DY45: 0 | DZ45: 143 | EA45: 57 | EB45: 3 | EC45: 49 | ED45: 5560 | EE45: 4946 | EF45: 3222 | EG45: 3188 | EH45: 90 | EI45: 8 | EJ45: 12 | EK45: 69 | EL45: 1 | EM45: 42 | EN45: 13 | EO45: 4 | EP45: 31 | EQ45: 88 | ER45: 6 | ES45: 12 | ET45: 69 | EU45: 1 | EV45: 42 | EW45: 13 | EX45: 4 | EY45: 29 | EZ45: 6112 | FA45: 5501 | FB45: 3885 | FC45: 3841 | FD45: 80 | FE45: 2 | FF45: 6 | FG45: 71 | FH45: 1 | FI45: 57 | FJ45: 14 | FK45: 1 | FL45: 8 | FM45: 80 | FN45: 2 | FO45: 6 | FP45: 71 | FQ45: 1 | FR45: 57 | FS45: 14 | FT45: 1 | FU45: 8 | FV45: 1665 | FW45: 1233 | FX45: 1013 | FY45: 1001 | FZ45: 6 | GA45: 1 | GB45: 1 | GC45: 4 | GD45: 0 | GE45: 2 | GF45: 4 | GG45: 0 | GH45: 0 | GI45: 6 | GJ45: 1 | GK45: 1 | GL45: 4 | GM45: 0 | GN45: 2 | GO45: 4 | GP45: 0 | GQ45: 0 | GR45: 12410 | GS45: 7912 | GT45: 5020 | GU45: 4860 | GV45: 235 | GW45: 82 | GX45: 10 | GY45: 143 | GZ45: 0 | HA45: 123 | HB45: 96 | HC45: 4 | HD45: 12 | HE45: 160 | HF45: 7 | HG45: 10 | HH45: 143 | HI45: 0 | HJ45: 123 | HK45: 21 | HL45: 4 | HM45: 12 | HN45: 1082429 | HO45: 807736 | HP45: 508928 | HQ45: 495180 | HR45: 19272 | HS45: 6402 | HT45: 1314 | HU45: 11495 | HV45: 61 | HW45: 9714 | HX45: 3778 | HY45: 82 | HZ45: 5698 | IA45: 13975 | IB45: 1859 | IC45: 1241 | ID45: 10819 | IE45: 56 | IF45: 8174 | IG45: 2766 | IH45: 82 | II45: 2953 | IJ45: 1610502 | IK45: 1297183 | IL45: 876397 | IM45: 860509 | IN45: 27858 | IO45: 6943 | IP45: 1848 | IQ45: 18965 | IR45: 102 | IS45: 14996 | IT45: 5086 | IU45: 129 | IV45: 7647 | IW45: 22260 | IX45: 2168 | IY45: 1767 | IZ45: 18230 | JA45: 95 | JB45: 13404 | JC45: 3960 | JD45: 128 | JE45: 4768
A46: 2021-05-01 | B46: 248 | C46: 203 | D46: 153 | E46: 151 | F46: 18 | G46: 1 | H46: 0 | I46: 17 | J46: 0 | K46: 3 | L46: 6 | M46: 1 | N46: 8 | O46: 17 | P46: 1 | Q46: 0 | R46: 16 | S46: 0 | T46: 3 | U46: 5 | V46: 1 | W46: 8 | X46: 3733 | Y46: 3547 | Z46: 2614 | AA46: 2598 | AB46: 77 | AC46: 1 | AD46: 7 | AE46: 69 | AF46: 0 | AG46: 30 | AH46: 23 | AI46: 2 | AJ46: 22 | AK46: 77 | AL46: 1 | AM46: 7 | AN46: 69 | AO46: 0 | AP46: 30 | AQ46: 23 | AR46: 2 | AS46: 22 | AT46: 447740 | AU46: 420467 | AV46: 318787 | AW46: 317283 | AX46: 7535 | AY46: 419 | AZ46: 460 | BA46: 6619 | BB46: 37 | BC46: 4740 | BD46: 1027 | BE46: 34 | BF46: 1734 | BG46: 7334 | BH46: 272 | BI46: 455 | BJ46: 6572 | BK46: 35 | BL46: 4697 | BM46: 992 | BN46: 33 | BO46: 1612 | BP46: 625 | BQ46: 432 | BR46: 469 | BS46: 392 | BT46: 31 | BU46: 4 | BV46: 3 | BW46: 23 | BX46: 1 | BY46: 8 | BZ46: 12 | CA46: 0 | CB46: 11 | CC46: 30 | CD46: 4 | CE46: 3 | CF46: 22 | CG46: 1 | CH46: 8 | CI46: 12 | CJ46: 0 | CK46: 10 | CL46: 38571 | CM46: 36130 | CN46: 26965 | CO46: 26801 | CP46: 479 | CQ46: 12 | CR46: 27 | CS46: 439 | CT46: 1 | CU46: 302 | CV46: 83 | CW46: 0 | CX46: 94 | CY46: 476 | CZ46: 10 | DA46: 26 | DB46: 439 | DC46: 1 | DD46: 302 | DE46: 83 | DF46: 0 | DG46: 91 | DH46: 12340 | DI46: 10012 | DJ46: 6453 | DK46: 6329 | DL46: 276 | DM46: 24 | DN46: 24 | DO46: 228 | DP46: 0 | DQ46: 161 | DR46: 60 | DS46: 3 | DT46: 52 | DU46: 260 | DV46: 17 | DW46: 24 | DX46: 219 | DY46: 0 | DZ46: 150 | EA46: 57 | EB46: 3 | EC46: 50 | ED46: 5533 | EE46: 4929 | EF46: 3225 | EG46: 3189 | EH46: 91 | EI46: 8 | EJ46: 12 | EK46: 70 | EL46: 1 | EM46: 42 | EN46: 13 | EO46: 4 | EP46: 32 | EQ46: 89 | ER46: 6 | ES46: 12 | ET46: 70 | EU46: 1 | EV46: 42 | EW46: 13 | EX46: 4 | EY46: 30 | EZ46: 6127 | FA46: 5512 | FB46: 3882 | FC46: 3836 | FD46: 81 | FE46: 2 | FF46: 6 | FG46: 72 | FH46: 1 | FI46: 57 | FJ46: 15 | FK46: 1 | FL46: 8 | FM46: 81 | FN46: 2 | FO46: 6 | FP46: 72 | FQ46: 1 | FR46: 57 | FS46: 15 | FT46: 1 | FU46: 8 | FV46: 1665 | FW46: 1233 | FX46: 1014 | FY46: 1002 | FZ46: 6 | GA46: 1 | GB46: 1 | GC46: 4 | GD46: 0 | GE46: 2 | GF46: 4 | GG46: 0 | GH46: 0 | GI46: 6 | GJ46: 1 | GK46: 1 | GL46: 4 | GM46: 0 | GN46: 2 | GO46: 4 | GP46: 0 | GQ46: 0 | GR46: 12406 | GS46: 7926 | GT46: 5065 | GU46: 4911 | GV46: 328 | GW46: 82 | GX46: 10 | GY46: 236 | GZ46: 0 | HA46: 216 | HB46: 96 | HC46: 4 | HD46: 12 | HE46: 253 | HF46: 7 | HG46: 10 | HH46: 236 | HI46: 0 | HJ46: 216 | HK46: 21 | HL46: 4 | HM46: 12 | HN46: 1083824 | HO46: 809205 | HP46: 510325 | HQ46: 496803 | HR46: 20295 | HS46: 6416 | HT46: 1340 | HU46: 12476 | HV46: 63 | HW46: 10599 | HX46: 3785 | HY46: 82 | HZ46: 5829 | IA46: 14971 | IB46: 1887 | IC46: 1269 | ID46: 11757 | IE46: 58 | IF46: 9035 | IG46: 2840 | IH46: 82 | II46: 3014 | IJ46: 1612813 | IK46: 1299596 | IL46: 878952 | IM46: 863295 | IN46: 29217 | IO46: 6970 | IP46: 1890 | IQ46: 20253 | IR46: 104 | IS46: 16160 | IT46: 5124 | IU46: 131 | IV46: 7802 | IW46: 23594 | IX46: 2208 | IY46: 1813 | IZ46: 19476 | JA46: 97 | JB46: 14542 | JC46: 4065 | JD46: 130 | JE46: 4857
A47: 2021-06-01 | B47: 248 | C47: 202 | D47: 153 | E47: 151 | F47: 18 | G47: 1 | H47: 0 | I47: 17 | J47: 0 | K47: 3 | L47: 6 | M47: 1 | N47: 8 | O47: 17 | P47: 1 | Q47: 0 | R47: 16 | S47: 0 | T47: 3 | U47: 5 | V47: 1 | W47: 8 | X47: 3733 | Y47: 3552 | Z47: 2617 | AA47: 2603 | AB47: 78 | AC47: 1 | AD47: 8 | AE47: 69 | AF47: 0 | AG47: 31 | AH47: 23 | AI47: 2 | AJ47: 22 | AK47: 78 | AL47: 1 | AM47: 8 | AN47: 69 | AO47: 0 | AP47: 31 | AQ47: 23 | AR47: 2 | AS47: 22 | AT47: 449218 | AU47: 421873 | AV47: 320341 | AW47: 318840 | AX47: 7840 | AY47: 431 | AZ47: 464 | BA47: 6905 | BB47: 40 | BC47: 4989 | BD47: 1060 | BE47: 34 | BF47: 1757 | BG47: 7626 | BH47: 278 | BI47: 456 | BJ47: 6854 | BK47: 38 | BL47: 4942 | BM47: 1022 | BN47: 33 | BO47: 1629 | BP47: 625 | BQ47: 435 | BR47: 472 | BS47: 393 | BT47: 31 | BU47: 4 | BV47: 3 | BW47: 23 | BX47: 1 | BY47: 7 | BZ47: 13 | CA47: 0 | CB47: 11 | CC47: 30 | CD47: 4 | CE47: 3 | CF47: 22 | CG47: 1 | CH47: 7 | CI47: 13 | CJ47: 0 | CK47: 10 | CL47: 38653 | CM47: 36221 | CN47: 27092 | CO47: 26936 | CP47: 498 | CQ47: 11 | CR47: 28 | CS47: 458 | CT47: 1 | CU47: 319 | CV47: 82 | CW47: 0 | CX47: 97 | CY47: 495 | CZ47: 9 | DA47: 27 | DB47: 458 | DC47: 1 | DD47: 319 | DE47: 82 | DF47: 0 | DG47: 94 | DH47: 12335 | DI47: 10014 | DJ47: 6465 | DK47: 6347 | DL47: 284 | DM47: 24 | DN47: 24 | DO47: 236 | DP47: 0 | DQ47: 167 | DR47: 61 | DS47: 3 | DT47: 53 | DU47: 268 | DV47: 17 | DW47: 24 | DX47: 227 | DY47: 0 | DZ47: 156 | EA47: 58 | EB47: 3 | EC47: 51 | ED47: 5524 | EE47: 4921 | EF47: 3224 | EG47: 3190 | EH47: 93 | EI47: 8 | EJ47: 11 | EK47: 73 | EL47: 1 | EM47: 45 | EN47: 13 | EO47: 4 | EP47: 31 | EQ47: 91 | ER47: 6 | ES47: 11 | ET47: 73 | EU47: 1 | EV47: 45 | EW47: 13 | EX47: 4 | EY47: 29 | EZ47: 6140 | FA47: 5531 | FB47: 3899 | FC47: 3856 | FD47: 83 | FE47: 2 | FF47: 5 | FG47: 75 | FH47: 1 | FI47: 59 | FJ47: 14 | FK47: 1 | FL47: 9 | FM47: 82 | FN47: 2 | FO47: 5 | FP47: 74 | FQ47: 1 | FR47: 58 | FS47: 14 | FT47: 1 | FU47: 9 | FV47: 1665 | FW47: 1232 | FX47: 1018 | FY47: 1005 | FZ47: 6 | GA47: 1 | GB47: 1 | GC47: 4 | GD47: 0 | GE47: 2 | GF47: 4 | GG47: 0 | GH47: 0 | GI47: 6 | GJ47: 1 | GK47: 1 | GL47: 4 | GM47: 0 | GN47: 2 | GO47: 4 | GP47: 0 | GQ47: 0 | GR47: 12608 | GS47: 7924 | GT47: 5067 | GU47: 4913 | GV47: 329 | GW47: 83 | GX47: 10 | GY47: 236 | GZ47: 0 | HA47: 217 | HB47: 95 | HC47: 4 | HD47: 13 | HE47: 254 | HF47: 8 | HG47: 10 | HH47: 236 | HI47: 0 | HJ47: 217 | HK47: 20 | HL47: 4 | HM47: 13 | HN47: 1088926 | HO47: 811983 | HP47: 513064 | HQ47: 499464 | HR47: 20954 | HS47: 6507 | HT47: 1374 | HU47: 13008 | HV47: 65 | HW47: 11096 | HX47: 3844 | HY47: 85 | HZ47: 5929 | IA47: 15558 | IB47: 1934 | IC47: 1301 | ID47: 12265 | IE47: 58 | IF47: 9487 | IG47: 2895 | IH47: 85 | II47: 3091 | IJ47: 1619675 | IK47: 1303888 | IL47: 883412 | IM47: 867698 | IN47: 30214 | IO47: 7073 | IP47: 1928 | IQ47: 21104 | IR47: 109 | IS47: 16935 | IT47: 5215 | IU47: 134 | IV47: 7930 | IW47: 24505 | IX47: 2261 | IY47: 1846 | IZ47: 20298 | JA47: 100 | JB47: 15267 | JC47: 4149 | JD47: 133 | JE47: 4956
